Workbook

Sheet Basic Information
C4: Public Water Supply Asset Management Plan
C5: Drinking Water System Assessment
C6: Utility Name:
C7: PWSID No.
C8: Utility Location:
C9: Date of Inventory:
C10: System Capacity:
C11: Population Served:
C12: Number of Connections:
C13: System Representatives:
C14: System Contact info:
C15: BPWS Regional Engineer:
C16: BPWS RE Contact Info:
C18: This planning document can be developed with one specific PWSID in mind. If desired by system officials, included multiple system PWSIDs could be combined into one document
C19: to cover the multipile systems that are managed by the single board.

Sheet Instructions
E2: HOW TO FILL-OUT YOUR ASSET MANAGEMENT PLAN
B4: Enter information: | D4: ENTER information in the cells with RED HEADERS
D5: These are found in the RED TABBED SHEETS: Data Collection Sheet, Cost Data, and Consequence of Failure
B7: Auto-Calculated Cells: | D7: All cells with BLACK HEADERS are AUTOMATICALLY FILLED-IN.
B9: Enabling Macros: | D9: Click ENABLE on the YELLOW BANNER at the top of the spreadsheet.
D10: This will enable the "Macros," which is required for the auto-zoom function within the spreadsheet.
B12: Inserting rows within table: | D12: If you insert a row on one of the RED TABBED sheets, YOU MUST insert one in the same place on ALL OTHER RED TABBED SHEETS.
D13: It will look like it inserted it for you, however the data that is not automatically transferred to the other sheets will not be correct.
B15: Removing an asset: | D15: If you want to DELETE an asset, either delete the row on ALL RED TABBED SHEETS, or only select and delete the cells with RED HEADERS.
B17: Auto-calculate not working: | D17: If the cells with the BLACK HEADERS are not filling in, click another cell in the same column,
D18: then click and drag from the small green box located in the bottom right of the "new" cell into the cell that was not working. This will highlight both cells.
D19: Once you release the mouse, it should apply the formula to the cell that was previously not working. This should fix most problems.

Sheet Drop-down lists (hidden)
C1: Category List | D1: Pump | E1: Hydrant | F1: Meter | G1: Pipe | H1: Source | I1: Tank | J1: Analytical | K1: Treatment | L1: Valve | M1: Control | N1: Safety | O1: Building | P1: Vehicle | Q1: Other
C2: Pump | D2: High Service | E2: Fire | F2: Master | G2: PVC | H2: Well | I2: Clear Well | J2: pH Meter | K2: Sedimentation | L2: Gate | M2: Telemetry | N2: PPE | O2: Treatment Plant | P2: Truck | Q2: Add Description
C3: Hydrant | D3: Booster | E3: Flush | F3: Well | G3: Ductile Iron (DI) | H3: Intake Structure | I3: Ground Level Storage Tank | J3: Chlorine Monitor | K3: Filtration | L3: Ball | M3: SCADA | N3: Fencing | O3: Well house | P3: Backhoe
C4: Meter | D4: Transfer | E4: Flow Test | F4: Source | G4: Steel | H4: Springs | I4: Elevated Storage Tank | J4: Colorimeter | K4: Clarifier | L4: Butterfly | M4: Variable Frequency Drive (VFD) | N4: Add Description | O4: Office | P4: Dump Truck
C5: Pipe | D5: Metering | E5: Other | F5: Customer | G5: Cast Iron | H5: Reservoir | I5: Standpipe | J5: Turbidimeter | K5: Chemical Feed | L5: Pressure Relief (PRV) | M5: Other | O5: Add Description | P5: HVAC Truck
C6: Source | D6: Surface Water Intake | F6: Residential | G6: Concrete | H6: Other | I6: Other | J6: TDS Meter | K6: Chlorination | L6: Air Release (ARV) | P6: Add Description
C7: Tank | D7: Backwash | F7: Flow | G7: Asbestos Cement | J7: Other Remote Sensor | K7: Ozonation | L7: Air Vacuum
C8: Analytical | D8: Motor | F8: Other | G8: Decant | K8: Ultraviolet Disenfection | L8: Check
C9: Treatment | D9: Decant | G9: Other | K9: Ion Exchange | L9: Blow-Off
C10: Valve | D10: Other | K10: Fluoride | L10: Altitude
C11: Control | K11: Corrosion Control
C12: Safety | K12: Backwash Lagoon
C13: Other | K13: Other
H16: Compliance
H17: Yes | L17: Life | M17: Capacity | Q17: Repair
C18: Current Condition | F18: Back Ups | G18: Importance | H18: No | L18: Yes | M18: Above | Q18: Yes
C19: Bad | F19: Yes | G19: 0%-25% | L19: No | M19: At | N19: Reliability | Q19: No
C20: Fair | F20: No | G20: 26%-50% | J20: Concerns | M20: Below | N20: Yes
C21: Good | G21: 51%-75% | J21: Yes | N21: No
C22: Great | G22: 76%-100% | J22: No
C28: Funding Source
C29: Annual Budget
C30: Capital Improvement Account
C31: Reserve Account
C32: MSDH - Drinking Water State Revolving Loan Fund
C33: MSDH - Drinking Water SRF - Emergency
C34: CDBG - Mississippi Development Authority
C35: U.S. Department of Agriculture
C36: U.S. Environmental Protection Agency
C37: Delta Regional Authority
C38: Appalachian Regional Commission
C39: Communities Unlimited
C40: Mississippi Rural Water Association
C41: Other (Type in cell)

Sheet Data Collection Sheet
B2: ENTER INFORMATION IN THE RED CATEGORIES THE BLACKED-OUT CATEGORIES ARE AUTOMATICALLY CALCULATED
I3: Data Collection Sheet
A5: I.D. Number | B5: Category | C5: Type | D5: Size | E5: Description | F5: Location | G5: Installation Year | H5: Installation Estimated? | I5: Current Condition | J5: Repair and Maintenance History | K5: Estimated Year of Failure | L5: Life Expectancy
A6: =IF('CoF and PoF'!C2="--","",'CoF and PoF'!C2) -> TaEl-1994-1 | B6: Tank | C6: Elevated Storage Tank | D6: 100,000 Gallon | E6: Tank | F6: Eastport | G6: 1994 | I6: Fair | J6: Needs Paining | K6: =IF(Table13[[#This Row],[I.D. Number ]]="","",IF(Table13[[#This Row],[Installation Year]]="","",('Life Expectancy and Criticality'!$V3+Table13[[#This Row],[Installation Year]]))) -> 2019 | L6: =IF(Table13[[#This Row],[I.D. Number ]]="","",(IF('Life Expectancy and Criticality'!$V3-(YEAR(TODAY())-Table13[[#This Row],[Installation Year]])<0,0,'Life Expectancy and Criticality'!$V3-(YEAR(TODAY())-Table13[[#This Row],[Installation Year]])))) -> 0 | N6: FALSE
A7: =IF('CoF and PoF'!C3="--","",'CoF and PoF'!C3) -> TaEl-1994-2 | B7: Tank | C7: Elevated Storage Tank | D7: 100,000 Gallon | E7: Tank | F7: Snowdown | G7: 1994 | I7: Fair | J7: Needs Painting | K7: =IF(Table13[[#This Row],[I.D. Number ]]="","",IF(Table13[[#This Row],[Installation Year]]="","",('Life Expectancy and Criticality'!$V4+Table13[[#This Row],[Installation Year]]))) -> 2019 | L7: =IF(Table13[[#This Row],[I.D. Number ]]="","",(IF('Life Expectancy and Criticality'!$V4-(YEAR(TODAY())-Table13[[#This Row],[Installation Year]])<0,0,'Life Expectancy and Criticality'!$V4-(YEAR(TODAY())-Table13[[#This Row],[Installation Year]])))) -> 0 | N7: FALSE
A8: =IF('CoF and PoF'!C4="--","",'CoF and PoF'!C4) -> PiPV-1970-1 | B8: Pipe | C8: PVC | D8: 6" | E8: 68662 linear feet | F8: System Wide | G8: 1970 | I8: Fair | K8: =IF(Table13[[#This Row],[I.D. Number ]]="","",IF(Table13[[#This Row],[Installation Year]]="","",('Life Expectancy and Criticality'!$V5+Table13[[#This Row],[Installation Year]]))) -> 2010 | L8: =IF(Table13[[#This Row],[I.D. Number ]]="","",(IF('Life Expectancy and Criticality'!$V5-(YEAR(TODAY())-Table13[[#This Row],[Installation Year]])<0,0,'Life Expectancy and Criticality'!$V5-(YEAR(TODAY())-Table13[[#This Row],[Installation Year]])))) -> 0 | N8: FALSE
A9: =IF('CoF and PoF'!C5="--","",'CoF and PoF'!C5) -> PiPV-1970-2 | B9: Pipe | C9: PVC | D9: 4" | E9: 39651 linear feet | F9: System Wide | G9: 1970 | I9: Fair | K9: =IF(Table13[[#This Row],[I.D. Number ]]="","",IF(Table13[[#This Row],[Installation Year]]="","",('Life Expectancy and Criticality'!$V6+Table13[[#This Row],[Installation Year]]))) -> 2010 | L9: =IF(Table13[[#This Row],[I.D. Number ]]="","",(IF('Life Expectancy and Criticality'!$V6-(YEAR(TODAY())-Table13[[#This Row],[Installation Year]])<0,0,'Life Expectancy and Criticality'!$V6-(YEAR(TODAY())-Table13[[#This Row],[Installation Year]])))) -> 0 | N9: FALSE
A10: =IF('CoF and PoF'!C6="--","",'CoF and PoF'!C6) -> PiPV-2011-1 | B10: Pipe | C10: PVC | D10: 6" | E10: 36,960 linear feet | F10: System Wide | G10: 2011 | I10: Fair | K10: =IF(Table13[[#This Row],[I.D. Number ]]="","",IF(Table13[[#This Row],[Installation Year]]="","",('Life Expectancy and Criticality'!$V7+Table13[[#This Row],[Installation Year]]))) -> 2051 | L10: =IF(Table13[[#This Row],[I.D. Number ]]="","",(IF('Life Expectancy and Criticality'!$V7-(YEAR(TODAY())-Table13[[#This Row],[Installation Year]])<0,0,'Life Expectancy and Criticality'!$V7-(YEAR(TODAY())-Table13[[#This Row],[Installation Year]])))) -> 27 | N10: FALSE
A11: =IF('CoF and PoF'!C7="--","",'CoF and PoF'!C7) -> PiPV-1970-3 | B11: Pipe | C11: PVC | D11: 2" | E11: 24,923 linear feet | F11: System Wide | G11: 1970 | I11: Fair | K11: =IF(Table13[[#This Row],[I.D. Number ]]="","",IF(Table13[[#This Row],[Installation Year]]="","",('Life Expectancy and Criticality'!$V8+Table13[[#This Row],[Installation Year]]))) -> 2010 | L11: =IF(Table13[[#This Row],[I.D. Number ]]="","",(IF('Life Expectancy and Criticality'!$V8-(YEAR(TODAY())-Table13[[#This Row],[Installation Year]])<0,0,'Life Expectancy and Criticality'!$V8-(YEAR(TODAY())-Table13[[#This Row],[Installation Year]])))) -> 0 | N11: FALSE
A12: =IF('CoF and PoF'!C8="--","",'CoF and PoF'!C8) -> PiPV-1970-4 | B12: Pipe | C12: PVC | D12: 3" | E12: 2,292 linear feet | F12: System Wide | G12: 1970 | I12: Fair | K12: =IF(Table13[[#This Row],[I.D. Number ]]="","",IF(Table13[[#This Row],[Installation Year]]="","",('Life Expectancy and Criticality'!$V9+Table13[[#This Row],[Installation Year]]))) -> 2010 | L12: =IF(Table13[[#This Row],[I.D. Number ]]="","",(IF('Life Expectancy and Criticality'!$V9-(YEAR(TODAY())-Table13[[#This Row],[Installation Year]])<0,0,'Life Expectancy and Criticality'!$V9-(YEAR(TODAY())-Table13[[#This Row],[Installation Year]])))) -> 0 | N12: FALSE
A13: =IF('CoF and PoF'!C9="--","",'CoF and PoF'!C9) -> PiPV-1994-1 | B13: Pipe | C13: PVC | D13: 4" | E13: 31500 linrar feet | F13: System Wide | G13: 1994 | I13: Fair | K13: =IF(Table13[[#This Row],[I.D. Number ]]="","",IF(Table13[[#This Row],[Installation Year]]="","",('Life Expectancy and Criticality'!$V10+Table13[[#This Row],[Installation Year]]))) -> 2034 | L13: =IF(Table13[[#This Row],[I.D. Number ]]="","",(IF('Life Expectancy and Criticality'!$V10-(YEAR(TODAY())-Table13[[#This Row],[Installation Year]])<0,0,'Life Expectancy and Criticality'!$V10-(YEAR(TODAY())-Table13[[#This Row],[Installation Year]])))) -> 10 | N13: FALSE
A14: =IF('CoF and PoF'!C10="--","",'CoF and PoF'!C10) -> PiPV-1994-2 | B14: Pipe | C14: PVC | D14: 6" | E14: 74550 linear feet | F14: System Wide | G14: 1994 | I14: Fair | K14: =IF(Table13[[#This Row],[I.D. Number ]]="","",IF(Table13[[#This Row],[Installation Year]]="","",('Life Expectancy and Criticality'!$V11+Table13[[#This Row],[Installation Year]]))) -> 2034 | L14: =IF(Table13[[#This Row],[I.D. Number ]]="","",(IF('Life Expectancy and Criticality'!$V11-(YEAR(TODAY())-Table13[[#This Row],[Installation Year]])<0,0,'Life Expectancy and Criticality'!$V11-(YEAR(TODAY())-Table13[[#This Row],[Installation Year]])))) -> 10 | N14: FALSE
A15: =IF('CoF and PoF'!C11="--","",'CoF and PoF'!C11) -> PiPV-1994-3 | B15: Pipe | C15: PVC | D15: 8" | E15: 29,399 linear feet | F15: System Wide | G15: 1994 | I15: Fair | K15: =IF(Table13[[#This Row],[I.D. Number ]]="","",IF(Table13[[#This Row],[Installation Year]]="","",('Life Expectancy and Criticality'!$V12+Table13[[#This Row],[Installation Year]]))) -> 2034 | L15: =IF(Table13[[#This Row],[I.D. Number ]]="","",(IF('Life Expectancy and Criticality'!$V12-(YEAR(TODAY())-Table13[[#This Row],[Installation Year]])<0,0,'Life Expectancy and Criticality'!$V12-(YEAR(TODAY())-Table13[[#This Row],[Installation Year]])))) -> 10
A16: =IF('CoF and PoF'!C12="--","",'CoF and PoF'!C12) -> PiPV-1994-4 | B16: Pipe | C16: PVC | D16: 10" | E16: 5,713 linear feet | F16: System Wide | G16: 1994 | I16: Fair | K16: =IF(Table13[[#This Row],[I.D. Number ]]="","",IF(Table13[[#This Row],[Installation Year]]="","",('Life Expectancy and Criticality'!$V13+Table13[[#This Row],[Installation Year]]))) -> 2034 | L16: =IF(Table13[[#This Row],[I.D. Number ]]="","",(IF('Life Expectancy and Criticality'!$V13-(YEAR(TODAY())-Table13[[#This Row],[Installation Year]])<0,0,'Life Expectancy and Criticality'!$V13-(YEAR(TODAY())-Table13[[#This Row],[Installation Year]])))) -> 10 | N16: FALSE
A17: =IF('CoF and PoF'!C13="--","",'CoF and PoF'!C13) -> PiPV-1994-5 | B17: Pipe | C17: PVC | D17: 12" | E17: 40,940 linear feet | F17: System Wide | G17: 1994 | I17: Fair | K17: =IF(Table13[[#This Row],[I.D. Number ]]="","",IF(Table13[[#This Row],[Installation Year]]="","",('Life Expectancy and Criticality'!$V14+Table13[[#This Row],[Installation Year]]))) -> 2034 | L17: =IF(Table13[[#This Row],[I.D. Number ]]="","",(IF('Life Expectancy and Criticality'!$V14-(YEAR(TODAY())-Table13[[#This Row],[Installation Year]])<0,0,'Life Expectancy and Criticality'!$V14-(YEAR(TODAY())-Table13[[#This Row],[Installation Year]])))) -> 10 | N17: FALSE
A18: =IF('CoF and PoF'!C14="--","",'CoF and PoF'!C14) -> HyFi-1994-1 | B18: Hydrant | C18: Fire | E18: 24 each | F18: System Wide | G18: 1994 | I18: Good | K18: =IF(Table13[[#This Row],[I.D. Number ]]="","",IF(Table13[[#This Row],[Installation Year]]="","",('Life Expectancy and Criticality'!$V15+Table13[[#This Row],[Installation Year]]))) -> 2034 | L18: =IF(Table13[[#This Row],[I.D. Number ]]="","",(IF('Life Expectancy and Criticality'!$V15-(YEAR(TODAY())-Table13[[#This Row],[Installation Year]])<0,0,'Life Expectancy and Criticality'!$V15-(YEAR(TODAY())-Table13[[#This Row],[Installation Year]])))) -> 10 | N18: TRUE
A19: =IF('CoF and PoF'!C15="--","",'CoF and PoF'!C15) -> SoWe-2021-1 | B19: Source | C19: Well | E19: Well 1 | F19: CR 473 | G19: 2021 | I19: Great | K19: =IF(Table13[[#This Row],[I.D. Number ]]="","",IF(Table13[[#This Row],[Installation Year]]="","",('Life Expectancy and Criticality'!$V16+Table13[[#This Row],[Installation Year]]))) -> 2071 | L19: =IF(Table13[[#This Row],[I.D. Number ]]="","",(IF('Life Expectancy and Criticality'!$V16-(YEAR(TODAY())-Table13[[#This Row],[Installation Year]])<0,0,'Life Expectancy and Criticality'!$V16-(YEAR(TODAY())-Table13[[#This Row],[Installation Year]])))) -> 47
A20: =IF('CoF and PoF'!C16="--","",'CoF and PoF'!C16) -> SoWe-2021-2 | B20: Source | C20: Well | E20: Well 2 | F20: CR 473 | G20: 2021 | I20: Great | K20: =IF(Table13[[#This Row],[I.D. Number ]]="","",IF(Table13[[#This Row],[Installation Year]]="","",('Life Expectancy and Criticality'!$V17+Table13[[#This Row],[Installation Year]]))) -> 2071 | L20: =IF(Table13[[#This Row],[I.D. Number ]]="","",(IF('Life Expectancy and Criticality'!$V17-(YEAR(TODAY())-Table13[[#This Row],[Installation Year]])<0,0,'Life Expectancy and Criticality'!$V17-(YEAR(TODAY())-Table13[[#This Row],[Installation Year]])))) -> 47
A21: =IF('CoF and PoF'!C17="--","",'CoF and PoF'!C17) -> PuTr-2021-1 | B21: Pump | C21: Transfer | D21: 600 GPM | E21: Well 1 Pump | F21: CR 473 | G21: 2021 | I21: Great | K21: =IF(Table13[[#This Row],[I.D. Number ]]="","",IF(Table13[[#This Row],[Installation Year]]="","",('Life Expectancy and Criticality'!$V18+Table13[[#This Row],[Installation Year]]))) -> 2036 | L21: =IF(Table13[[#This Row],[I.D. Number ]]="","",(IF('Life Expectancy and Criticality'!$V18-(YEAR(TODAY())-Table13[[#This Row],[Installation Year]])<0,0,'Life Expectancy and Criticality'!$V18-(YEAR(TODAY())-Table13[[#This Row],[Installation Year]])))) -> 12
A22: =IF('CoF and PoF'!C18="--","",'CoF and PoF'!C18) -> PuTr-2021-2 | B22: Pump | C22: Transfer | D22: 600 GPM | E22: Well 2 Pump | F22: Cr 473 | G22: 2021 | I22: Great | K22: =IF(Table13[[#This Row],[I.D. Number ]]="","",IF(Table13[[#This Row],[Installation Year]]="","",('Life Expectancy and Criticality'!$V19+Table13[[#This Row],[Installation Year]]))) -> 2036 | L22: =IF(Table13[[#This Row],[I.D. Number ]]="","",(IF('Life Expectancy and Criticality'!$V19-(YEAR(TODAY())-Table13[[#This Row],[Installation Year]])<0,0,'Life Expectancy and Criticality'!$V19-(YEAR(TODAY())-Table13[[#This Row],[Installation Year]])))) -> 12
A23: =IF('CoF and PoF'!C19="--","",'CoF and PoF'!C19) -> MeWe-2021-1 | B23: Meter | C23: Well | E23: Master Meter, Well 1 | F23: Cr 473 | G23: 2021 | I23: Great | K23: =IF(Table13[[#This Row],[I.D. Number ]]="","",IF(Table13[[#This Row],[Installation Year]]="","",('Life Expectancy and Criticality'!$V20+Table13[[#This Row],[Installation Year]]))) -> 2036 | L23: =IF(Table13[[#This Row],[I.D. Number ]]="","",(IF('Life Expectancy and Criticality'!$V20-(YEAR(TODAY())-Table13[[#This Row],[Installation Year]])<0,0,'Life Expectancy and Criticality'!$V20-(YEAR(TODAY())-Table13[[#This Row],[Installation Year]])))) -> 12 | N23: FALSE
A24: =IF('CoF and PoF'!C20="--","",'CoF and PoF'!C20) -> MeWe-2021-2 | B24: Meter | C24: Well | E24: Master Meter, Well 2 | F24: CR 473 | G24: 2021 | I24: Great | K24: =IF(Table13[[#This Row],[I.D. Number ]]="","",IF(Table13[[#This Row],[Installation Year]]="","",('Life Expectancy and Criticality'!$V21+Table13[[#This Row],[Installation Year]]))) -> 2036 | L24: =IF(Table13[[#This Row],[I.D. Number ]]="","",(IF('Life Expectancy and Criticality'!$V21-(YEAR(TODAY())-Table13[[#This Row],[Installation Year]])<0,0,'Life Expectancy and Criticality'!$V21-(YEAR(TODAY())-Table13[[#This Row],[Installation Year]])))) -> 12 | N24: FALSE
A25: =IF('CoF and PoF'!C21="--","",'CoF and PoF'!C21) -> WTP-2022-1 | B25: Building | C25: Treatment Plant | E25: 400 Sq Ft Treatment Plant Room | F25: Cr 473 | G25: 2022 | I25: Great | K25: =IF(Table13[[#This Row],[I.D. Number ]]="","",IF(Table13[[#This Row],[Installation Year]]="","",('Life Expectancy and Criticality'!$V22+Table13[[#This Row],[Installation Year]]))) -> 2072 | L25: =IF(Table13[[#This Row],[I.D. Number ]]="","",(IF('Life Expectancy and Criticality'!$V22-(YEAR(TODAY())-Table13[[#This Row],[Installation Year]])<0,0,'Life Expectancy and Criticality'!$V22-(YEAR(TODAY())-Table13[[#This Row],[Installation Year]])))) -> 48 | N25: FALSE
A26: =IF('CoF and PoF'!C22="--","",'CoF and PoF'!C22) -> TaCl-2022-1 | B26: Tank | C26: Clear Well | D26: 30,000 Gallon | E26: Water Treatment Clear well | F26: CR 473 | G26: 2022 | I26: Great | K26: =IF(Table13[[#This Row],[I.D. Number ]]="","",IF(Table13[[#This Row],[Installation Year]]="","",('Life Expectancy and Criticality'!$V23+Table13[[#This Row],[Installation Year]]))) -> 2072 | L26: =IF(Table13[[#This Row],[I.D. Number ]]="","",(IF('Life Expectancy and Criticality'!$V23-(YEAR(TODAY())-Table13[[#This Row],[Installation Year]])<0,0,'Life Expectancy and Criticality'!$V23-(YEAR(TODAY())-Table13[[#This Row],[Installation Year]])))) -> 48 | N26: FALSE
A27: =IF('CoF and PoF'!C23="--","",'CoF and PoF'!C23) -> PuHi-2022-1 | B27: Pump | C27: High Service | D27: 600 GPM | E27: Vertical Turbine | F27: CR 473 | G27: 2022 | I27: Great | K27: =IF(Table13[[#This Row],[I.D. Number ]]="","",IF(Table13[[#This Row],[Installation Year]]="","",('Life Expectancy and Criticality'!$V24+Table13[[#This Row],[Installation Year]]))) -> 2037 | L27: =IF(Table13[[#This Row],[I.D. Number ]]="","",(IF('Life Expectancy and Criticality'!$V24-(YEAR(TODAY())-Table13[[#This Row],[Installation Year]])<0,0,'Life Expectancy and Criticality'!$V24-(YEAR(TODAY())-Table13[[#This Row],[Installation Year]])))) -> 13 | N27: FALSE
A28: =IF('CoF and PoF'!C24="--","",'CoF and PoF'!C24) -> PuHi-2022-2 | B28: Pump | C28: High Service | D28: 600 GPM | E28: Vertical Turbine | F28: CR 473 | G28: 2022 | I28: Great | K28: =IF(Table13[[#This Row],[I.D. Number ]]="","",IF(Table13[[#This Row],[Installation Year]]="","",('Life Expectancy and Criticality'!$V25+Table13[[#This Row],[Installation Year]]))) -> 2037 | L28: =IF(Table13[[#This Row],[I.D. Number ]]="","",(IF('Life Expectancy and Criticality'!$V25-(YEAR(TODAY())-Table13[[#This Row],[Installation Year]])<0,0,'Life Expectancy and Criticality'!$V25-(YEAR(TODAY())-Table13[[#This Row],[Installation Year]])))) -> 13 | N28: FALSE
A29: =IF('CoF and PoF'!C25="--","",'CoF and PoF'!C25) -> CoTe-2022-1 | B29: Control | C29: Telemetry | E29: Plant Control Panel | F29: CR 473 | G29: 2022 | I29: Great | K29: =IF(Table13[[#This Row],[I.D. Number ]]="","",IF(Table13[[#This Row],[Installation Year]]="","",('Life Expectancy and Criticality'!$V26+Table13[[#This Row],[Installation Year]]))) -> 2037 | L29: =IF(Table13[[#This Row],[I.D. Number ]]="","",(IF('Life Expectancy and Criticality'!$V26-(YEAR(TODAY())-Table13[[#This Row],[Installation Year]])<0,0,'Life Expectancy and Criticality'!$V26-(YEAR(TODAY())-Table13[[#This Row],[Installation Year]])))) -> 13 | N29: FALSE
A30: =IF('CoF and PoF'!C26="--","",'CoF and PoF'!C26) -> CoTe-2022-2 | B30: Control | C30: Telemetry | E30: Electrical Control Panel | F30: CR 473 | G30: 2022 | I30: Great | K30: =IF(Table13[[#This Row],[I.D. Number ]]="","",IF(Table13[[#This Row],[Installation Year]]="","",('Life Expectancy and Criticality'!$V27+Table13[[#This Row],[Installation Year]]))) -> 2037 | L30: =IF(Table13[[#This Row],[I.D. Number ]]="","",(IF('Life Expectancy and Criticality'!$V27-(YEAR(TODAY())-Table13[[#This Row],[Installation Year]])<0,0,'Life Expectancy and Criticality'!$V27-(YEAR(TODAY())-Table13[[#This Row],[Installation Year]])))) -> 13 | N30: FALSE
A31: =IF('CoF and PoF'!C27="--","",'CoF and PoF'!C27) -> TrSe-2022-1 | B31: Treatment | C31: Sedimentation | E31: Sediment Pond | F31: CR 473 | G31: 2022 | I31: Great | K31: =IF(Table13[[#This Row],[I.D. Number ]]="","",IF(Table13[[#This Row],[Installation Year]]="","",('Life Expectancy and Criticality'!$V28+Table13[[#This Row],[Installation Year]]))) -> 2042 | L31: =IF(Table13[[#This Row],[I.D. Number ]]="","",(IF('Life Expectancy and Criticality'!$V28-(YEAR(TODAY())-Table13[[#This Row],[Installation Year]])<0,0,'Life Expectancy and Criticality'!$V28-(YEAR(TODAY())-Table13[[#This Row],[Installation Year]])))) -> 18 | N31: FALSE
A32: =IF('CoF and PoF'!C28="--","",'CoF and PoF'!C28) -> SaFe-2022-1 | B32: Safety | C32: Fencing | E32: Chain Link Fencing | F32: CR 473 | G32: 2022 | I32: Great | K32: =IF(Table13[[#This Row],[I.D. Number ]]="","",IF(Table13[[#This Row],[Installation Year]]="","",('Life Expectancy and Criticality'!$V29+Table13[[#This Row],[Installation Year]]))) -> 2032 | L32: =IF(Table13[[#This Row],[I.D. Number ]]="","",(IF('Life Expectancy and Criticality'!$V29-(YEAR(TODAY())-Table13[[#This Row],[Installation Year]])<0,0,'Life Expectancy and Criticality'!$V29-(YEAR(TODAY())-Table13[[#This Row],[Installation Year]])))) -> 8 | N32: FALSE
A33: =IF('CoF and PoF'!C29="--","",'CoF and PoF'!C29) -> TrCh-2022-1 | B33: Treatment | C33: Chlorination | E33: Chlorination System | F33: CR 473 | G33: 2022 | I33: Great | K33: =IF(Table13[[#This Row],[I.D. Number ]]="","",IF(Table13[[#This Row],[Installation Year]]="","",('Life Expectancy and Criticality'!$V30+Table13[[#This Row],[Installation Year]]))) -> 2042 | L33: =IF(Table13[[#This Row],[I.D. Number ]]="","",(IF('Life Expectancy and Criticality'!$V30-(YEAR(TODAY())-Table13[[#This Row],[Installation Year]])<0,0,'Life Expectancy and Criticality'!$V30-(YEAR(TODAY())-Table13[[#This Row],[Installation Year]])))) -> 18 | N33: FALSE
A34: =IF('CoF and PoF'!C30="--","",'CoF and PoF'!C30) -> TrFi-2022-1 | B34: Treatment | C34: Filtration | D34: 10" Dia | E34: Qty 3 Pressure Filter | F34: CR 473 | G34: 2022 | I34: Great | K34: =IF(Table13[[#This Row],[I.D. Number ]]="","",IF(Table13[[#This Row],[Installation Year]]="","",('Life Expectancy and Criticality'!$V31+Table13[[#This Row],[Installation Year]]))) -> 2042 | L34: =IF(Table13[[#This Row],[I.D. Number ]]="","",(IF('Life Expectancy and Criticality'!$V31-(YEAR(TODAY())-Table13[[#This Row],[Installation Year]])<0,0,'Life Expectancy and Criticality'!$V31-(YEAR(TODAY())-Table13[[#This Row],[Installation Year]])))) -> 18 | N34: FALSE
A35: =IF('CoF and PoF'!C31="--","",'CoF and PoF'!C31) -> TrFi-2022-2 | B35: Treatment | C35: Filtration | E35: Cascade Aerator | F35: CR 473 | G35: 2022 | I35: Great | K35: =IF(Table13[[#This Row],[I.D. Number ]]="","",IF(Table13[[#This Row],[Installation Year]]="","",('Life Expectancy and Criticality'!$V32+Table13[[#This Row],[Installation Year]]))) -> 2042 | L35: =IF(Table13[[#This Row],[I.D. Number ]]="","",(IF('Life Expectancy and Criticality'!$V32-(YEAR(TODAY())-Table13[[#This Row],[Installation Year]])<0,0,'Life Expectancy and Criticality'!$V32-(YEAR(TODAY())-Table13[[#This Row],[Installation Year]])))) -> 18 | N35: FALSE
A36: =IF('CoF and PoF'!C32="--","",'CoF and PoF'!C32) -> PuMe-2022-1 | B36: Pump | C36: Metering | E36: Phosphate Feed Pump | F36: CR 473 | G36: 2022 | I36: Great | K36: =IF(Table13[[#This Row],[I.D. Number ]]="","",IF(Table13[[#This Row],[Installation Year]]="","",('Life Expectancy and Criticality'!$V33+Table13[[#This Row],[Installation Year]]))) -> 2037 | L36: =IF(Table13[[#This Row],[I.D. Number ]]="","",(IF('Life Expectancy and Criticality'!$V33-(YEAR(TODAY())-Table13[[#This Row],[Installation Year]])<0,0,'Life Expectancy and Criticality'!$V33-(YEAR(TODAY())-Table13[[#This Row],[Installation Year]])))) -> 13
A37: =IF('CoF and PoF'!C33="--","",'CoF and PoF'!C33) -> PuMe-2022-2 | B37: Pump | C37: Metering | E37: Caustic Feed Pump | F37: CR 473 | G37: 2022 | I37: Great | K37: =IF(Table13[[#This Row],[I.D. Number ]]="","",IF(Table13[[#This Row],[Installation Year]]="","",('Life Expectancy and Criticality'!$V34+Table13[[#This Row],[Installation Year]]))) -> 2037 | L37: =IF(Table13[[#This Row],[I.D. Number ]]="","",(IF('Life Expectancy and Criticality'!$V34-(YEAR(TODAY())-Table13[[#This Row],[Installation Year]])<0,0,'Life Expectancy and Criticality'!$V34-(YEAR(TODAY())-Table13[[#This Row],[Installation Year]])))) -> 13 | N37: FALSE
A38: =IF('CoF and PoF'!C34="--","",'CoF and PoF'!C34) -> PuMe-2022-3 | B38: Pump | C38: Metering | E38: Pot Perm Feed Pump | F38: CR 473 | G38: 2022 | I38: Great | K38: =IF(Table13[[#This Row],[I.D. Number ]]="","",IF(Table13[[#This Row],[Installation Year]]="","",('Life Expectancy and Criticality'!$V35+Table13[[#This Row],[Installation Year]]))) -> 2037 | L38: =IF(Table13[[#This Row],[I.D. Number ]]="","",(IF('Life Expectancy and Criticality'!$V35-(YEAR(TODAY())-Table13[[#This Row],[Installation Year]])<0,0,'Life Expectancy and Criticality'!$V35-(YEAR(TODAY())-Table13[[#This Row],[Installation Year]])))) -> 13
A39: =IF('CoF and PoF'!C35="--","",'CoF and PoF'!C35) -> MeSo-2022-1 | B39: Meter | C39: Source | E39: Tank Meter Controller | F39: CR 473 | G39: 2022 | I39: Good | K39: =IF(Table13[[#This Row],[I.D. Number ]]="","",IF(Table13[[#This Row],[Installation Year]]="","",('Life Expectancy and Criticality'!$V36+Table13[[#This Row],[Installation Year]]))) -> 2034 | L39: =IF(Table13[[#This Row],[I.D. Number ]]="","",(IF('Life Expectancy and Criticality'!$V36-(YEAR(TODAY())-Table13[[#This Row],[Installation Year]])<0,0,'Life Expectancy and Criticality'!$V36-(YEAR(TODAY())-Table13[[#This Row],[Installation Year]])))) -> 10 | N39: FALSE
A40: =IF('CoF and PoF'!C36="--","",'CoF and PoF'!C36) -> HyFi-2022-1 | B40: Hydrant | C40: Fire | E40: Fire Hydrant | F40: Treatment Plant | G40: 2022 | I40: Great | K40: =IF(Table13[[#This Row],[I.D. Number ]]="","",IF(Table13[[#This Row],[Installation Year]]="","",('Life Expectancy and Criticality'!$V37+Table13[[#This Row],[Installation Year]]))) -> 2072 | L40: =IF(Table13[[#This Row],[I.D. Number ]]="","",(IF('Life Expectancy and Criticality'!$V37-(YEAR(TODAY())-Table13[[#This Row],[Installation Year]])<0,0,'Life Expectancy and Criticality'!$V37-(YEAR(TODAY())-Table13[[#This Row],[Installation Year]])))) -> 48 | N40: FALSE
A41: =IF('CoF and PoF'!C37="--","",'CoF and PoF'!C37) -> PiPV-2024-1 | B41: Pipe | C41: PVC | D41: 8" | E41: HDPE, DR11, 200 psi, 4545 linear feet | F41: X-COUNTRY | G41: 2024 | I41: Great | K41: =IF(Table13[[#This Row],[I.D. Number ]]="","",IF(Table13[[#This Row],[Installation Year]]="","",('Life Expectancy and Criticality'!$V38+Table13[[#This Row],[Installation Year]]))) -> 2104 | L41: =IF(Table13[[#This Row],[I.D. Number ]]="","",(IF('Life Expectancy and Criticality'!$V38-(YEAR(TODAY())-Table13[[#This Row],[Installation Year]])<0,0,'Life Expectancy and Criticality'!$V38-(YEAR(TODAY())-Table13[[#This Row],[Installation Year]])))) -> 80
A42: =IF('CoF and PoF'!C38="--","",'CoF and PoF'!C38) -> PiPV-2024-2 | B42: Pipe | C42: PVC | D42: 6" | E42: HDPE, DR11, 200 psi, 4820 linear feet | F42: CR956 | G42: 2024 | I42: Great | K42: =IF(Table13[[#This Row],[I.D. Number ]]="","",IF(Table13[[#This Row],[Installation Year]]="","",('Life Expectancy and Criticality'!$V39+Table13[[#This Row],[Installation Year]]))) -> 2104 | L42: =IF(Table13[[#This Row],[I.D. Number ]]="","",(IF('Life Expectancy and Criticality'!$V39-(YEAR(TODAY())-Table13[[#This Row],[Installation Year]])<0,0,'Life Expectancy and Criticality'!$V39-(YEAR(TODAY())-Table13[[#This Row],[Installation Year]])))) -> 80 | N42: FALSE
A43: =IF('CoF and PoF'!C39="--","",'CoF and PoF'!C39) -> PiPV-2024-3 | B43: Pipe | C43: PVC | D43: 10" | E43: HDPE, DR11, 200 psi, 10,400 linear feet | F43: CR956 | G43: 2024 | I43: Great | K43: =IF(Table13[[#This Row],[I.D. Number ]]="","",IF(Table13[[#This Row],[Installation Year]]="","",('Life Expectancy and Criticality'!$V40+Table13[[#This Row],[Installation Year]]))) -> 2104 | L43: =IF(Table13[[#This Row],[I.D. Number ]]="","",(IF('Life Expectancy and Criticality'!$V40-(YEAR(TODAY())-Table13[[#This Row],[Installation Year]])<0,0,'Life Expectancy and Criticality'!$V40-(YEAR(TODAY())-Table13[[#This Row],[Installation Year]])))) -> 80
A44: =IF('CoF and PoF'!C40="--","",'CoF and PoF'!C40) -> HyFi-2024-1 | B44: Hydrant | C44: Fire | E44: Qty 5 Fire Hydrants | F44: CR956 | G44: 2024 | I44: Great | K44: =IF(Table13[[#This Row],[I.D. Number ]]="","",IF(Table13[[#This Row],[Installation Year]]="","",('Life Expectancy and Criticality'!$V41+Table13[[#This Row],[Installation Year]]))) -> 2074 | L44: =IF(Table13[[#This Row],[I.D. Number ]]="","",(IF('Life Expectancy and Criticality'!$V41-(YEAR(TODAY())-Table13[[#This Row],[Installation Year]])<0,0,'Life Expectancy and Criticality'!$V41-(YEAR(TODAY())-Table13[[#This Row],[Installation Year]])))) -> 50 | N44: FALSE
A45: =IF('CoF and PoF'!C41="--","",'CoF and PoF'!C41) -> MeMa-2024-1 | B45: Meter | C45: Master | E45: Assembly 1, 2, 9 and 10 - Qty 4 | F45: UNION HARBER, MILL CREEK,X-COUNTRY, X-COUNTRY | G45: 2024 | I45: Great | K45: =IF(Table13[[#This Row],[I.D. Number ]]="","",IF(Table13[[#This Row],[Installation Year]]="","",('Life Expectancy and Criticality'!$V42+Table13[[#This Row],[Installation Year]]))) -> 2039 | L45: =IF(Table13[[#This Row],[I.D. Number ]]="","",(IF('Life Expectancy and Criticality'!$V42-(YEAR(TODAY())-Table13[[#This Row],[Installation Year]])<0,0,'Life Expectancy and Criticality'!$V42-(YEAR(TODAY())-Table13[[#This Row],[Installation Year]])))) -> 15
A46: =IF('CoF and PoF'!C42="--","",'CoF and PoF'!C42) -> MeMa-2024-2 | B46: Meter | C46: Master | E46: Assembly 3 - Qty 1 | F46: MILL CREEK #2 | G46: 2024 | I46: Great | K46: =IF(Table13[[#This Row],[I.D. Number ]]="","",IF(Table13[[#This Row],[Installation Year]]="","",('Life Expectancy and Criticality'!$V43+Table13[[#This Row],[Installation Year]]))) -> 2039 | L46: =IF(Table13[[#This Row],[I.D. Number ]]="","",(IF('Life Expectancy and Criticality'!$V43-(YEAR(TODAY())-Table13[[#This Row],[Installation Year]])<0,0,'Life Expectancy and Criticality'!$V43-(YEAR(TODAY())-Table13[[#This Row],[Installation Year]])))) -> 15
A47: =IF('CoF and PoF'!C43="--","",'CoF and PoF'!C43) -> MeMa-2024-3 | B47: Meter | C47: Master | E47: Assembly 4 & 6 - Qty 2 | F47: WINBUSH HOLLOW, SNOWDOWN TANK | G47: 2024 | I47: Great | K47: =IF(Table13[[#This Row],[I.D. Number ]]="","",IF(Table13[[#This Row],[Installation Year]]="","",('Life Expectancy and Criticality'!$V44+Table13[[#This Row],[Installation Year]]))) -> 2039 | L47: =IF(Table13[[#This Row],[I.D. Number ]]="","",(IF('Life Expectancy and Criticality'!$V44-(YEAR(TODAY())-Table13[[#This Row],[Installation Year]])<0,0,'Life Expectancy and Criticality'!$V44-(YEAR(TODAY())-Table13[[#This Row],[Installation Year]])))) -> 15
A48: =IF('CoF and PoF'!C44="--","",'CoF and PoF'!C44) -> MeMa-2024-4 | B48: Meter | C48: Master | E48: Assembly 5 & 19 - Qty 2 | F48: INDIAN CREEK#1 AND INDIAN CREEK #2 | G48: 2024 | I48: Great | K48: =IF(Table13[[#This Row],[I.D. Number ]]="","",IF(Table13[[#This Row],[Installation Year]]="","",('Life Expectancy and Criticality'!$V45+Table13[[#This Row],[Installation Year]]))) -> 2039 | L48: =IF(Table13[[#This Row],[I.D. Number ]]="","",(IF('Life Expectancy and Criticality'!$V45-(YEAR(TODAY())-Table13[[#This Row],[Installation Year]])<0,0,'Life Expectancy and Criticality'!$V45-(YEAR(TODAY())-Table13[[#This Row],[Installation Year]])))) -> 15 | N48: FALSE
A49: =IF('CoF and PoF'!C45="--","",'CoF and PoF'!C45) -> MeMa-2024-5 | B49: Meter | C49: Master | E49: Assembly 7 - Qty 1 | F49: SNOWDOWN MAIN FEED LINE | G49: 2024 | I49: Great | K49: =IF(Table13[[#This Row],[I.D. Number ]]="","",IF(Table13[[#This Row],[Installation Year]]="","",('Life Expectancy and Criticality'!$V46+Table13[[#This Row],[Installation Year]]))) -> 2039 | L49: =IF(Table13[[#This Row],[I.D. Number ]]="","",(IF('Life Expectancy and Criticality'!$V46-(YEAR(TODAY())-Table13[[#This Row],[Installation Year]])<0,0,'Life Expectancy and Criticality'!$V46-(YEAR(TODAY())-Table13[[#This Row],[Installation Year]])))) -> 15
A50: =IF('CoF and PoF'!C46="--","",'CoF and PoF'!C46) -> MeMa-2024-6 | B50: Meter | C50: Master | E50: Assembly 8 - Qty 1 | F50: CR 956 | G50: 2024 | I50: Great | K50: =IF(Table13[[#This Row],[I.D. Number ]]="","",IF(Table13[[#This Row],[Installation Year]]="","",('Life Expectancy and Criticality'!$V47+Table13[[#This Row],[Installation Year]]))) -> 2039 | L50: =IF(Table13[[#This Row],[I.D. Number ]]="","",(IF('Life Expectancy and Criticality'!$V47-(YEAR(TODAY())-Table13[[#This Row],[Installation Year]])<0,0,'Life Expectancy and Criticality'!$V47-(YEAR(TODAY())-Table13[[#This Row],[Installation Year]])))) -> 15
A51: =IF('CoF and PoF'!C47="--","",'CoF and PoF'!C47) -> MeMa-2024-7 | B51: Meter | C51: Master | E51: Assembly 11 - Qty 1 | F51: OASIS | G51: 2024 | I51: Great | K51: =IF(Table13[[#This Row],[I.D. Number ]]="","",IF(Table13[[#This Row],[Installation Year]]="","",('Life Expectancy and Criticality'!$V48+Table13[[#This Row],[Installation Year]]))) -> 2039 | L51: =IF(Table13[[#This Row],[I.D. Number ]]="","",(IF('Life Expectancy and Criticality'!$V48-(YEAR(TODAY())-Table13[[#This Row],[Installation Year]])<0,0,'Life Expectancy and Criticality'!$V48-(YEAR(TODAY())-Table13[[#This Row],[Installation Year]])))) -> 15
A52: =IF('CoF and PoF'!C48="--","",'CoF and PoF'!C48) -> MeMa-2024-8 | B52: Meter | C52: Master | E52: Assembly 12 - Qty 1 | F52: HIGH GROVE | G52: 2024 | I52: Great | K52: =IF(Table13[[#This Row],[I.D. Number ]]="","",IF(Table13[[#This Row],[Installation Year]]="","",('Life Expectancy and Criticality'!$V49+Table13[[#This Row],[Installation Year]]))) -> 2039 | L52: =IF(Table13[[#This Row],[I.D. Number ]]="","",(IF('Life Expectancy and Criticality'!$V49-(YEAR(TODAY())-Table13[[#This Row],[Installation Year]])<0,0,'Life Expectancy and Criticality'!$V49-(YEAR(TODAY())-Table13[[#This Row],[Installation Year]])))) -> 15
A53: =IF('CoF and PoF'!C49="--","",'CoF and PoF'!C49) -> MeMa-2024-9 | B53: Meter | C53: Master | E53: Assembly 13 - Qty 1 | F53: HILLS OF THE BEAR | G53: 2024 | I53: Great | K53: =IF(Table13[[#This Row],[I.D. Number ]]="","",IF(Table13[[#This Row],[Installation Year]]="","",('Life Expectancy and Criticality'!$V50+Table13[[#This Row],[Installation Year]]))) -> 2039 | L53: =IF(Table13[[#This Row],[I.D. Number ]]="","",(IF('Life Expectancy and Criticality'!$V50-(YEAR(TODAY())-Table13[[#This Row],[Installation Year]])<0,0,'Life Expectancy and Criticality'!$V50-(YEAR(TODAY())-Table13[[#This Row],[Installation Year]])))) -> 15
A54: =IF('CoF and PoF'!C50="--","",'CoF and PoF'!C50) -> MeMa-2024-10 | B54: Meter | C54: Master | E54: Assembly 14 - Qty 1 | F54: HARBER SUBDIVISION | G54: 2024 | I54: Great | K54: =IF(Table13[[#This Row],[I.D. Number ]]="","",IF(Table13[[#This Row],[Installation Year]]="","",('Life Expectancy and Criticality'!$V51+Table13[[#This Row],[Installation Year]]))) -> 2039 | L54: =IF(Table13[[#This Row],[I.D. Number ]]="","",(IF('Life Expectancy and Criticality'!$V51-(YEAR(TODAY())-Table13[[#This Row],[Installation Year]])<0,0,'Life Expectancy and Criticality'!$V51-(YEAR(TODAY())-Table13[[#This Row],[Installation Year]])))) -> 15 | N54: FALSE
A55: =IF('CoF and PoF'!C51="--","",'CoF and PoF'!C51) -> MeMa-2024-11 | B55: Meter | C55: Master | E55: Assembly 15, 16, 17, 18 - Qty 4 | F55: CR 259, CR 256, CR 410 AND CR 956 | G55: 2024 | I55: Great | K55: =IF(Table13[[#This Row],[I.D. Number ]]="","",IF(Table13[[#This Row],[Installation Year]]="","",('Life Expectancy and Criticality'!$V52+Table13[[#This Row],[Installation Year]]))) -> 2039 | L55: =IF(Table13[[#This Row],[I.D. Number ]]="","",(IF('Life Expectancy and Criticality'!$V52-(YEAR(TODAY())-Table13[[#This Row],[Installation Year]])<0,0,'Life Expectancy and Criticality'!$V52-(YEAR(TODAY())-Table13[[#This Row],[Installation Year]])))) -> 15
A56: =IF('CoF and PoF'!C52="--","",'CoF and PoF'!C52) -> MeMa-2024-12 | B56: Meter | C56: Master | E56: Assembly 20 - Qty 1 | F56: EASTPORT TANK | G56: 2024 | I56: Great | K56: =IF(Table13[[#This Row],[I.D. Number ]]="","",IF(Table13[[#This Row],[Installation Year]]="","",('Life Expectancy and Criticality'!$V53+Table13[[#This Row],[Installation Year]]))) -> 2039 | L56: =IF(Table13[[#This Row],[I.D. Number ]]="","",(IF('Life Expectancy and Criticality'!$V53-(YEAR(TODAY())-Table13[[#This Row],[Installation Year]])<0,0,'Life Expectancy and Criticality'!$V53-(YEAR(TODAY())-Table13[[#This Row],[Installation Year]])))) -> 15
A57: =IF('CoF and PoF'!C53="--","",'CoF and PoF'!C53) -> VaGa-2024-1 | B57: Valve | C57: Gate | D57: 10" | E57: Qty 3 | F57: CR956 | G57: 2024 | I57: Great | K57: =IF(Table13[[#This Row],[I.D. Number ]]="","",IF(Table13[[#This Row],[Installation Year]]="","",('Life Expectancy and Criticality'!$V54+Table13[[#This Row],[Installation Year]]))) -> 2044 | L57: =IF(Table13[[#This Row],[I.D. Number ]]="","",(IF('Life Expectancy and Criticality'!$V54-(YEAR(TODAY())-Table13[[#This Row],[Installation Year]])<0,0,'Life Expectancy and Criticality'!$V54-(YEAR(TODAY())-Table13[[#This Row],[Installation Year]])))) -> 20
A58: =IF('CoF and PoF'!C54="--","",'CoF and PoF'!C54) -> VaGa-2024-2 | B58: Valve | C58: Gate | D58: 8" | E58: Qty 1 | F58: CR956 | G58: 2024 | I58: Great | K58: =IF(Table13[[#This Row],[I.D. Number ]]="","",IF(Table13[[#This Row],[Installation Year]]="","",('Life Expectancy and Criticality'!$V55+Table13[[#This Row],[Installation Year]]))) -> 2044 | L58: =IF(Table13[[#This Row],[I.D. Number ]]="","",(IF('Life Expectancy and Criticality'!$V55-(YEAR(TODAY())-Table13[[#This Row],[Installation Year]])<0,0,'Life Expectancy and Criticality'!$V55-(YEAR(TODAY())-Table13[[#This Row],[Installation Year]])))) -> 20
A59: =IF('CoF and PoF'!C55="--","",'CoF and PoF'!C55) -> VaGa-2024-3 | B59: Valve | C59: Gate | D59: 6" | E59: Qty 2 | F59: CR956 | G59: 2024 | I59: Great | K59: =IF(Table13[[#This Row],[I.D. Number ]]="","",IF(Table13[[#This Row],[Installation Year]]="","",('Life Expectancy and Criticality'!$V56+Table13[[#This Row],[Installation Year]]))) -> 2044 | L59: =IF(Table13[[#This Row],[I.D. Number ]]="","",(IF('Life Expectancy and Criticality'!$V56-(YEAR(TODAY())-Table13[[#This Row],[Installation Year]])<0,0,'Life Expectancy and Criticality'!$V56-(YEAR(TODAY())-Table13[[#This Row],[Installation Year]])))) -> 20
A60: =IF('CoF and PoF'!C56="--","",'CoF and PoF'!C56) -> VaGa-2024-4 | B60: Valve | C60: Gate | D60: 4" | E60: Qty 3 | F60: CR956 | G60: 2024 | I60: Great | K60: =IF(Table13[[#This Row],[I.D. Number ]]="","",IF(Table13[[#This Row],[Installation Year]]="","",('Life Expectancy and Criticality'!$V57+Table13[[#This Row],[Installation Year]]))) -> 2044 | L60: =IF(Table13[[#This Row],[I.D. Number ]]="","",(IF('Life Expectancy and Criticality'!$V57-(YEAR(TODAY())-Table13[[#This Row],[Installation Year]])<0,0,'Life Expectancy and Criticality'!$V57-(YEAR(TODAY())-Table13[[#This Row],[Installation Year]])))) -> 20
A61: =IF('CoF and PoF'!C57="--","",'CoF and PoF'!C57) -> VaPr-2024-1 | B61: Valve | C61: Pressure Relief (PRV) | E61: PRV-8 | F61: CR956 | G61: 2024 | I61: Great | K61: =IF(Table13[[#This Row],[I.D. Number ]]="","",IF(Table13[[#This Row],[Installation Year]]="","",('Life Expectancy and Criticality'!$V58+Table13[[#This Row],[Installation Year]]))) -> 2044 | L61: =IF(Table13[[#This Row],[I.D. Number ]]="","",(IF('Life Expectancy and Criticality'!$V58-(YEAR(TODAY())-Table13[[#This Row],[Installation Year]])<0,0,'Life Expectancy and Criticality'!$V58-(YEAR(TODAY())-Table13[[#This Row],[Installation Year]])))) -> 20
A62: =IF('CoF and PoF'!C58="--","",'CoF and PoF'!C58) -> VaPr-2024-2 | B62: Valve | C62: Pressure Relief (PRV) | E62: Residential - Qty 4 | F62: CR956 | G62: 2024 | I62: Great | K62: =IF(Table13[[#This Row],[I.D. Number ]]="","",IF(Table13[[#This Row],[Installation Year]]="","",('Life Expectancy and Criticality'!$V59+Table13[[#This Row],[Installation Year]]))) -> 2044 | L62: =IF(Table13[[#This Row],[I.D. Number ]]="","",(IF('Life Expectancy and Criticality'!$V59-(YEAR(TODAY())-Table13[[#This Row],[Installation Year]])<0,0,'Life Expectancy and Criticality'!$V59-(YEAR(TODAY())-Table13[[#This Row],[Installation Year]])))) -> 20
A63: =IF('CoF and PoF'!C59="--","",'CoF and PoF'!C59) -> VaGa-2024-5 | B63: Valve | C63: Gate | D63: 6" | E63: Flush Valve | F63: CR956 | G63: 2024 | I63: Great | K63: =IF(Table13[[#This Row],[I.D. Number ]]="","",IF(Table13[[#This Row],[Installation Year]]="","",('Life Expectancy and Criticality'!$V60+Table13[[#This Row],[Installation Year]]))) -> 2044 | L63: =IF(Table13[[#This Row],[I.D. Number ]]="","",(IF('Life Expectancy and Criticality'!$V60-(YEAR(TODAY())-Table13[[#This Row],[Installation Year]])<0,0,'Life Expectancy and Criticality'!$V60-(YEAR(TODAY())-Table13[[#This Row],[Installation Year]])))) -> 20 | N63: FALSE
A64: =IF('CoF and PoF'!C60="--","",'CoF and PoF'!C60) -> CoSC-2024-1 | B64: Control | C64: SCADA | E64: Automated Meter Reading System | F64: OFFICE | G64: 2024 | I64: Great | K64: =IF(Table13[[#This Row],[I.D. Number ]]="","",IF(Table13[[#This Row],[Installation Year]]="","",('Life Expectancy and Criticality'!$V61+Table13[[#This Row],[Installation Year]]))) -> 2039 | L64: =IF(Table13[[#This Row],[I.D. Number ]]="","",(IF('Life Expectancy and Criticality'!$V61-(YEAR(TODAY())-Table13[[#This Row],[Installation Year]])<0,0,'Life Expectancy and Criticality'!$V61-(YEAR(TODAY())-Table13[[#This Row],[Installation Year]])))) -> 15
A65: =IF('CoF and PoF'!C61="--","",'CoF and PoF'!C61) -> MeRe-2024-1 | B65: Meter | C65: Residential | E65: 5/8" x 3/4" Meters - Qty 932 | F65: System Wide | G65: 2024 | I65: Great | K65: =IF(Table13[[#This Row],[I.D. Number ]]="","",IF(Table13[[#This Row],[Installation Year]]="","",('Life Expectancy and Criticality'!$V62+Table13[[#This Row],[Installation Year]]))) -> 2039 | L65: =IF(Table13[[#This Row],[I.D. Number ]]="","",(IF('Life Expectancy and Criticality'!$V62-(YEAR(TODAY())-Table13[[#This Row],[Installation Year]])<0,0,'Life Expectancy and Criticality'!$V62-(YEAR(TODAY())-Table13[[#This Row],[Installation Year]])))) -> 15
A66: =IF('CoF and PoF'!C62="--","",'CoF and PoF'!C62) -> MeCu-2024-1 | B66: Meter | C66: Customer | E66: Meters - Qty 8 | F66: System Wide | G66: 2024 | I66: Great | K66: =IF(Table13[[#This Row],[I.D. Number ]]="","",IF(Table13[[#This Row],[Installation Year]]="","",('Life Expectancy and Criticality'!$V63+Table13[[#This Row],[Installation Year]]))) -> 2039 | L66: =IF(Table13[[#This Row],[I.D. Number ]]="","",(IF('Life Expectancy and Criticality'!$V63-(YEAR(TODAY())-Table13[[#This Row],[Installation Year]])<0,0,'Life Expectancy and Criticality'!$V63-(YEAR(TODAY())-Table13[[#This Row],[Installation Year]])))) -> 15
A67: =IF('CoF and PoF'!C63="--","",'CoF and PoF'!C63) -> VaPr-2024-3 | B67: Valve | C67: Pressure Relief (PRV) | E67: PRV-7 | F67: System Wide | G67: 2024 | I67: Great | K67: =IF(Table13[[#This Row],[I.D. Number ]]="","",IF(Table13[[#This Row],[Installation Year]]="","",('Life Expectancy and Criticality'!$V64+Table13[[#This Row],[Installation Year]]))) -> 2044 | L67: =IF(Table13[[#This Row],[I.D. Number ]]="","",(IF('Life Expectancy and Criticality'!$V64-(YEAR(TODAY())-Table13[[#This Row],[Installation Year]])<0,0,'Life Expectancy and Criticality'!$V64-(YEAR(TODAY())-Table13[[#This Row],[Installation Year]])))) -> 20
A68: =IF('CoF and PoF'!C64="--","",'CoF and PoF'!C64) -> VaGa-2024-6 | B68: Valve | C68: Gate | D68: 4" | E68: Qty - 2 | F68: System Wide | G68: 2024 | I68: Great | K68: =IF(Table13[[#This Row],[I.D. Number ]]="","",IF(Table13[[#This Row],[Installation Year]]="","",('Life Expectancy and Criticality'!$V65+Table13[[#This Row],[Installation Year]]))) -> 2044 | L68: =IF(Table13[[#This Row],[I.D. Number ]]="","",(IF('Life Expectancy and Criticality'!$V65-(YEAR(TODAY())-Table13[[#This Row],[Installation Year]])<0,0,'Life Expectancy and Criticality'!$V65-(YEAR(TODAY())-Table13[[#This Row],[Installation Year]])))) -> 20
A69: =IF('CoF and PoF'!C65="--","",'CoF and PoF'!C65) -> PiPV-2024-4 | B69: Pipe | C69: PVC | D69: 8" | E69: HDPE, DR11, 200psi - 4195 linear ft | F69: CR261 | G69: 2024 | I69: Great | K69: =IF(Table13[[#This Row],[I.D. Number ]]="","",IF(Table13[[#This Row],[Installation Year]]="","",('Life Expectancy and Criticality'!$V66+Table13[[#This Row],[Installation Year]]))) -> 2104 | L69: =IF(Table13[[#This Row],[I.D. Number ]]="","",(IF('Life Expectancy and Criticality'!$V66-(YEAR(TODAY())-Table13[[#This Row],[Installation Year]])<0,0,'Life Expectancy and Criticality'!$V66-(YEAR(TODAY())-Table13[[#This Row],[Installation Year]])))) -> 80 | N69: FALSE
A70: =IF('CoF and PoF'!C66="--","",'CoF and PoF'!C66) -> VaGa-2024-7 | B70: Valve | C70: Gate | D70: 8" | F70: CR261 | G70: 2024 | I70: Great | K70: =IF(Table13[[#This Row],[I.D. Number ]]="","",IF(Table13[[#This Row],[Installation Year]]="","",('Life Expectancy and Criticality'!$V67+Table13[[#This Row],[Installation Year]]))) -> 2044 | L70: =IF(Table13[[#This Row],[I.D. Number ]]="","",(IF('Life Expectancy and Criticality'!$V67-(YEAR(TODAY())-Table13[[#This Row],[Installation Year]])<0,0,'Life Expectancy and Criticality'!$V67-(YEAR(TODAY())-Table13[[#This Row],[Installation Year]])))) -> 20
A71: =IF('CoF and PoF'!C67="--","",'CoF and PoF'!C67) -> VaPr-2024-4 | B71: Valve | C71: Pressure Relief (PRV) | E71: PRV-1 thru PRV-6 + PRV-9 - Qty 7 | F71: System Wide | G71: 2024 | I71: Great | K71: =IF(Table13[[#This Row],[I.D. Number ]]="","",IF(Table13[[#This Row],[Installation Year]]="","",('Life Expectancy and Criticality'!$V68+Table13[[#This Row],[Installation Year]]))) -> 2044 | L71: =IF(Table13[[#This Row],[I.D. Number ]]="","",(IF('Life Expectancy and Criticality'!$V68-(YEAR(TODAY())-Table13[[#This Row],[Installation Year]])<0,0,'Life Expectancy and Criticality'!$V68-(YEAR(TODAY())-Table13[[#This Row],[Installation Year]])))) -> 20
A72: =IF('CoF and PoF'!C68="--","",'CoF and PoF'!C68) -> VaGa-2024-8 | B72: Valve | C72: Gate | D72: 6" | E72: Gate Valve System | F72: System Wide | G72: 2024 | I72: Great | K72: =IF(Table13[[#This Row],[I.D. Number ]]="","",IF(Table13[[#This Row],[Installation Year]]="","",('Life Expectancy and Criticality'!$V69+Table13[[#This Row],[Installation Year]]))) -> 2044 | L72: =IF(Table13[[#This Row],[I.D. Number ]]="","",(IF('Life Expectancy and Criticality'!$V69-(YEAR(TODAY())-Table13[[#This Row],[Installation Year]])<0,0,'Life Expectancy and Criticality'!$V69-(YEAR(TODAY())-Table13[[#This Row],[Installation Year]])))) -> 20 | N72: FALSE
A73: =IF('CoF and PoF'!C69="--","",'CoF and PoF'!C69) ->  | K73: =IF(Table13[[#This Row],[I.D. Number ]]="","",IF(Table13[[#This Row],[Installation Year]]="","",('Life Expectancy and Criticality'!$V70+Table13[[#This Row],[Installation Year]]))) ->  | L73: =IF(Table13[[#This Row],[I.D. Number ]]="","",(IF('Life Expectancy and Criticality'!$V70-(YEAR(TODAY())-Table13[[#This Row],[Installation Year]])<0,0,'Life Expectancy and Criticality'!$V70-(YEAR(TODAY())-Table13[[#This Row],[Installation Year]])))) -> 
A74: =IF('CoF and PoF'!C70="--","",'CoF and PoF'!C70) ->  | K74: =IF(Table13[[#This Row],[I.D. Number ]]="","",IF(Table13[[#This Row],[Installation Year]]="","",('Life Expectancy and Criticality'!$V71+Table13[[#This Row],[Installation Year]]))) ->  | L74: =IF(Table13[[#This Row],[I.D. Number ]]="","",(IF('Life Expectancy and Criticality'!$V71-(YEAR(TODAY())-Table13[[#This Row],[Installation Year]])<0,0,'Life Expectancy and Criticality'!$V71-(YEAR(TODAY())-Table13[[#This Row],[Installation Year]])))) ->  | N74: FALSE
A75: =IF('CoF and PoF'!C71="--","",'CoF and PoF'!C71) ->  | K75: =IF(Table13[[#This Row],[I.D. Number ]]="","",IF(Table13[[#This Row],[Installation Year]]="","",('Life Expectancy and Criticality'!$V72+Table13[[#This Row],[Installation Year]]))) ->  | L75: =IF(Table13[[#This Row],[I.D. Number ]]="","",(IF('Life Expectancy and Criticality'!$V72-(YEAR(TODAY())-Table13[[#This Row],[Installation Year]])<0,0,'Life Expectancy and Criticality'!$V72-(YEAR(TODAY())-Table13[[#This Row],[Installation Year]])))) -> 
A76: =IF('CoF and PoF'!C72="--","",'CoF and PoF'!C72) ->  | K76: =IF(Table13[[#This Row],[I.D. Number ]]="","",IF(Table13[[#This Row],[Installation Year]]="","",('Life Expectancy and Criticality'!$V73+Table13[[#This Row],[Installation Year]]))) ->  | L76: =IF(Table13[[#This Row],[I.D. Number ]]="","",(IF('Life Expectancy and Criticality'!$V73-(YEAR(TODAY())-Table13[[#This Row],[Installation Year]])<0,0,'Life Expectancy and Criticality'!$V73-(YEAR(TODAY())-Table13[[#This Row],[Installation Year]])))) -> 
A77: =IF('CoF and PoF'!C73="--","",'CoF and PoF'!C73) ->  | K77: =IF(Table13[[#This Row],[I.D. Number ]]="","",IF(Table13[[#This Row],[Installation Year]]="","",('Life Expectancy and Criticality'!$V74+Table13[[#This Row],[Installation Year]]))) ->  | L77: =IF(Table13[[#This Row],[I.D. Number ]]="","",(IF('Life Expectancy and Criticality'!$V74-(YEAR(TODAY())-Table13[[#This Row],[Installation Year]])<0,0,'Life Expectancy and Criticality'!$V74-(YEAR(TODAY())-Table13[[#This Row],[Installation Year]])))) -> 
A78: =IF('CoF and PoF'!C74="--","",'CoF and PoF'!C74) ->  | K78: =IF(Table13[[#This Row],[I.D. Number ]]="","",IF(Table13[[#This Row],[Installation Year]]="","",('Life Expectancy and Criticality'!$V75+Table13[[#This Row],[Installation Year]]))) ->  | L78: =IF(Table13[[#This Row],[I.D. Number ]]="","",(IF('Life Expectancy and Criticality'!$V75-(YEAR(TODAY())-Table13[[#This Row],[Installation Year]])<0,0,'Life Expectancy and Criticality'!$V75-(YEAR(TODAY())-Table13[[#This Row],[Installation Year]])))) ->  | N78: FALSE
A79: =IF('CoF and PoF'!C75="--","",'CoF and PoF'!C75) ->  | K79: =IF(Table13[[#This Row],[I.D. Number ]]="","",IF(Table13[[#This Row],[Installation Year]]="","",('Life Expectancy and Criticality'!$V76+Table13[[#This Row],[Installation Year]]))) ->  | L79: =IF(Table13[[#This Row],[I.D. Number ]]="","",(IF('Life Expectancy and Criticality'!$V76-(YEAR(TODAY())-Table13[[#This Row],[Installation Year]])<0,0,'Life Expectancy and Criticality'!$V76-(YEAR(TODAY())-Table13[[#This Row],[Installation Year]])))) -> 
A80: =IF('CoF and PoF'!C76="--","",'CoF and PoF'!C76) ->  | K80: =IF(Table13[[#This Row],[I.D. Number ]]="","",IF(Table13[[#This Row],[Installation Year]]="","",('Life Expectancy and Criticality'!$V77+Table13[[#This Row],[Installation Year]]))) ->  | L80: =IF(Table13[[#This Row],[I.D. Number ]]="","",(IF('Life Expectancy and Criticality'!$V77-(YEAR(TODAY())-Table13[[#This Row],[Installation Year]])<0,0,'Life Expectancy and Criticality'!$V77-(YEAR(TODAY())-Table13[[#This Row],[Installation Year]])))) -> 
A81: =IF('CoF and PoF'!C77="--","",'CoF and PoF'!C77) ->  | K81: =IF(Table13[[#This Row],[I.D. Number ]]="","",IF(Table13[[#This Row],[Installation Year]]="","",('Life Expectancy and Criticality'!$V78+Table13[[#This Row],[Installation Year]]))) ->  | L81: =IF(Table13[[#This Row],[I.D. Number ]]="","",(IF('Life Expectancy and Criticality'!$V78-(YEAR(TODAY())-Table13[[#This Row],[Installation Year]])<0,0,'Life Expectancy and Criticality'!$V78-(YEAR(TODAY())-Table13[[#This Row],[Installation Year]])))) -> 
A82: =IF('CoF and PoF'!C78="--","",'CoF and PoF'!C78) ->  | K82: =IF(Table13[[#This Row],[I.D. Number ]]="","",IF(Table13[[#This Row],[Installation Year]]="","",('Life Expectancy and Criticality'!$V79+Table13[[#This Row],[Installation Year]]))) ->  | L82: =IF(Table13[[#This Row],[I.D. Number ]]="","",(IF('Life Expectancy and Criticality'!$V79-(YEAR(TODAY())-Table13[[#This Row],[Installation Year]])<0,0,'Life Expectancy and Criticality'!$V79-(YEAR(TODAY())-Table13[[#This Row],[Installation Year]])))) -> 
A83: =IF('CoF and PoF'!C79="--","",'CoF and PoF'!C79) ->  | K83: =IF(Table13[[#This Row],[I.D. Number ]]="","",IF(Table13[[#This Row],[Installation Year]]="","",('Life Expectancy and Criticality'!$V80+Table13[[#This Row],[Installation Year]]))) ->  | L83: =IF(Table13[[#This Row],[I.D. Number ]]="","",(IF('Life Expectancy and Criticality'!$V80-(YEAR(TODAY())-Table13[[#This Row],[Installation Year]])<0,0,'Life Expectancy and Criticality'!$V80-(YEAR(TODAY())-Table13[[#This Row],[Installation Year]])))) -> 
A84: =IF('CoF and PoF'!C80="--","",'CoF and PoF'!C80) ->  | K84: =IF(Table13[[#This Row],[I.D. Number ]]="","",IF(Table13[[#This Row],[Installation Year]]="","",('Life Expectancy and Criticality'!$V81+Table13[[#This Row],[Installation Year]]))) ->  | L84: =IF(Table13[[#This Row],[I.D. Number ]]="","",(IF('Life Expectancy and Criticality'!$V81-(YEAR(TODAY())-Table13[[#This Row],[Installation Year]])<0,0,'Life Expectancy and Criticality'!$V81-(YEAR(TODAY())-Table13[[#This Row],[Installation Year]])))) -> 
A85: =IF('CoF and PoF'!C81="--","",'CoF and PoF'!C81) ->  | K85: =IF(Table13[[#This Row],[I.D. Number ]]="","",IF(Table13[[#This Row],[Installation Year]]="","",('Life Expectancy and Criticality'!$V82+Table13[[#This Row],[Installation Year]]))) ->  | L85: =IF(Table13[[#This Row],[I.D. Number ]]="","",(IF('Life Expectancy and Criticality'!$V82-(YEAR(TODAY())-Table13[[#This Row],[Installation Year]])<0,0,'Life Expectancy and Criticality'!$V82-(YEAR(TODAY())-Table13[[#This Row],[Installation Year]])))) -> 
A86: =IF('CoF and PoF'!C82="--","",'CoF and PoF'!C82) ->  | K86: =IF(Table13[[#This Row],[I.D. Number ]]="","",IF(Table13[[#This Row],[Installation Year]]="","",('Life Expectancy and Criticality'!$V83+Table13[[#This Row],[Installation Year]]))) ->  | L86: =IF(Table13[[#This Row],[I.D. Number ]]="","",(IF('Life Expectancy and Criticality'!$V83-(YEAR(TODAY())-Table13[[#This Row],[Installation Year]])<0,0,'Life Expectancy and Criticality'!$V83-(YEAR(TODAY())-Table13[[#This Row],[Installation Year]])))) -> 
A87: =IF('CoF and PoF'!C83="--","",'CoF and PoF'!C83) ->  | K87: =IF(Table13[[#This Row],[I.D. Number ]]="","",IF(Table13[[#This Row],[Installation Year]]="","",('Life Expectancy and Criticality'!$V84+Table13[[#This Row],[Installation Year]]))) ->  | L87: =IF(Table13[[#This Row],[I.D. Number ]]="","",(IF('Life Expectancy and Criticality'!$V84-(YEAR(TODAY())-Table13[[#This Row],[Installation Year]])<0,0,'Life Expectancy and Criticality'!$V84-(YEAR(TODAY())-Table13[[#This Row],[Installation Year]])))) ->  | N87: FALSE
A88: =IF('CoF and PoF'!C84="--","",'CoF and PoF'!C84) ->  | K88: =IF(Table13[[#This Row],[I.D. Number ]]="","",IF(Table13[[#This Row],[Installation Year]]="","",('Life Expectancy and Criticality'!$V85+Table13[[#This Row],[Installation Year]]))) ->  | L88: =IF(Table13[[#This Row],[I.D. Number ]]="","",(IF('Life Expectancy and Criticality'!$V85-(YEAR(TODAY())-Table13[[#This Row],[Installation Year]])<0,0,'Life Expectancy and Criticality'!$V85-(YEAR(TODAY())-Table13[[#This Row],[Installation Year]])))) -> 
A89: =IF('CoF and PoF'!C85="--","",'CoF and PoF'!C85) ->  | K89: =IF(Table13[[#This Row],[I.D. Number ]]="","",IF(Table13[[#This Row],[Installation Year]]="","",('Life Expectancy and Criticality'!$V86+Table13[[#This Row],[Installation Year]]))) ->  | L89: =IF(Table13[[#This Row],[I.D. Number ]]="","",(IF('Life Expectancy and Criticality'!$V86-(YEAR(TODAY())-Table13[[#This Row],[Installation Year]])<0,0,'Life Expectancy and Criticality'!$V86-(YEAR(TODAY())-Table13[[#This Row],[Installation Year]])))) -> 
A90: =IF('CoF and PoF'!C86="--","",'CoF and PoF'!C86) ->  | K90: =IF(Table13[[#This Row],[I.D. Number ]]="","",IF(Table13[[#This Row],[Installation Year]]="","",('Life Expectancy and Criticality'!$V87+Table13[[#This Row],[Installation Year]]))) ->  | L90: =IF(Table13[[#This Row],[I.D. Number ]]="","",(IF('Life Expectancy and Criticality'!$V87-(YEAR(TODAY())-Table13[[#This Row],[Installation Year]])<0,0,'Life Expectancy and Criticality'!$V87-(YEAR(TODAY())-Table13[[#This Row],[Installation Year]])))) -> 
A91: =IF('CoF and PoF'!C87="--","",'CoF and PoF'!C87) ->  | K91: =IF(Table13[[#This Row],[I.D. Number ]]="","",IF(Table13[[#This Row],[Installation Year]]="","",('Life Expectancy and Criticality'!$V88+Table13[[#This Row],[Installation Year]]))) ->  | L91: =IF(Table13[[#This Row],[I.D. Number ]]="","",(IF('Life Expectancy and Criticality'!$V88-(YEAR(TODAY())-Table13[[#This Row],[Installation Year]])<0,0,'Life Expectancy and Criticality'!$V88-(YEAR(TODAY())-Table13[[#This Row],[Installation Year]])))) -> 
A92: =IF('CoF and PoF'!C88="--","",'CoF and PoF'!C88) ->  | K92: =IF(Table13[[#This Row],[I.D. Number ]]="","",IF(Table13[[#This Row],[Installation Year]]="","",('Life Expectancy and Criticality'!$V89+Table13[[#This Row],[Installation Year]]))) ->  | L92: =IF(Table13[[#This Row],[I.D. Number ]]="","",(IF('Life Expectancy and Criticality'!$V89-(YEAR(TODAY())-Table13[[#This Row],[Installation Year]])<0,0,'Life Expectancy and Criticality'!$V89-(YEAR(TODAY())-Table13[[#This Row],[Installation Year]])))) -> 
A93: =IF('CoF and PoF'!C89="--","",'CoF and PoF'!C89) ->  | K93: =IF(Table13[[#This Row],[I.D. Number ]]="","",IF(Table13[[#This Row],[Installation Year]]="","",('Life Expectancy and Criticality'!$V90+Table13[[#This Row],[Installation Year]]))) ->  | L93: =IF(Table13[[#This Row],[I.D. Number ]]="","",(IF('Life Expectancy and Criticality'!$V90-(YEAR(TODAY())-Table13[[#This Row],[Installation Year]])<0,0,'Life Expectancy and Criticality'!$V90-(YEAR(TODAY())-Table13[[#This Row],[Installation Year]])))) ->  | N93: FALSE
A94: =IF('CoF and PoF'!C90="--","",'CoF and PoF'!C90) ->  | K94: =IF(Table13[[#This Row],[I.D. Number ]]="","",IF(Table13[[#This Row],[Installation Year]]="","",('Life Expectancy and Criticality'!$V91+Table13[[#This Row],[Installation Year]]))) ->  | L94: =IF(Table13[[#This Row],[I.D. Number ]]="","",(IF('Life Expectancy and Criticality'!$V91-(YEAR(TODAY())-Table13[[#This Row],[Installation Year]])<0,0,'Life Expectancy and Criticality'!$V91-(YEAR(TODAY())-Table13[[#This Row],[Installation Year]])))) ->  | N94: FALSE
A95: =IF('CoF and PoF'!C91="--","",'CoF and PoF'!C91) ->  | K95: =IF(Table13[[#This Row],[I.D. Number ]]="","",IF(Table13[[#This Row],[Installation Year]]="","",('Life Expectancy and Criticality'!$V92+Table13[[#This Row],[Installation Year]]))) ->  | L95: =IF(Table13[[#This Row],[I.D. Number ]]="","",(IF('Life Expectancy and Criticality'!$V92-(YEAR(TODAY())-Table13[[#This Row],[Installation Year]])<0,0,'Life Expectancy and Criticality'!$V92-(YEAR(TODAY())-Table13[[#This Row],[Installation Year]])))) -> 
A96: =IF('CoF and PoF'!C92="--","",'CoF and PoF'!C92) ->  | K96: =IF(Table13[[#This Row],[I.D. Number ]]="","",IF(Table13[[#This Row],[Installation Year]]="","",('Life Expectancy and Criticality'!$V93+Table13[[#This Row],[Installation Year]]))) ->  | L96: =IF(Table13[[#This Row],[I.D. Number ]]="","",(IF('Life Expectancy and Criticality'!$V93-(YEAR(TODAY())-Table13[[#This Row],[Installation Year]])<0,0,'Life Expectancy and Criticality'!$V93-(YEAR(TODAY())-Table13[[#This Row],[Installation Year]])))) -> 
A97: =IF('CoF and PoF'!C93="--","",'CoF and PoF'!C93) ->  | K97: =IF(Table13[[#This Row],[I.D. Number ]]="","",IF(Table13[[#This Row],[Installation Year]]="","",('Life Expectancy and Criticality'!$V94+Table13[[#This Row],[Installation Year]]))) ->  | L97: =IF(Table13[[#This Row],[I.D. Number ]]="","",(IF('Life Expectancy and Criticality'!$V94-(YEAR(TODAY())-Table13[[#This Row],[Installation Year]])<0,0,'Life Expectancy and Criticality'!$V94-(YEAR(TODAY())-Table13[[#This Row],[Installation Year]])))) -> 
A98: =IF('CoF and PoF'!C94="--","",'CoF and PoF'!C94) ->  | K98: =IF(Table13[[#This Row],[I.D. Number ]]="","",IF(Table13[[#This Row],[Installation Year]]="","",('Life Expectancy and Criticality'!$V95+Table13[[#This Row],[Installation Year]]))) ->  | L98: =IF(Table13[[#This Row],[I.D. Number ]]="","",(IF('Life Expectancy and Criticality'!$V95-(YEAR(TODAY())-Table13[[#This Row],[Installation Year]])<0,0,'Life Expectancy and Criticality'!$V95-(YEAR(TODAY())-Table13[[#This Row],[Installation Year]])))) -> 
A99: =IF('CoF and PoF'!C95="--","",'CoF and PoF'!C95) ->  | K99: =IF(Table13[[#This Row],[I.D. Number ]]="","",IF(Table13[[#This Row],[Installation Year]]="","",('Life Expectancy and Criticality'!$V96+Table13[[#This Row],[Installation Year]]))) ->  | L99: =IF(Table13[[#This Row],[I.D. Number ]]="","",(IF('Life Expectancy and Criticality'!$V96-(YEAR(TODAY())-Table13[[#This Row],[Installation Year]])<0,0,'Life Expectancy and Criticality'!$V96-(YEAR(TODAY())-Table13[[#This Row],[Installation Year]])))) -> 
A100: =IF('CoF and PoF'!C96="--","",'CoF and PoF'!C96) ->  | K100: =IF(Table13[[#This Row],[I.D. Number ]]="","",IF(Table13[[#This Row],[Installation Year]]="","",('Life Expectancy and Criticality'!$V97+Table13[[#This Row],[Installation Year]]))) ->  | L100: =IF(Table13[[#This Row],[I.D. Number ]]="","",(IF('Life Expectancy and Criticality'!$V97-(YEAR(TODAY())-Table13[[#This Row],[Installation Year]])<0,0,'Life Expectancy and Criticality'!$V97-(YEAR(TODAY())-Table13[[#This Row],[Installation Year]])))) -> 
A101: =IF('CoF and PoF'!C97="--","",'CoF and PoF'!C97) ->  | K101: =IF(Table13[[#This Row],[I.D. Number ]]="","",IF(Table13[[#This Row],[Installation Year]]="","",('Life Expectancy and Criticality'!$V98+Table13[[#This Row],[Installation Year]]))) ->  | L101: =IF(Table13[[#This Row],[I.D. Number ]]="","",(IF('Life Expectancy and Criticality'!$V98-(YEAR(TODAY())-Table13[[#This Row],[Installation Year]])<0,0,'Life Expectancy and Criticality'!$V98-(YEAR(TODAY())-Table13[[#This Row],[Installation Year]])))) -> 
A102: =IF('CoF and PoF'!C98="--","",'CoF and PoF'!C98) ->  | K102: =IF(Table13[[#This Row],[I.D. Number ]]="","",IF(Table13[[#This Row],[Installation Year]]="","",('Life Expectancy and Criticality'!$V99+Table13[[#This Row],[Installation Year]]))) ->  | L102: =IF(Table13[[#This Row],[I.D. Number ]]="","",(IF('Life Expectancy and Criticality'!$V99-(YEAR(TODAY())-Table13[[#This Row],[Installation Year]])<0,0,'Life Expectancy and Criticality'!$V99-(YEAR(TODAY())-Table13[[#This Row],[Installation Year]])))) -> 
A103: =IF('CoF and PoF'!C99="--","",'CoF and PoF'!C99) ->  | K103: =IF(Table13[[#This Row],[I.D. Number ]]="","",IF(Table13[[#This Row],[Installation Year]]="","",('Life Expectancy and Criticality'!$V100+Table13[[#This Row],[Installation Year]]))) ->  | L103: =IF(Table13[[#This Row],[I.D. Number ]]="","",(IF('Life Expectancy and Criticality'!$V100-(YEAR(TODAY())-Table13[[#This Row],[Installation Year]])<0,0,'Life Expectancy and Criticality'!$V100-(YEAR(TODAY())-Table13[[#This Row],[Installation Year]])))) -> 
A104: =IF('CoF and PoF'!C100="--","",'CoF and PoF'!C100) ->  | K104: =IF(Table13[[#This Row],[I.D. Number ]]="","",IF(Table13[[#This Row],[Installation Year]]="","",('Life Expectancy and Criticality'!$V101+Table13[[#This Row],[Installation Year]]))) ->  | L104: =IF(Table13[[#This Row],[I.D. Number ]]="","",(IF('Life Expectancy and Criticality'!$V101-(YEAR(TODAY())-Table13[[#This Row],[Installation Year]])<0,0,'Life Expectancy and Criticality'!$V101-(YEAR(TODAY())-Table13[[#This Row],[Installation Year]])))) -> 
A105: =IF('CoF and PoF'!C101="--","",'CoF and PoF'!C101) ->  | K105: =IF(Table13[[#This Row],[I.D. Number ]]="","",IF(Table13[[#This Row],[Installation Year]]="","",('Life Expectancy and Criticality'!$V102+Table13[[#This Row],[Installation Year]]))) ->  | L105: =IF(Table13[[#This Row],[I.D. Number ]]="","",(IF('Life Expectancy and Criticality'!$V102-(YEAR(TODAY())-Table13[[#This Row],[Installation Year]])<0,0,'Life Expectancy and Criticality'!$V102-(YEAR(TODAY())-Table13[[#This Row],[Installation Year]])))) -> 
A106: =IF('CoF and PoF'!C102="--","",'CoF and PoF'!C102) ->  | K106: =IF(Table13[[#This Row],[I.D. Number ]]="","",IF(Table13[[#This Row],[Installation Year]]="","",('Life Expectancy and Criticality'!$V103+Table13[[#This Row],[Installation Year]]))) ->  | L106: =IF(Table13[[#This Row],[I.D. Number ]]="","",(IF('Life Expectancy and Criticality'!$V103-(YEAR(TODAY())-Table13[[#This Row],[Installation Year]])<0,0,'Life Expectancy and Criticality'!$V103-(YEAR(TODAY())-Table13[[#This Row],[Installation Year]])))) -> 
A107: =IF('CoF and PoF'!C103="--","",'CoF and PoF'!C103) ->  | K107: =IF(Table13[[#This Row],[I.D. Number ]]="","",IF(Table13[[#This Row],[Installation Year]]="","",('Life Expectancy and Criticality'!$V104+Table13[[#This Row],[Installation Year]]))) ->  | L107: =IF(Table13[[#This Row],[I.D. Number ]]="","",(IF('Life Expectancy and Criticality'!$V104-(YEAR(TODAY())-Table13[[#This Row],[Installation Year]])<0,0,'Life Expectancy and Criticality'!$V104-(YEAR(TODAY())-Table13[[#This Row],[Installation Year]])))) -> 
A108: =IF('CoF and PoF'!C104="--","",'CoF and PoF'!C104) ->  | K108: =IF(Table13[[#This Row],[I.D. Number ]]="","",IF(Table13[[#This Row],[Installation Year]]="","",('Life Expectancy and Criticality'!$V105+Table13[[#This Row],[Installation Year]]))) ->  | L108: =IF(Table13[[#This Row],[I.D. Number ]]="","",(IF('Life Expectancy and Criticality'!$V105-(YEAR(TODAY())-Table13[[#This Row],[Installation Year]])<0,0,'Life Expectancy and Criticality'!$V105-(YEAR(TODAY())-Table13[[#This Row],[Installation Year]])))) -> 
A109: =IF('CoF and PoF'!C105="--","",'CoF and PoF'!C105) ->  | K109: =IF(Table13[[#This Row],[I.D. Number ]]="","",IF(Table13[[#This Row],[Installation Year]]="","",('Life Expectancy and Criticality'!$V106+Table13[[#This Row],[Installation Year]]))) ->  | L109: =IF(Table13[[#This Row],[I.D. Number ]]="","",(IF('Life Expectancy and Criticality'!$V106-(YEAR(TODAY())-Table13[[#This Row],[Installation Year]])<0,0,'Life Expectancy and Criticality'!$V106-(YEAR(TODAY())-Table13[[#This Row],[Installation Year]])))) -> 
A110: =IF('CoF and PoF'!C106="--","",'CoF and PoF'!C106) ->  | K110: =IF(Table13[[#This Row],[I.D. Number ]]="","",IF(Table13[[#This Row],[Installation Year]]="","",('Life Expectancy and Criticality'!$V107+Table13[[#This Row],[Installation Year]]))) ->  | L110: =IF(Table13[[#This Row],[I.D. Number ]]="","",(IF('Life Expectancy and Criticality'!$V107-(YEAR(TODAY())-Table13[[#This Row],[Installation Year]])<0,0,'Life Expectancy and Criticality'!$V107-(YEAR(TODAY())-Table13[[#This Row],[Installation Year]])))) -> 
A111: =IF('CoF and PoF'!C107="--","",'CoF and PoF'!C107) ->  | K111: =IF(Table13[[#This Row],[I.D. Number ]]="","",IF(Table13[[#This Row],[Installation Year]]="","",('Life Expectancy and Criticality'!$V108+Table13[[#This Row],[Installation Year]]))) ->  | L111: =IF(Table13[[#This Row],[I.D. Number ]]="","",(IF('Life Expectancy and Criticality'!$V108-(YEAR(TODAY())-Table13[[#This Row],[Installation Year]])<0,0,'Life Expectancy and Criticality'!$V108-(YEAR(TODAY())-Table13[[#This Row],[Installation Year]])))) -> 
A112: =IF('CoF and PoF'!C108="--","",'CoF and PoF'!C108) ->  | K112: =IF(Table13[[#This Row],[I.D. Number ]]="","",IF(Table13[[#This Row],[Installation Year]]="","",('Life Expectancy and Criticality'!$V109+Table13[[#This Row],[Installation Year]]))) ->  | L112: =IF(Table13[[#This Row],[I.D. Number ]]="","",(IF('Life Expectancy and Criticality'!$V109-(YEAR(TODAY())-Table13[[#This Row],[Installation Year]])<0,0,'Life Expectancy and Criticality'!$V109-(YEAR(TODAY())-Table13[[#This Row],[Installation Year]])))) -> 
A113: =IF('CoF and PoF'!C109="--","",'CoF and PoF'!C109) ->  | K113: =IF(Table13[[#This Row],[I.D. Number ]]="","",IF(Table13[[#This Row],[Installation Year]]="","",('Life Expectancy and Criticality'!$V110+Table13[[#This Row],[Installation Year]]))) ->  | L113: =IF(Table13[[#This Row],[I.D. Number ]]="","",(IF('Life Expectancy and Criticality'!$V110-(YEAR(TODAY())-Table13[[#This Row],[Installation Year]])<0,0,'Life Expectancy and Criticality'!$V110-(YEAR(TODAY())-Table13[[#This Row],[Installation Year]])))) -> 
A114: =IF('CoF and PoF'!C110="--","",'CoF and PoF'!C110) ->  | K114: =IF(Table13[[#This Row],[I.D. Number ]]="","",IF(Table13[[#This Row],[Installation Year]]="","",('Life Expectancy and Criticality'!$V111+Table13[[#This Row],[Installation Year]]))) ->  | L114: =IF(Table13[[#This Row],[I.D. Number ]]="","",(IF('Life Expectancy and Criticality'!$V111-(YEAR(TODAY())-Table13[[#This Row],[Installation Year]])<0,0,'Life Expectancy and Criticality'!$V111-(YEAR(TODAY())-Table13[[#This Row],[Installation Year]])))) -> 
A115: =IF('CoF and PoF'!C111="--","",'CoF and PoF'!C111) ->  | K115: =IF(Table13[[#This Row],[I.D. Number ]]="","",IF(Table13[[#This Row],[Installation Year]]="","",('Life Expectancy and Criticality'!$V112+Table13[[#This Row],[Installation Year]]))) ->  | L115: =IF(Table13[[#This Row],[I.D. Number ]]="","",(IF('Life Expectancy and Criticality'!$V112-(YEAR(TODAY())-Table13[[#This Row],[Installation Year]])<0,0,'Life Expectancy and Criticality'!$V112-(YEAR(TODAY())-Table13[[#This Row],[Installation Year]])))) ->  | N115: FALSE
A116: =IF('CoF and PoF'!C112="--","",'CoF and PoF'!C112) ->  | K116: =IF(Table13[[#This Row],[I.D. Number ]]="","",IF(Table13[[#This Row],[Installation Year]]="","",('Life Expectancy and Criticality'!$V113+Table13[[#This Row],[Installation Year]]))) ->  | L116: =IF(Table13[[#This Row],[I.D. Number ]]="","",(IF('Life Expectancy and Criticality'!$V113-(YEAR(TODAY())-Table13[[#This Row],[Installation Year]])<0,0,'Life Expectancy and Criticality'!$V113-(YEAR(TODAY())-Table13[[#This Row],[Installation Year]])))) -> 
A117: =IF('CoF and PoF'!C113="--","",'CoF and PoF'!C113) ->  | K117: =IF(Table13[[#This Row],[I.D. Number ]]="","",IF(Table13[[#This Row],[Installation Year]]="","",('Life Expectancy and Criticality'!$V114+Table13[[#This Row],[Installation Year]]))) ->  | L117: =IF(Table13[[#This Row],[I.D. Number ]]="","",(IF('Life Expectancy and Criticality'!$V114-(YEAR(TODAY())-Table13[[#This Row],[Installation Year]])<0,0,'Life Expectancy and Criticality'!$V114-(YEAR(TODAY())-Table13[[#This Row],[Installation Year]])))) -> 
A118: =IF('CoF and PoF'!C114="--","",'CoF and PoF'!C114) ->  | K118: =IF(Table13[[#This Row],[I.D. Number ]]="","",IF(Table13[[#This Row],[Installation Year]]="","",('Life Expectancy and Criticality'!$V115+Table13[[#This Row],[Installation Year]]))) ->  | L118: =IF(Table13[[#This Row],[I.D. Number ]]="","",(IF('Life Expectancy and Criticality'!$V115-(YEAR(TODAY())-Table13[[#This Row],[Installation Year]])<0,0,'Life Expectancy and Criticality'!$V115-(YEAR(TODAY())-Table13[[#This Row],[Installation Year]])))) -> 
A119: =IF('CoF and PoF'!C115="--","",'CoF and PoF'!C115) ->  | K119: =IF(Table13[[#This Row],[I.D. Number ]]="","",IF(Table13[[#This Row],[Installation Year]]="","",('Life Expectancy and Criticality'!$V116+Table13[[#This Row],[Installation Year]]))) ->  | L119: =IF(Table13[[#This Row],[I.D. Number ]]="","",(IF('Life Expectancy and Criticality'!$V116-(YEAR(TODAY())-Table13[[#This Row],[Installation Year]])<0,0,'Life Expectancy and Criticality'!$V116-(YEAR(TODAY())-Table13[[#This Row],[Installation Year]])))) -> 
A120: =IF('CoF and PoF'!C116="--","",'CoF and PoF'!C116) ->  | K120: =IF(Table13[[#This Row],[I.D. Number ]]="","",IF(Table13[[#This Row],[Installation Year]]="","",('Life Expectancy and Criticality'!$V117+Table13[[#This Row],[Installation Year]]))) ->  | L120: =IF(Table13[[#This Row],[I.D. Number ]]="","",(IF('Life Expectancy and Criticality'!$V117-(YEAR(TODAY())-Table13[[#This Row],[Installation Year]])<0,0,'Life Expectancy and Criticality'!$V117-(YEAR(TODAY())-Table13[[#This Row],[Installation Year]])))) -> 
A121: =IF('CoF and PoF'!C117="--","",'CoF and PoF'!C117) ->  | K121: =IF(Table13[[#This Row],[I.D. Number ]]="","",IF(Table13[[#This Row],[Installation Year]]="","",('Life Expectancy and Criticality'!$V118+Table13[[#This Row],[Installation Year]]))) ->  | L121: =IF(Table13[[#This Row],[I.D. Number ]]="","",(IF('Life Expectancy and Criticality'!$V118-(YEAR(TODAY())-Table13[[#This Row],[Installation Year]])<0,0,'Life Expectancy and Criticality'!$V118-(YEAR(TODAY())-Table13[[#This Row],[Installation Year]])))) -> 
A122: =IF('CoF and PoF'!C118="--","",'CoF and PoF'!C118) ->  | K122: =IF(Table13[[#This Row],[I.D. Number ]]="","",IF(Table13[[#This Row],[Installation Year]]="","",('Life Expectancy and Criticality'!$V119+Table13[[#This Row],[Installation Year]]))) ->  | L122: =IF(Table13[[#This Row],[I.D. Number ]]="","",(IF('Life Expectancy and Criticality'!$V119-(YEAR(TODAY())-Table13[[#This Row],[Installation Year]])<0,0,'Life Expectancy and Criticality'!$V119-(YEAR(TODAY())-Table13[[#This Row],[Installation Year]])))) -> 
A123: =IF('CoF and PoF'!C119="--","",'CoF and PoF'!C119) ->  | K123: =IF(Table13[[#This Row],[I.D. Number ]]="","",IF(Table13[[#This Row],[Installation Year]]="","",('Life Expectancy and Criticality'!$V120+Table13[[#This Row],[Installation Year]]))) ->  | L123: =IF(Table13[[#This Row],[I.D. Number ]]="","",(IF('Life Expectancy and Criticality'!$V120-(YEAR(TODAY())-Table13[[#This Row],[Installation Year]])<0,0,'Life Expectancy and Criticality'!$V120-(YEAR(TODAY())-Table13[[#This Row],[Installation Year]])))) -> 
A124: =IF('CoF and PoF'!C120="--","",'CoF and PoF'!C120) ->  | K124: =IF(Table13[[#This Row],[I.D. Number ]]="","",IF(Table13[[#This Row],[Installation Year]]="","",('Life Expectancy and Criticality'!$V121+Table13[[#This Row],[Installation Year]]))) ->  | L124: =IF(Table13[[#This Row],[I.D. Number ]]="","",(IF('Life Expectancy and Criticality'!$V121-(YEAR(TODAY())-Table13[[#This Row],[Installation Year]])<0,0,'Life Expectancy and Criticality'!$V121-(YEAR(TODAY())-Table13[[#This Row],[Installation Year]])))) -> 
A125: =IF('CoF and PoF'!C121="--","",'CoF and PoF'!C121) ->  | K125: =IF(Table13[[#This Row],[I.D. Number ]]="","",IF(Table13[[#This Row],[Installation Year]]="","",('Life Expectancy and Criticality'!$V122+Table13[[#This Row],[Installation Year]]))) ->  | L125: =IF(Table13[[#This Row],[I.D. Number ]]="","",(IF('Life Expectancy and Criticality'!$V122-(YEAR(TODAY())-Table13[[#This Row],[Installation Year]])<0,0,'Life Expectancy and Criticality'!$V122-(YEAR(TODAY())-Table13[[#This Row],[Installation Year]])))) -> 
A126: =IF('CoF and PoF'!C122="--","",'CoF and PoF'!C122) ->  | K126: =IF(Table13[[#This Row],[I.D. Number ]]="","",IF(Table13[[#This Row],[Installation Year]]="","",('Life Expectancy and Criticality'!$V123+Table13[[#This Row],[Installation Year]]))) ->  | L126: =IF(Table13[[#This Row],[I.D. Number ]]="","",(IF('Life Expectancy and Criticality'!$V123-(YEAR(TODAY())-Table13[[#This Row],[Installation Year]])<0,0,'Life Expectancy and Criticality'!$V123-(YEAR(TODAY())-Table13[[#This Row],[Installation Year]])))) -> 
A127: =IF('CoF and PoF'!C123="--","",'CoF and PoF'!C123) ->  | K127: =IF(Table13[[#This Row],[I.D. Number ]]="","",IF(Table13[[#This Row],[Installation Year]]="","",('Life Expectancy and Criticality'!$V124+Table13[[#This Row],[Installation Year]]))) ->  | L127: =IF(Table13[[#This Row],[I.D. Number ]]="","",(IF('Life Expectancy and Criticality'!$V124-(YEAR(TODAY())-Table13[[#This Row],[Installation Year]])<0,0,'Life Expectancy and Criticality'!$V124-(YEAR(TODAY())-Table13[[#This Row],[Installation Year]])))) -> 
A128: =IF('CoF and PoF'!C124="--","",'CoF and PoF'!C124) ->  | K128: =IF(Table13[[#This Row],[I.D. Number ]]="","",IF(Table13[[#This Row],[Installation Year]]="","",('Life Expectancy and Criticality'!$V125+Table13[[#This Row],[Installation Year]]))) ->  | L128: =IF(Table13[[#This Row],[I.D. Number ]]="","",(IF('Life Expectancy and Criticality'!$V125-(YEAR(TODAY())-Table13[[#This Row],[Installation Year]])<0,0,'Life Expectancy and Criticality'!$V125-(YEAR(TODAY())-Table13[[#This Row],[Installation Year]])))) -> 
A129: =IF('CoF and PoF'!C125="--","",'CoF and PoF'!C125) ->  | K129: =IF(Table13[[#This Row],[I.D. Number ]]="","",IF(Table13[[#This Row],[Installation Year]]="","",('Life Expectancy and Criticality'!$V126+Table13[[#This Row],[Installation Year]]))) ->  | L129: =IF(Table13[[#This Row],[I.D. Number ]]="","",(IF('Life Expectancy and Criticality'!$V126-(YEAR(TODAY())-Table13[[#This Row],[Installation Year]])<0,0,'Life Expectancy and Criticality'!$V126-(YEAR(TODAY())-Table13[[#This Row],[Installation Year]])))) -> 
A130: =IF('CoF and PoF'!C126="--","",'CoF and PoF'!C126) ->  | K130: =IF(Table13[[#This Row],[I.D. Number ]]="","",IF(Table13[[#This Row],[Installation Year]]="","",('Life Expectancy and Criticality'!$V127+Table13[[#This Row],[Installation Year]]))) ->  | L130: =IF(Table13[[#This Row],[I.D. Number ]]="","",(IF('Life Expectancy and Criticality'!$V127-(YEAR(TODAY())-Table13[[#This Row],[Installation Year]])<0,0,'Life Expectancy and Criticality'!$V127-(YEAR(TODAY())-Table13[[#This Row],[Installation Year]])))) -> 
A131: =IF('CoF and PoF'!C127="--","",'CoF and PoF'!C127) ->  | K131: =IF(Table13[[#This Row],[I.D. Number ]]="","",IF(Table13[[#This Row],[Installation Year]]="","",('Life Expectancy and Criticality'!$V128+Table13[[#This Row],[Installation Year]]))) ->  | L131: =IF(Table13[[#This Row],[I.D. Number ]]="","",(IF('Life Expectancy and Criticality'!$V128-(YEAR(TODAY())-Table13[[#This Row],[Installation Year]])<0,0,'Life Expectancy and Criticality'!$V128-(YEAR(TODAY())-Table13[[#This Row],[Installation Year]])))) -> 
A132: =IF('CoF and PoF'!C128="--","",'CoF and PoF'!C128) ->  | K132: =IF(Table13[[#This Row],[I.D. Number ]]="","",IF(Table13[[#This Row],[Installation Year]]="","",('Life Expectancy and Criticality'!$V129+Table13[[#This Row],[Installation Year]]))) ->  | L132: =IF(Table13[[#This Row],[I.D. Number ]]="","",(IF('Life Expectancy and Criticality'!$V129-(YEAR(TODAY())-Table13[[#This Row],[Installation Year]])<0,0,'Life Expectancy and Criticality'!$V129-(YEAR(TODAY())-Table13[[#This Row],[Installation Year]])))) -> 
A133: =IF('CoF and PoF'!C129="--","",'CoF and PoF'!C129) ->  | K133: =IF(Table13[[#This Row],[I.D. Number ]]="","",IF(Table13[[#This Row],[Installation Year]]="","",('Life Expectancy and Criticality'!$V130+Table13[[#This Row],[Installation Year]]))) ->  | L133: =IF(Table13[[#This Row],[I.D. Number ]]="","",(IF('Life Expectancy and Criticality'!$V130-(YEAR(TODAY())-Table13[[#This Row],[Installation Year]])<0,0,'Life Expectancy and Criticality'!$V130-(YEAR(TODAY())-Table13[[#This Row],[Installation Year]])))) -> 
A134: =IF('CoF and PoF'!C130="--","",'CoF and PoF'!C130) ->  | K134: =IF(Table13[[#This Row],[I.D. Number ]]="","",IF(Table13[[#This Row],[Installation Year]]="","",('Life Expectancy and Criticality'!$V131+Table13[[#This Row],[Installation Year]]))) ->  | L134: =IF(Table13[[#This Row],[I.D. Number ]]="","",(IF('Life Expectancy and Criticality'!$V131-(YEAR(TODAY())-Table13[[#This Row],[Installation Year]])<0,0,'Life Expectancy and Criticality'!$V131-(YEAR(TODAY())-Table13[[#This Row],[Installation Year]])))) -> 
A135: =IF('CoF and PoF'!C131="--","",'CoF and PoF'!C131) ->  | K135: =IF(Table13[[#This Row],[I.D. Number ]]="","",IF(Table13[[#This Row],[Installation Year]]="","",('Life Expectancy and Criticality'!$V132+Table13[[#This Row],[Installation Year]]))) ->  | L135: =IF(Table13[[#This Row],[I.D. Number ]]="","",(IF('Life Expectancy and Criticality'!$V132-(YEAR(TODAY())-Table13[[#This Row],[Installation Year]])<0,0,'Life Expectancy and Criticality'!$V132-(YEAR(TODAY())-Table13[[#This Row],[Installation Year]])))) -> 
A136: =IF('CoF and PoF'!C132="--","",'CoF and PoF'!C132) ->  | K136: =IF(Table13[[#This Row],[I.D. Number ]]="","",IF(Table13[[#This Row],[Installation Year]]="","",('Life Expectancy and Criticality'!$V133+Table13[[#This Row],[Installation Year]]))) ->  | L136: =IF(Table13[[#This Row],[I.D. Number ]]="","",(IF('Life Expectancy and Criticality'!$V133-(YEAR(TODAY())-Table13[[#This Row],[Installation Year]])<0,0,'Life Expectancy and Criticality'!$V133-(YEAR(TODAY())-Table13[[#This Row],[Installation Year]])))) -> 
A137: =IF('CoF and PoF'!C133="--","",'CoF and PoF'!C133) ->  | K137: =IF(Table13[[#This Row],[I.D. Number ]]="","",IF(Table13[[#This Row],[Installation Year]]="","",('Life Expectancy and Criticality'!$V134+Table13[[#This Row],[Installation Year]]))) ->  | L137: =IF(Table13[[#This Row],[I.D. Number ]]="","",(IF('Life Expectancy and Criticality'!$V134-(YEAR(TODAY())-Table13[[#This Row],[Installation Year]])<0,0,'Life Expectancy and Criticality'!$V134-(YEAR(TODAY())-Table13[[#This Row],[Installation Year]])))) -> 
A138: =IF('CoF and PoF'!C134="--","",'CoF and PoF'!C134) ->  | K138: =IF(Table13[[#This Row],[I.D. Number ]]="","",IF(Table13[[#This Row],[Installation Year]]="","",('Life Expectancy and Criticality'!$V135+Table13[[#This Row],[Installation Year]]))) ->  | L138: =IF(Table13[[#This Row],[I.D. Number ]]="","",(IF('Life Expectancy and Criticality'!$V135-(YEAR(TODAY())-Table13[[#This Row],[Installation Year]])<0,0,'Life Expectancy and Criticality'!$V135-(YEAR(TODAY())-Table13[[#This Row],[Installation Year]])))) -> 
A139: =IF('CoF and PoF'!C135="--","",'CoF and PoF'!C135) ->  | K139: =IF(Table13[[#This Row],[I.D. Number ]]="","",IF(Table13[[#This Row],[Installation Year]]="","",('Life Expectancy and Criticality'!$V136+Table13[[#This Row],[Installation Year]]))) ->  | L139: =IF(Table13[[#This Row],[I.D. Number ]]="","",(IF('Life Expectancy and Criticality'!$V136-(YEAR(TODAY())-Table13[[#This Row],[Installation Year]])<0,0,'Life Expectancy and Criticality'!$V136-(YEAR(TODAY())-Table13[[#This Row],[Installation Year]])))) -> 
A140: =IF('CoF and PoF'!C136="--","",'CoF and PoF'!C136) ->  | K140: =IF(Table13[[#This Row],[I.D. Number ]]="","",IF(Table13[[#This Row],[Installation Year]]="","",('Life Expectancy and Criticality'!$V137+Table13[[#This Row],[Installation Year]]))) ->  | L140: =IF(Table13[[#This Row],[I.D. Number ]]="","",(IF('Life Expectancy and Criticality'!$V137-(YEAR(TODAY())-Table13[[#This Row],[Installation Year]])<0,0,'Life Expectancy and Criticality'!$V137-(YEAR(TODAY())-Table13[[#This Row],[Installation Year]])))) -> 
A141: =IF('CoF and PoF'!C137="--","",'CoF and PoF'!C137) ->  | K141: =IF(Table13[[#This Row],[I.D. Number ]]="","",IF(Table13[[#This Row],[Installation Year]]="","",('Life Expectancy and Criticality'!$V138+Table13[[#This Row],[Installation Year]]))) ->  | L141: =IF(Table13[[#This Row],[I.D. Number ]]="","",(IF('Life Expectancy and Criticality'!$V138-(YEAR(TODAY())-Table13[[#This Row],[Installation Year]])<0,0,'Life Expectancy and Criticality'!$V138-(YEAR(TODAY())-Table13[[#This Row],[Installation Year]])))) -> 
A142: =IF('CoF and PoF'!C138="--","",'CoF and PoF'!C138) ->  | K142: =IF(Table13[[#This Row],[I.D. Number ]]="","",IF(Table13[[#This Row],[Installation Year]]="","",('Life Expectancy and Criticality'!$V139+Table13[[#This Row],[Installation Year]]))) ->  | L142: =IF(Table13[[#This Row],[I.D. Number ]]="","",(IF('Life Expectancy and Criticality'!$V139-(YEAR(TODAY())-Table13[[#This Row],[Installation Year]])<0,0,'Life Expectancy and Criticality'!$V139-(YEAR(TODAY())-Table13[[#This Row],[Installation Year]])))) -> 
A143: =IF('CoF and PoF'!C139="--","",'CoF and PoF'!C139) ->  | K143: =IF(Table13[[#This Row],[I.D. Number ]]="","",IF(Table13[[#This Row],[Installation Year]]="","",('Life Expectancy and Criticality'!$V140+Table13[[#This Row],[Installation Year]]))) ->  | L143: =IF(Table13[[#This Row],[I.D. Number ]]="","",(IF('Life Expectancy and Criticality'!$V140-(YEAR(TODAY())-Table13[[#This Row],[Installation Year]])<0,0,'Life Expectancy and Criticality'!$V140-(YEAR(TODAY())-Table13[[#This Row],[Installation Year]])))) -> 
A144: =IF('CoF and PoF'!C140="--","",'CoF and PoF'!C140) ->  | K144: =IF(Table13[[#This Row],[I.D. Number ]]="","",IF(Table13[[#This Row],[Installation Year]]="","",('Life Expectancy and Criticality'!$V141+Table13[[#This Row],[Installation Year]]))) ->  | L144: =IF(Table13[[#This Row],[I.D. Number ]]="","",(IF('Life Expectancy and Criticality'!$V141-(YEAR(TODAY())-Table13[[#This Row],[Installation Year]])<0,0,'Life Expectancy and Criticality'!$V141-(YEAR(TODAY())-Table13[[#This Row],[Installation Year]])))) -> 
A145: =IF('CoF and PoF'!C141="--","",'CoF and PoF'!C141) ->  | K145: =IF(Table13[[#This Row],[I.D. Number ]]="","",IF(Table13[[#This Row],[Installation Year]]="","",('Life Expectancy and Criticality'!$V142+Table13[[#This Row],[Installation Year]]))) ->  | L145: =IF(Table13[[#This Row],[I.D. Number ]]="","",(IF('Life Expectancy and Criticality'!$V142-(YEAR(TODAY())-Table13[[#This Row],[Installation Year]])<0,0,'Life Expectancy and Criticality'!$V142-(YEAR(TODAY())-Table13[[#This Row],[Installation Year]])))) -> 
A146: =IF('CoF and PoF'!C142="--","",'CoF and PoF'!C142) ->  | K146: =IF(Table13[[#This Row],[I.D. Number ]]="","",IF(Table13[[#This Row],[Installation Year]]="","",('Life Expectancy and Criticality'!$V143+Table13[[#This Row],[Installation Year]]))) ->  | L146: =IF(Table13[[#This Row],[I.D. Number ]]="","",(IF('Life Expectancy and Criticality'!$V143-(YEAR(TODAY())-Table13[[#This Row],[Installation Year]])<0,0,'Life Expectancy and Criticality'!$V143-(YEAR(TODAY())-Table13[[#This Row],[Installation Year]])))) -> 
A147: =IF('CoF and PoF'!C143="--","",'CoF and PoF'!C143) ->  | K147: =IF(Table13[[#This Row],[I.D. Number ]]="","",IF(Table13[[#This Row],[Installation Year]]="","",('Life Expectancy and Criticality'!$V144+Table13[[#This Row],[Installation Year]]))) ->  | L147: =IF(Table13[[#This Row],[I.D. Number ]]="","",(IF('Life Expectancy and Criticality'!$V144-(YEAR(TODAY())-Table13[[#This Row],[Installation Year]])<0,0,'Life Expectancy and Criticality'!$V144-(YEAR(TODAY())-Table13[[#This Row],[Installation Year]])))) -> 
A148: =IF('CoF and PoF'!C144="--","",'CoF and PoF'!C144) ->  | K148: =IF(Table13[[#This Row],[I.D. Number ]]="","",IF(Table13[[#This Row],[Installation Year]]="","",('Life Expectancy and Criticality'!$V145+Table13[[#This Row],[Installation Year]]))) ->  | L148: =IF(Table13[[#This Row],[I.D. Number ]]="","",(IF('Life Expectancy and Criticality'!$V145-(YEAR(TODAY())-Table13[[#This Row],[Installation Year]])<0,0,'Life Expectancy and Criticality'!$V145-(YEAR(TODAY())-Table13[[#This Row],[Installation Year]])))) -> 
A149: =IF('CoF and PoF'!C145="--","",'CoF and PoF'!C145) ->  | K149: =IF(Table13[[#This Row],[I.D. Number ]]="","",IF(Table13[[#This Row],[Installation Year]]="","",('Life Expectancy and Criticality'!$V146+Table13[[#This Row],[Installation Year]]))) ->  | L149: =IF(Table13[[#This Row],[I.D. Number ]]="","",(IF('Life Expectancy and Criticality'!$V146-(YEAR(TODAY())-Table13[[#This Row],[Installation Year]])<0,0,'Life Expectancy and Criticality'!$V146-(YEAR(TODAY())-Table13[[#This Row],[Installation Year]])))) -> 
A150: =IF('CoF and PoF'!C146="--","",'CoF and PoF'!C146) ->  | K150: =IF(Table13[[#This Row],[I.D. Number ]]="","",IF(Table13[[#This Row],[Installation Year]]="","",('Life Expectancy and Criticality'!$V147+Table13[[#This Row],[Installation Year]]))) ->  | L150: =IF(Table13[[#This Row],[I.D. Number ]]="","",(IF('Life Expectancy and Criticality'!$V147-(YEAR(TODAY())-Table13[[#This Row],[Installation Year]])<0,0,'Life Expectancy and Criticality'!$V147-(YEAR(TODAY())-Table13[[#This Row],[Installation Year]])))) -> 
A151: =IF('CoF and PoF'!C147="--","",'CoF and PoF'!C147) ->  | K151: =IF(Table13[[#This Row],[I.D. Number ]]="","",IF(Table13[[#This Row],[Installation Year]]="","",('Life Expectancy and Criticality'!$V148+Table13[[#This Row],[Installation Year]]))) ->  | L151: =IF(Table13[[#This Row],[I.D. Number ]]="","",(IF('Life Expectancy and Criticality'!$V148-(YEAR(TODAY())-Table13[[#This Row],[Installation Year]])<0,0,'Life Expectancy and Criticality'!$V148-(YEAR(TODAY())-Table13[[#This Row],[Installation Year]])))) -> 
A152: =IF('CoF and PoF'!C148="--","",'CoF and PoF'!C148) ->  | K152: =IF(Table13[[#This Row],[I.D. Number ]]="","",IF(Table13[[#This Row],[Installation Year]]="","",('Life Expectancy and Criticality'!$V149+Table13[[#This Row],[Installation Year]]))) ->  | L152: =IF(Table13[[#This Row],[I.D. Number ]]="","",(IF('Life Expectancy and Criticality'!$V149-(YEAR(TODAY())-Table13[[#This Row],[Installation Year]])<0,0,'Life Expectancy and Criticality'!$V149-(YEAR(TODAY())-Table13[[#This Row],[Installation Year]])))) -> 
A153: =IF('CoF and PoF'!C149="--","",'CoF and PoF'!C149) ->  | K153: =IF(Table13[[#This Row],[I.D. Number ]]="","",IF(Table13[[#This Row],[Installation Year]]="","",('Life Expectancy and Criticality'!$V150+Table13[[#This Row],[Installation Year]]))) ->  | L153: =IF(Table13[[#This Row],[I.D. Number ]]="","",(IF('Life Expectancy and Criticality'!$V150-(YEAR(TODAY())-Table13[[#This Row],[Installation Year]])<0,0,'Life Expectancy and Criticality'!$V150-(YEAR(TODAY())-Table13[[#This Row],[Installation Year]])))) -> 
A154: =IF('CoF and PoF'!C150="--","",'CoF and PoF'!C150) ->  | K154: =IF(Table13[[#This Row],[I.D. Number ]]="","",IF(Table13[[#This Row],[Installation Year]]="","",('Life Expectancy and Criticality'!$V151+Table13[[#This Row],[Installation Year]]))) ->  | L154: =IF(Table13[[#This Row],[I.D. Number ]]="","",(IF('Life Expectancy and Criticality'!$V151-(YEAR(TODAY())-Table13[[#This Row],[Installation Year]])<0,0,'Life Expectancy and Criticality'!$V151-(YEAR(TODAY())-Table13[[#This Row],[Installation Year]])))) -> 
A155: =IF('CoF and PoF'!C151="--","",'CoF and PoF'!C151) ->  | K155: =IF(Table13[[#This Row],[I.D. Number ]]="","",IF(Table13[[#This Row],[Installation Year]]="","",('Life Expectancy and Criticality'!$V152+Table13[[#This Row],[Installation Year]]))) ->  | L155: =IF(Table13[[#This Row],[I.D. Number ]]="","",(IF('Life Expectancy and Criticality'!$V152-(YEAR(TODAY())-Table13[[#This Row],[Installation Year]])<0,0,'Life Expectancy and Criticality'!$V152-(YEAR(TODAY())-Table13[[#This Row],[Installation Year]])))) -> 
A156: =IF('CoF and PoF'!C152="--","",'CoF and PoF'!C152) ->  | K156: =IF(Table13[[#This Row],[I.D. Number ]]="","",IF(Table13[[#This Row],[Installation Year]]="","",('Life Expectancy and Criticality'!$V153+Table13[[#This Row],[Installation Year]]))) ->  | L156: =IF(Table13[[#This Row],[I.D. Number ]]="","",(IF('Life Expectancy and Criticality'!$V153-(YEAR(TODAY())-Table13[[#This Row],[Installation Year]])<0,0,'Life Expectancy and Criticality'!$V153-(YEAR(TODAY())-Table13[[#This Row],[Installation Year]])))) -> 
A157: =IF('CoF and PoF'!C153="--","",'CoF and PoF'!C153) ->  | K157: =IF(Table13[[#This Row],[I.D. Number ]]="","",IF(Table13[[#This Row],[Installation Year]]="","",('Life Expectancy and Criticality'!$V154+Table13[[#This Row],[Installation Year]]))) ->  | L157: =IF(Table13[[#This Row],[I.D. Number ]]="","",(IF('Life Expectancy and Criticality'!$V154-(YEAR(TODAY())-Table13[[#This Row],[Installation Year]])<0,0,'Life Expectancy and Criticality'!$V154-(YEAR(TODAY())-Table13[[#This Row],[Installation Year]])))) -> 
A158: =IF('CoF and PoF'!C154="--","",'CoF and PoF'!C154) ->  | K158: =IF(Table13[[#This Row],[I.D. Number ]]="","",IF(Table13[[#This Row],[Installation Year]]="","",('Life Expectancy and Criticality'!$V155+Table13[[#This Row],[Installation Year]]))) ->  | L158: =IF(Table13[[#This Row],[I.D. Number ]]="","",(IF('Life Expectancy and Criticality'!$V155-(YEAR(TODAY())-Table13[[#This Row],[Installation Year]])<0,0,'Life Expectancy and Criticality'!$V155-(YEAR(TODAY())-Table13[[#This Row],[Installation Year]])))) -> 
A159: =IF('CoF and PoF'!C155="--","",'CoF and PoF'!C155) ->  | K159: =IF(Table13[[#This Row],[I.D. Number ]]="","",IF(Table13[[#This Row],[Installation Year]]="","",('Life Expectancy and Criticality'!$V156+Table13[[#This Row],[Installation Year]]))) ->  | L159: =IF(Table13[[#This Row],[I.D. Number ]]="","",(IF('Life Expectancy and Criticality'!$V156-(YEAR(TODAY())-Table13[[#This Row],[Installation Year]])<0,0,'Life Expectancy and Criticality'!$V156-(YEAR(TODAY())-Table13[[#This Row],[Installation Year]])))) -> 
A160: =IF('CoF and PoF'!C156="--","",'CoF and PoF'!C156) ->  | K160: =IF(Table13[[#This Row],[I.D. Number ]]="","",IF(Table13[[#This Row],[Installation Year]]="","",('Life Expectancy and Criticality'!$V157+Table13[[#This Row],[Installation Year]]))) ->  | L160: =IF(Table13[[#This Row],[I.D. Number ]]="","",(IF('Life Expectancy and Criticality'!$V157-(YEAR(TODAY())-Table13[[#This Row],[Installation Year]])<0,0,'Life Expectancy and Criticality'!$V157-(YEAR(TODAY())-Table13[[#This Row],[Installation Year]])))) -> 
A161: =IF('CoF and PoF'!C157="--","",'CoF and PoF'!C157) ->  | K161: =IF(Table13[[#This Row],[I.D. Number ]]="","",IF(Table13[[#This Row],[Installation Year]]="","",('Life Expectancy and Criticality'!$V158+Table13[[#This Row],[Installation Year]]))) ->  | L161: =IF(Table13[[#This Row],[I.D. Number ]]="","",(IF('Life Expectancy and Criticality'!$V158-(YEAR(TODAY())-Table13[[#This Row],[Installation Year]])<0,0,'Life Expectancy and Criticality'!$V158-(YEAR(TODAY())-Table13[[#This Row],[Installation Year]])))) -> 
A162: =IF('CoF and PoF'!C158="--","",'CoF and PoF'!C158) ->  | K162: =IF(Table13[[#This Row],[I.D. Number ]]="","",IF(Table13[[#This Row],[Installation Year]]="","",('Life Expectancy and Criticality'!$V159+Table13[[#This Row],[Installation Year]]))) ->  | L162: =IF(Table13[[#This Row],[I.D. Number ]]="","",(IF('Life Expectancy and Criticality'!$V159-(YEAR(TODAY())-Table13[[#This Row],[Installation Year]])<0,0,'Life Expectancy and Criticality'!$V159-(YEAR(TODAY())-Table13[[#This Row],[Installation Year]])))) -> 
A163: =IF('CoF and PoF'!C159="--","",'CoF and PoF'!C159) ->  | K163: =IF(Table13[[#This Row],[I.D. Number ]]="","",IF(Table13[[#This Row],[Installation Year]]="","",('Life Expectancy and Criticality'!$V160+Table13[[#This Row],[Installation Year]]))) ->  | L163: =IF(Table13[[#This Row],[I.D. Number ]]="","",(IF('Life Expectancy and Criticality'!$V160-(YEAR(TODAY())-Table13[[#This Row],[Installation Year]])<0,0,'Life Expectancy and Criticality'!$V160-(YEAR(TODAY())-Table13[[#This Row],[Installation Year]])))) -> 
A164: =IF('CoF and PoF'!C160="--","",'CoF and PoF'!C160) ->  | K164: =IF(Table13[[#This Row],[I.D. Number ]]="","",IF(Table13[[#This Row],[Installation Year]]="","",('Life Expectancy and Criticality'!$V161+Table13[[#This Row],[Installation Year]]))) ->  | L164: =IF(Table13[[#This Row],[I.D. Number ]]="","",(IF('Life Expectancy and Criticality'!$V161-(YEAR(TODAY())-Table13[[#This Row],[Installation Year]])<0,0,'Life Expectancy and Criticality'!$V161-(YEAR(TODAY())-Table13[[#This Row],[Installation Year]])))) -> 
A165: =IF('CoF and PoF'!C161="--","",'CoF and PoF'!C161) ->  | K165: =IF(Table13[[#This Row],[I.D. Number ]]="","",IF(Table13[[#This Row],[Installation Year]]="","",('Life Expectancy and Criticality'!$V162+Table13[[#This Row],[Installation Year]]))) ->  | L165: =IF(Table13[[#This Row],[I.D. Number ]]="","",(IF('Life Expectancy and Criticality'!$V162-(YEAR(TODAY())-Table13[[#This Row],[Installation Year]])<0,0,'Life Expectancy and Criticality'!$V162-(YEAR(TODAY())-Table13[[#This Row],[Installation Year]])))) -> 
A166: =IF('CoF and PoF'!C162="--","",'CoF and PoF'!C162) ->  | K166: =IF(Table13[[#This Row],[I.D. Number ]]="","",IF(Table13[[#This Row],[Installation Year]]="","",('Life Expectancy and Criticality'!$V163+Table13[[#This Row],[Installation Year]]))) ->  | L166: =IF(Table13[[#This Row],[I.D. Number ]]="","",(IF('Life Expectancy and Criticality'!$V163-(YEAR(TODAY())-Table13[[#This Row],[Installation Year]])<0,0,'Life Expectancy and Criticality'!$V163-(YEAR(TODAY())-Table13[[#This Row],[Installation Year]])))) -> 
A167: =IF('CoF and PoF'!C163="--","",'CoF and PoF'!C163) ->  | K167: =IF(Table13[[#This Row],[I.D. Number ]]="","",IF(Table13[[#This Row],[Installation Year]]="","",('Life Expectancy and Criticality'!$V164+Table13[[#This Row],[Installation Year]]))) ->  | L167: =IF(Table13[[#This Row],[I.D. Number ]]="","",(IF('Life Expectancy and Criticality'!$V164-(YEAR(TODAY())-Table13[[#This Row],[Installation Year]])<0,0,'Life Expectancy and Criticality'!$V164-(YEAR(TODAY())-Table13[[#This Row],[Installation Year]])))) -> 
A168: =IF('CoF and PoF'!C164="--","",'CoF and PoF'!C164) ->  | K168: =IF(Table13[[#This Row],[I.D. Number ]]="","",IF(Table13[[#This Row],[Installation Year]]="","",('Life Expectancy and Criticality'!$V165+Table13[[#This Row],[Installation Year]]))) ->  | L168: =IF(Table13[[#This Row],[I.D. Number ]]="","",(IF('Life Expectancy and Criticality'!$V165-(YEAR(TODAY())-Table13[[#This Row],[Installation Year]])<0,0,'Life Expectancy and Criticality'!$V165-(YEAR(TODAY())-Table13[[#This Row],[Installation Year]])))) -> 
A169: =IF('CoF and PoF'!C165="--","",'CoF and PoF'!C165) ->  | K169: =IF(Table13[[#This Row],[I.D. Number ]]="","",IF(Table13[[#This Row],[Installation Year]]="","",('Life Expectancy and Criticality'!$V166+Table13[[#This Row],[Installation Year]]))) ->  | L169: =IF(Table13[[#This Row],[I.D. Number ]]="","",(IF('Life Expectancy and Criticality'!$V166-(YEAR(TODAY())-Table13[[#This Row],[Installation Year]])<0,0,'Life Expectancy and Criticality'!$V166-(YEAR(TODAY())-Table13[[#This Row],[Installation Year]])))) -> 
A170: =IF('CoF and PoF'!C166="--","",'CoF and PoF'!C166) ->  | K170: =IF(Table13[[#This Row],[I.D. Number ]]="","",IF(Table13[[#This Row],[Installation Year]]="","",('Life Expectancy and Criticality'!$V167+Table13[[#This Row],[Installation Year]]))) ->  | L170: =IF(Table13[[#This Row],[I.D. Number ]]="","",(IF('Life Expectancy and Criticality'!$V167-(YEAR(TODAY())-Table13[[#This Row],[Installation Year]])<0,0,'Life Expectancy and Criticality'!$V167-(YEAR(TODAY())-Table13[[#This Row],[Installation Year]])))) -> 
A171: =IF('CoF and PoF'!C167="--","",'CoF and PoF'!C167) ->  | K171: =IF(Table13[[#This Row],[I.D. Number ]]="","",IF(Table13[[#This Row],[Installation Year]]="","",('Life Expectancy and Criticality'!$V168+Table13[[#This Row],[Installation Year]]))) ->  | L171: =IF(Table13[[#This Row],[I.D. Number ]]="","",(IF('Life Expectancy and Criticality'!$V168-(YEAR(TODAY())-Table13[[#This Row],[Installation Year]])<0,0,'Life Expectancy and Criticality'!$V168-(YEAR(TODAY())-Table13[[#This Row],[Installation Year]])))) -> 
A172: =IF('CoF and PoF'!C168="--","",'CoF and PoF'!C168) ->  | K172: =IF(Table13[[#This Row],[I.D. Number ]]="","",IF(Table13[[#This Row],[Installation Year]]="","",('Life Expectancy and Criticality'!$V169+Table13[[#This Row],[Installation Year]]))) ->  | L172: =IF(Table13[[#This Row],[I.D. Number ]]="","",(IF('Life Expectancy and Criticality'!$V169-(YEAR(TODAY())-Table13[[#This Row],[Installation Year]])<0,0,'Life Expectancy and Criticality'!$V169-(YEAR(TODAY())-Table13[[#This Row],[Installation Year]])))) -> 
A173: =IF('CoF and PoF'!C169="--","",'CoF and PoF'!C169) ->  | K173: =IF(Table13[[#This Row],[I.D. Number ]]="","",IF(Table13[[#This Row],[Installation Year]]="","",('Life Expectancy and Criticality'!$V170+Table13[[#This Row],[Installation Year]]))) ->  | L173: =IF(Table13[[#This Row],[I.D. Number ]]="","",(IF('Life Expectancy and Criticality'!$V170-(YEAR(TODAY())-Table13[[#This Row],[Installation Year]])<0,0,'Life Expectancy and Criticality'!$V170-(YEAR(TODAY())-Table13[[#This Row],[Installation Year]])))) -> 
A174: =IF('CoF and PoF'!C170="--","",'CoF and PoF'!C170) ->  | K174: =IF(Table13[[#This Row],[I.D. Number ]]="","",IF(Table13[[#This Row],[Installation Year]]="","",('Life Expectancy and Criticality'!$V171+Table13[[#This Row],[Installation Year]]))) ->  | L174: =IF(Table13[[#This Row],[I.D. Number ]]="","",(IF('Life Expectancy and Criticality'!$V171-(YEAR(TODAY())-Table13[[#This Row],[Installation Year]])<0,0,'Life Expectancy and Criticality'!$V171-(YEAR(TODAY())-Table13[[#This Row],[Installation Year]])))) -> 
A175: =IF('CoF and PoF'!C171="--","",'CoF and PoF'!C171) ->  | K175: =IF(Table13[[#This Row],[I.D. Number ]]="","",IF(Table13[[#This Row],[Installation Year]]="","",('Life Expectancy and Criticality'!$V172+Table13[[#This Row],[Installation Year]]))) ->  | L175: =IF(Table13[[#This Row],[I.D. Number ]]="","",(IF('Life Expectancy and Criticality'!$V172-(YEAR(TODAY())-Table13[[#This Row],[Installation Year]])<0,0,'Life Expectancy and Criticality'!$V172-(YEAR(TODAY())-Table13[[#This Row],[Installation Year]])))) -> 
A176: =IF('CoF and PoF'!C172="--","",'CoF and PoF'!C172) ->  | K176: =IF(Table13[[#This Row],[I.D. Number ]]="","",IF(Table13[[#This Row],[Installation Year]]="","",('Life Expectancy and Criticality'!$V173+Table13[[#This Row],[Installation Year]]))) ->  | L176: =IF(Table13[[#This Row],[I.D. Number ]]="","",(IF('Life Expectancy and Criticality'!$V173-(YEAR(TODAY())-Table13[[#This Row],[Installation Year]])<0,0,'Life Expectancy and Criticality'!$V173-(YEAR(TODAY())-Table13[[#This Row],[Installation Year]])))) -> 
A177: =IF('CoF and PoF'!C173="--","",'CoF and PoF'!C173) ->  | K177: =IF(Table13[[#This Row],[I.D. Number ]]="","",IF(Table13[[#This Row],[Installation Year]]="","",('Life Expectancy and Criticality'!$V174+Table13[[#This Row],[Installation Year]]))) ->  | L177: =IF(Table13[[#This Row],[I.D. Number ]]="","",(IF('Life Expectancy and Criticality'!$V174-(YEAR(TODAY())-Table13[[#This Row],[Installation Year]])<0,0,'Life Expectancy and Criticality'!$V174-(YEAR(TODAY())-Table13[[#This Row],[Installation Year]])))) -> 
A178: =IF('CoF and PoF'!C174="--","",'CoF and PoF'!C174) ->  | K178: =IF(Table13[[#This Row],[I.D. Number ]]="","",IF(Table13[[#This Row],[Installation Year]]="","",('Life Expectancy and Criticality'!$V175+Table13[[#This Row],[Installation Year]]))) ->  | L178: =IF(Table13[[#This Row],[I.D. Number ]]="","",(IF('Life Expectancy and Criticality'!$V175-(YEAR(TODAY())-Table13[[#This Row],[Installation Year]])<0,0,'Life Expectancy and Criticality'!$V175-(YEAR(TODAY())-Table13[[#This Row],[Installation Year]])))) -> 
A179: =IF('CoF and PoF'!C175="--","",'CoF and PoF'!C175) ->  | K179: =IF(Table13[[#This Row],[I.D. Number ]]="","",IF(Table13[[#This Row],[Installation Year]]="","",('Life Expectancy and Criticality'!$V176+Table13[[#This Row],[Installation Year]]))) ->  | L179: =IF(Table13[[#This Row],[I.D. Number ]]="","",(IF('Life Expectancy and Criticality'!$V176-(YEAR(TODAY())-Table13[[#This Row],[Installation Year]])<0,0,'Life Expectancy and Criticality'!$V176-(YEAR(TODAY())-Table13[[#This Row],[Installation Year]])))) -> 
A180: =IF('CoF and PoF'!C176="--","",'CoF and PoF'!C176) ->  | K180: =IF(Table13[[#This Row],[I.D. Number ]]="","",IF(Table13[[#This Row],[Installation Year]]="","",('Life Expectancy and Criticality'!$V177+Table13[[#This Row],[Installation Year]]))) ->  | L180: =IF(Table13[[#This Row],[I.D. Number ]]="","",(IF('Life Expectancy and Criticality'!$V177-(YEAR(TODAY())-Table13[[#This Row],[Installation Year]])<0,0,'Life Expectancy and Criticality'!$V177-(YEAR(TODAY())-Table13[[#This Row],[Installation Year]])))) -> 
A181: =IF('CoF and PoF'!C177="--","",'CoF and PoF'!C177) ->  | K181: =IF(Table13[[#This Row],[I.D. Number ]]="","",IF(Table13[[#This Row],[Installation Year]]="","",('Life Expectancy and Criticality'!$V178+Table13[[#This Row],[Installation Year]]))) ->  | L181: =IF(Table13[[#This Row],[I.D. Number ]]="","",(IF('Life Expectancy and Criticality'!$V178-(YEAR(TODAY())-Table13[[#This Row],[Installation Year]])<0,0,'Life Expectancy and Criticality'!$V178-(YEAR(TODAY())-Table13[[#This Row],[Installation Year]])))) -> 
A182: =IF('CoF and PoF'!C178="--","",'CoF and PoF'!C178) ->  | K182: =IF(Table13[[#This Row],[I.D. Number ]]="","",IF(Table13[[#This Row],[Installation Year]]="","",('Life Expectancy and Criticality'!$V179+Table13[[#This Row],[Installation Year]]))) ->  | L182: =IF(Table13[[#This Row],[I.D. Number ]]="","",(IF('Life Expectancy and Criticality'!$V179-(YEAR(TODAY())-Table13[[#This Row],[Installation Year]])<0,0,'Life Expectancy and Criticality'!$V179-(YEAR(TODAY())-Table13[[#This Row],[Installation Year]])))) -> 
A183: =IF('CoF and PoF'!C179="--","",'CoF and PoF'!C179) ->  | K183: =IF(Table13[[#This Row],[I.D. Number ]]="","",IF(Table13[[#This Row],[Installation Year]]="","",('Life Expectancy and Criticality'!$V180+Table13[[#This Row],[Installation Year]]))) ->  | L183: =IF(Table13[[#This Row],[I.D. Number ]]="","",(IF('Life Expectancy and Criticality'!$V180-(YEAR(TODAY())-Table13[[#This Row],[Installation Year]])<0,0,'Life Expectancy and Criticality'!$V180-(YEAR(TODAY())-Table13[[#This Row],[Installation Year]])))) -> 
A184: =IF('CoF and PoF'!C180="--","",'CoF and PoF'!C180) ->  | K184: =IF(Table13[[#This Row],[I.D. Number ]]="","",IF(Table13[[#This Row],[Installation Year]]="","",('Life Expectancy and Criticality'!$V181+Table13[[#This Row],[Installation Year]]))) ->  | L184: =IF(Table13[[#This Row],[I.D. Number ]]="","",(IF('Life Expectancy and Criticality'!$V181-(YEAR(TODAY())-Table13[[#This Row],[Installation Year]])<0,0,'Life Expectancy and Criticality'!$V181-(YEAR(TODAY())-Table13[[#This Row],[Installation Year]])))) -> 
A185: =IF('CoF and PoF'!C181="--","",'CoF and PoF'!C181) ->  | K185: =IF(Table13[[#This Row],[I.D. Number ]]="","",IF(Table13[[#This Row],[Installation Year]]="","",('Life Expectancy and Criticality'!$V182+Table13[[#This Row],[Installation Year]]))) ->  | L185: =IF(Table13[[#This Row],[I.D. Number ]]="","",(IF('Life Expectancy and Criticality'!$V182-(YEAR(TODAY())-Table13[[#This Row],[Installation Year]])<0,0,'Life Expectancy and Criticality'!$V182-(YEAR(TODAY())-Table13[[#This Row],[Installation Year]])))) -> 
A186: =IF('CoF and PoF'!C182="--","",'CoF and PoF'!C182) ->  | K186: =IF(Table13[[#This Row],[I.D. Number ]]="","",IF(Table13[[#This Row],[Installation Year]]="","",('Life Expectancy and Criticality'!$V183+Table13[[#This Row],[Installation Year]]))) ->  | L186: =IF(Table13[[#This Row],[I.D. Number ]]="","",(IF('Life Expectancy and Criticality'!$V183-(YEAR(TODAY())-Table13[[#This Row],[Installation Year]])<0,0,'Life Expectancy and Criticality'!$V183-(YEAR(TODAY())-Table13[[#This Row],[Installation Year]])))) -> 
A187: =IF('CoF and PoF'!C183="--","",'CoF and PoF'!C183) ->  | K187: =IF(Table13[[#This Row],[I.D. Number ]]="","",IF(Table13[[#This Row],[Installation Year]]="","",('Life Expectancy and Criticality'!$V184+Table13[[#This Row],[Installation Year]]))) ->  | L187: =IF(Table13[[#This Row],[I.D. Number ]]="","",(IF('Life Expectancy and Criticality'!$V184-(YEAR(TODAY())-Table13[[#This Row],[Installation Year]])<0,0,'Life Expectancy and Criticality'!$V184-(YEAR(TODAY())-Table13[[#This Row],[Installation Year]])))) -> 
A188: =IF('CoF and PoF'!C184="--","",'CoF and PoF'!C184) ->  | K188: =IF(Table13[[#This Row],[I.D. Number ]]="","",IF(Table13[[#This Row],[Installation Year]]="","",('Life Expectancy and Criticality'!$V185+Table13[[#This Row],[Installation Year]]))) ->  | L188: =IF(Table13[[#This Row],[I.D. Number ]]="","",(IF('Life Expectancy and Criticality'!$V185-(YEAR(TODAY())-Table13[[#This Row],[Installation Year]])<0,0,'Life Expectancy and Criticality'!$V185-(YEAR(TODAY())-Table13[[#This Row],[Installation Year]])))) -> 
A189: =IF('CoF and PoF'!C185="--","",'CoF and PoF'!C185) ->  | K189: =IF(Table13[[#This Row],[I.D. Number ]]="","",IF(Table13[[#This Row],[Installation Year]]="","",('Life Expectancy and Criticality'!$V186+Table13[[#This Row],[Installation Year]]))) ->  | L189: =IF(Table13[[#This Row],[I.D. Number ]]="","",(IF('Life Expectancy and Criticality'!$V186-(YEAR(TODAY())-Table13[[#This Row],[Installation Year]])<0,0,'Life Expectancy and Criticality'!$V186-(YEAR(TODAY())-Table13[[#This Row],[Installation Year]])))) -> 
A190: =IF('CoF and PoF'!C186="--","",'CoF and PoF'!C186) ->  | K190: =IF(Table13[[#This Row],[I.D. Number ]]="","",IF(Table13[[#This Row],[Installation Year]]="","",('Life Expectancy and Criticality'!$V187+Table13[[#This Row],[Installation Year]]))) ->  | L190: =IF(Table13[[#This Row],[I.D. Number ]]="","",(IF('Life Expectancy and Criticality'!$V187-(YEAR(TODAY())-Table13[[#This Row],[Installation Year]])<0,0,'Life Expectancy and Criticality'!$V187-(YEAR(TODAY())-Table13[[#This Row],[Installation Year]])))) -> 
A191: =IF('CoF and PoF'!C187="--","",'CoF and PoF'!C187) ->  | K191: =IF(Table13[[#This Row],[I.D. Number ]]="","",IF(Table13[[#This Row],[Installation Year]]="","",('Life Expectancy and Criticality'!$V188+Table13[[#This Row],[Installation Year]]))) ->  | L191: =IF(Table13[[#This Row],[I.D. Number ]]="","",(IF('Life Expectancy and Criticality'!$V188-(YEAR(TODAY())-Table13[[#This Row],[Installation Year]])<0,0,'Life Expectancy and Criticality'!$V188-(YEAR(TODAY())-Table13[[#This Row],[Installation Year]])))) -> 
A192: =IF('CoF and PoF'!C188="--","",'CoF and PoF'!C188) ->  | K192: =IF(Table13[[#This Row],[I.D. Number ]]="","",IF(Table13[[#This Row],[Installation Year]]="","",('Life Expectancy and Criticality'!$V189+Table13[[#This Row],[Installation Year]]))) ->  | L192: =IF(Table13[[#This Row],[I.D. Number ]]="","",(IF('Life Expectancy and Criticality'!$V189-(YEAR(TODAY())-Table13[[#This Row],[Installation Year]])<0,0,'Life Expectancy and Criticality'!$V189-(YEAR(TODAY())-Table13[[#This Row],[Installation Year]])))) -> 
A193: =IF('CoF and PoF'!C189="--","",'CoF and PoF'!C189) ->  | K193: =IF(Table13[[#This Row],[I.D. Number ]]="","",IF(Table13[[#This Row],[Installation Year]]="","",('Life Expectancy and Criticality'!$V190+Table13[[#This Row],[Installation Year]]))) ->  | L193: =IF(Table13[[#This Row],[I.D. Number ]]="","",(IF('Life Expectancy and Criticality'!$V190-(YEAR(TODAY())-Table13[[#This Row],[Installation Year]])<0,0,'Life Expectancy and Criticality'!$V190-(YEAR(TODAY())-Table13[[#This Row],[Installation Year]])))) -> 
A194: =IF('CoF and PoF'!C190="--","",'CoF and PoF'!C190) ->  | K194: =IF(Table13[[#This Row],[I.D. Number ]]="","",IF(Table13[[#This Row],[Installation Year]]="","",('Life Expectancy and Criticality'!$V191+Table13[[#This Row],[Installation Year]]))) ->  | L194: =IF(Table13[[#This Row],[I.D. Number ]]="","",(IF('Life Expectancy and Criticality'!$V191-(YEAR(TODAY())-Table13[[#This Row],[Installation Year]])<0,0,'Life Expectancy and Criticality'!$V191-(YEAR(TODAY())-Table13[[#This Row],[Installation Year]])))) -> 
A195: =IF('CoF and PoF'!C191="--","",'CoF and PoF'!C191) ->  | K195: =IF(Table13[[#This Row],[I.D. Number ]]="","",IF(Table13[[#This Row],[Installation Year]]="","",('Life Expectancy and Criticality'!$V192+Table13[[#This Row],[Installation Year]]))) ->  | L195: =IF(Table13[[#This Row],[I.D. Number ]]="","",(IF('Life Expectancy and Criticality'!$V192-(YEAR(TODAY())-Table13[[#This Row],[Installation Year]])<0,0,'Life Expectancy and Criticality'!$V192-(YEAR(TODAY())-Table13[[#This Row],[Installation Year]])))) -> 
A196: =IF('CoF and PoF'!C192="--","",'CoF and PoF'!C192) ->  | K196: =IF(Table13[[#This Row],[I.D. Number ]]="","",IF(Table13[[#This Row],[Installation Year]]="","",('Life Expectancy and Criticality'!$V193+Table13[[#This Row],[Installation Year]]))) ->  | L196: =IF(Table13[[#This Row],[I.D. Number ]]="","",(IF('Life Expectancy and Criticality'!$V193-(YEAR(TODAY())-Table13[[#This Row],[Installation Year]])<0,0,'Life Expectancy and Criticality'!$V193-(YEAR(TODAY())-Table13[[#This Row],[Installation Year]])))) -> 
A197: =IF('CoF and PoF'!C193="--","",'CoF and PoF'!C193) ->  | K197: =IF(Table13[[#This Row],[I.D. Number ]]="","",IF(Table13[[#This Row],[Installation Year]]="","",('Life Expectancy and Criticality'!$V194+Table13[[#This Row],[Installation Year]]))) ->  | L197: =IF(Table13[[#This Row],[I.D. Number ]]="","",(IF('Life Expectancy and Criticality'!$V194-(YEAR(TODAY())-Table13[[#This Row],[Installation Year]])<0,0,'Life Expectancy and Criticality'!$V194-(YEAR(TODAY())-Table13[[#This Row],[Installation Year]])))) -> 
A198: =IF('CoF and PoF'!C194="--","",'CoF and PoF'!C194) ->  | K198: =IF(Table13[[#This Row],[I.D. Number ]]="","",IF(Table13[[#This Row],[Installation Year]]="","",('Life Expectancy and Criticality'!$V195+Table13[[#This Row],[Installation Year]]))) ->  | L198: =IF(Table13[[#This Row],[I.D. Number ]]="","",(IF('Life Expectancy and Criticality'!$V195-(YEAR(TODAY())-Table13[[#This Row],[Installation Year]])<0,0,'Life Expectancy and Criticality'!$V195-(YEAR(TODAY())-Table13[[#This Row],[Installation Year]])))) -> 
A199: =IF('CoF and PoF'!C195="--","",'CoF and PoF'!C195) ->  | K199: =IF(Table13[[#This Row],[I.D. Number ]]="","",IF(Table13[[#This Row],[Installation Year]]="","",('Life Expectancy and Criticality'!$V196+Table13[[#This Row],[Installation Year]]))) ->  | L199: =IF(Table13[[#This Row],[I.D. Number ]]="","",(IF('Life Expectancy and Criticality'!$V196-(YEAR(TODAY())-Table13[[#This Row],[Installation Year]])<0,0,'Life Expectancy and Criticality'!$V196-(YEAR(TODAY())-Table13[[#This Row],[Installation Year]])))) -> 
A200: =IF('CoF and PoF'!C196="--","",'CoF and PoF'!C196) ->  | K200: =IF(Table13[[#This Row],[I.D. Number ]]="","",IF(Table13[[#This Row],[Installation Year]]="","",('Life Expectancy and Criticality'!$V197+Table13[[#This Row],[Installation Year]]))) ->  | L200: =IF(Table13[[#This Row],[I.D. Number ]]="","",(IF('Life Expectancy and Criticality'!$V197-(YEAR(TODAY())-Table13[[#This Row],[Installation Year]])<0,0,'Life Expectancy and Criticality'!$V197-(YEAR(TODAY())-Table13[[#This Row],[Installation Year]])))) -> 
A201: =IF('CoF and PoF'!C197="--","",'CoF and PoF'!C197) ->  | K201: =IF(Table13[[#This Row],[I.D. Number ]]="","",IF(Table13[[#This Row],[Installation Year]]="","",('Life Expectancy and Criticality'!$V198+Table13[[#This Row],[Installation Year]]))) ->  | L201: =IF(Table13[[#This Row],[I.D. Number ]]="","",(IF('Life Expectancy and Criticality'!$V198-(YEAR(TODAY())-Table13[[#This Row],[Installation Year]])<0,0,'Life Expectancy and Criticality'!$V198-(YEAR(TODAY())-Table13[[#This Row],[Installation Year]])))) -> 
A202: =IF('CoF and PoF'!C198="--","",'CoF and PoF'!C198) ->  | K202: =IF(Table13[[#This Row],[I.D. Number ]]="","",IF(Table13[[#This Row],[Installation Year]]="","",('Life Expectancy and Criticality'!$V199+Table13[[#This Row],[Installation Year]]))) ->  | L202: =IF(Table13[[#This Row],[I.D. Number ]]="","",(IF('Life Expectancy and Criticality'!$V199-(YEAR(TODAY())-Table13[[#This Row],[Installation Year]])<0,0,'Life Expectancy and Criticality'!$V199-(YEAR(TODAY())-Table13[[#This Row],[Installation Year]])))) -> 
... 44 more rows

Sheet Cost Data
I3: Cost Data and Long-term Funding
A5: I.D. Number | B5: Category | C5: Type | D5: Description | E5: Initial Price | F5: Initial Price Estimated? | G5: Year of Initial Price | H5: Current Predicted Cost (to purchase in 2024) | I5: Future Projected Cost (To purchase year of estimated failure) | J5: Year of Failure | K5: Long-Term Funding Source
A6: =Table13[[#This Row],[I.D. Number ]] -> TaEl-1994-1 | B6: =Table13[[#This Row],[Category]] -> Tank | C6: =Table13[[#This Row],[Type]] -> Elevated Storage Tank | D6: =Table13[[#This Row],[Description]] -> Tank | E6: 142320 | G6: =Table13[[#This Row],[Installation Year]] -> 1994 | H6: =IF($G6= YEAR(TODAY()),$E6,(IF($G6=0,"",IF(Table13[[#This Row],[Life Expectancy]]=0,((0.056*(YEAR(TODAY())-Table1468[[#This Row],[Year of Initial Price]])*Table1468[[#This Row],[Initial Price]])+Table1468[[#This Row],[Initial Price]]),((VLOOKUP(YEAR(TODAY()),'Inflation Data'!$A:$C,3,TRUE)-VLOOKUP(Table1468[[#This Row],[Year of Initial Price]],'Inflation Data'!$A:$C,3,TRUE))/(VLOOKUP(Table1468[[#This Row],[Year of Initial Price]],'Inflation Data'!$A:$C,3,TRUE))*Table1468[[#This Row],[Initial Price]])+Table1468[[#This Row],[Initial Price]])))) -> 381417.6 | I6: =IF($G6=YEAR(TODAY()),$E6,(IF($G6=0,"",IF(Table13[[#This Row],[Life Expectancy]]=0,H6, ((0.056*(Table1468[[#This Row],[Year of Failure]]-YEAR(TODAY()))*Table1468[[#This Row],[Current Predicted Cost (to purchase in 2024)]])+Table1468[[#This Row],[Current Predicted Cost (to purchase in 2024)]]))))) -> 381417.6 | J6: =Table13[[#This Row],[Estimated Year of Failure]] -> 2019 | M6: FALSE
A7: =Table13[[#This Row],[I.D. Number ]] -> TaEl-1994-2 | B7: =Table13[[#This Row],[Category]] -> Tank | C7: =Table13[[#This Row],[Type]] -> Elevated Storage Tank | D7: =Table13[[#This Row],[Description]] -> Tank | E7: 142320 | G7: =Table13[[#This Row],[Installation Year]] -> 1994 | H7: =IF($G7= YEAR(TODAY()),$E7,(IF($G7=0,"",IF(Table13[[#This Row],[Life Expectancy]]=0,((0.056*(YEAR(TODAY())-Table1468[[#This Row],[Year of Initial Price]])*Table1468[[#This Row],[Initial Price]])+Table1468[[#This Row],[Initial Price]]),((VLOOKUP(YEAR(TODAY()),'Inflation Data'!$A:$C,3,TRUE)-VLOOKUP(Table1468[[#This Row],[Year of Initial Price]],'Inflation Data'!$A:$C,3,TRUE))/(VLOOKUP(Table1468[[#This Row],[Year of Initial Price]],'Inflation Data'!$A:$C,3,TRUE))*Table1468[[#This Row],[Initial Price]])+Table1468[[#This Row],[Initial Price]])))) -> 381417.6 | I7: =IF($G7=YEAR(TODAY()),$E7,(IF($G7=0,"",IF(Table13[[#This Row],[Life Expectancy]]=0,H7, ((0.056*(Table1468[[#This Row],[Year of Failure]]-YEAR(TODAY()))*Table1468[[#This Row],[Current Predicted Cost (to purchase in 2024)]])+Table1468[[#This Row],[Current Predicted Cost (to purchase in 2024)]]))))) -> 381417.6 | J7: =Table13[[#This Row],[Estimated Year of Failure]] -> 2019 | M7: FALSE
A8: =Table13[[#This Row],[I.D. Number ]] -> PiPV-1970-1 | B8: =Table13[[#This Row],[Category]] -> Pipe | C8: =Table13[[#This Row],[Type]] -> PVC | D8: =Table13[[#This Row],[Description]] -> 68662 linear feet | E8: 2.5 | G8: =Table13[[#This Row],[Installation Year]] -> 1970 | H8: =IF($G8= YEAR(TODAY()),$E8,(IF($G8=0,"",IF(Table13[[#This Row],[Life Expectancy]]=0,((0.056*(YEAR(TODAY())-Table1468[[#This Row],[Year of Initial Price]])*Table1468[[#This Row],[Initial Price]])+Table1468[[#This Row],[Initial Price]]),((VLOOKUP(YEAR(TODAY()),'Inflation Data'!$A:$C,3,TRUE)-VLOOKUP(Table1468[[#This Row],[Year of Initial Price]],'Inflation Data'!$A:$C,3,TRUE))/(VLOOKUP(Table1468[[#This Row],[Year of Initial Price]],'Inflation Data'!$A:$C,3,TRUE))*Table1468[[#This Row],[Initial Price]])+Table1468[[#This Row],[Initial Price]])))) -> 10.06 | I8: =IF($G8=YEAR(TODAY()),$E8,(IF($G8=0,"",IF(Table13[[#This Row],[Life Expectancy]]=0,H8, ((0.056*(Table1468[[#This Row],[Year of Failure]]-YEAR(TODAY()))*Table1468[[#This Row],[Current Predicted Cost (to purchase in 2024)]])+Table1468[[#This Row],[Current Predicted Cost (to purchase in 2024)]]))))) -> 10.06 | J8: =Table13[[#This Row],[Estimated Year of Failure]] -> 2010 | M8: TRUE
A9: =Table13[[#This Row],[I.D. Number ]] -> PiPV-1970-2 | B9: =Table13[[#This Row],[Category]] -> Pipe | C9: =Table13[[#This Row],[Type]] -> PVC | D9: =Table13[[#This Row],[Description]] -> 39651 linear feet | E9: 3.5 | G9: =Table13[[#This Row],[Installation Year]] -> 1970 | H9: =IF($G9= YEAR(TODAY()),$E9,(IF($G9=0,"",IF(Table13[[#This Row],[Life Expectancy]]=0,((0.056*(YEAR(TODAY())-Table1468[[#This Row],[Year of Initial Price]])*Table1468[[#This Row],[Initial Price]])+Table1468[[#This Row],[Initial Price]]),((VLOOKUP(YEAR(TODAY()),'Inflation Data'!$A:$C,3,TRUE)-VLOOKUP(Table1468[[#This Row],[Year of Initial Price]],'Inflation Data'!$A:$C,3,TRUE))/(VLOOKUP(Table1468[[#This Row],[Year of Initial Price]],'Inflation Data'!$A:$C,3,TRUE))*Table1468[[#This Row],[Initial Price]])+Table1468[[#This Row],[Initial Price]])))) -> 14.084 | I9: =IF($G9=YEAR(TODAY()),$E9,(IF($G9=0,"",IF(Table13[[#This Row],[Life Expectancy]]=0,H9, ((0.056*(Table1468[[#This Row],[Year of Failure]]-YEAR(TODAY()))*Table1468[[#This Row],[Current Predicted Cost (to purchase in 2024)]])+Table1468[[#This Row],[Current Predicted Cost (to purchase in 2024)]]))))) -> 14.084 | J9: =Table13[[#This Row],[Estimated Year of Failure]] -> 2010 | M9: TRUE
A10: =Table13[[#This Row],[I.D. Number ]] -> PiPV-2011-1 | B10: =Table13[[#This Row],[Category]] -> Pipe | C10: =Table13[[#This Row],[Type]] -> PVC | D10: =Table13[[#This Row],[Description]] -> 36,960 linear feet | E10: 5 | G10: =Table13[[#This Row],[Installation Year]] -> 2011 | H10: =IF($G10= YEAR(TODAY()),$E10,(IF($G10=0,"",IF(Table13[[#This Row],[Life Expectancy]]=0,((0.056*(YEAR(TODAY())-Table1468[[#This Row],[Year of Initial Price]])*Table1468[[#This Row],[Initial Price]])+Table1468[[#This Row],[Initial Price]]),((VLOOKUP(YEAR(TODAY()),'Inflation Data'!$A:$C,3,TRUE)-VLOOKUP(Table1468[[#This Row],[Year of Initial Price]],'Inflation Data'!$A:$C,3,TRUE))/(VLOOKUP(Table1468[[#This Row],[Year of Initial Price]],'Inflation Data'!$A:$C,3,TRUE))*Table1468[[#This Row],[Initial Price]])+Table1468[[#This Row],[Initial Price]])))) -> 6.803278715 | I10: =IF($G10=YEAR(TODAY()),$E10,(IF($G10=0,"",IF(Table13[[#This Row],[Life Expectancy]]=0,H10, ((0.056*(Table1468[[#This Row],[Year of Failure]]-YEAR(TODAY()))*Table1468[[#This Row],[Current Predicted Cost (to purchase in 2024)]])+Table1468[[#This Row],[Current Predicted Cost (to purchase in 2024)]]))))) -> 17.08983613 | J10: =Table13[[#This Row],[Estimated Year of Failure]] -> 2051 | M10: TRUE
A11: =Table13[[#This Row],[I.D. Number ]] -> PiPV-1970-3 | B11: =Table13[[#This Row],[Category]] -> Pipe | C11: =Table13[[#This Row],[Type]] -> PVC | D11: =Table13[[#This Row],[Description]] -> 24,923 linear feet | E11: 6 | G11: =Table13[[#This Row],[Installation Year]] -> 1970 | H11: =IF($G11= YEAR(TODAY()),$E11,(IF($G11=0,"",IF(Table13[[#This Row],[Life Expectancy]]=0,((0.056*(YEAR(TODAY())-Table1468[[#This Row],[Year of Initial Price]])*Table1468[[#This Row],[Initial Price]])+Table1468[[#This Row],[Initial Price]]),((VLOOKUP(YEAR(TODAY()),'Inflation Data'!$A:$C,3,TRUE)-VLOOKUP(Table1468[[#This Row],[Year of Initial Price]],'Inflation Data'!$A:$C,3,TRUE))/(VLOOKUP(Table1468[[#This Row],[Year of Initial Price]],'Inflation Data'!$A:$C,3,TRUE))*Table1468[[#This Row],[Initial Price]])+Table1468[[#This Row],[Initial Price]])))) -> 24.144 | I11: =IF($G11=YEAR(TODAY()),$E11,(IF($G11=0,"",IF(Table13[[#This Row],[Life Expectancy]]=0,H11, ((0.056*(Table1468[[#This Row],[Year of Failure]]-YEAR(TODAY()))*Table1468[[#This Row],[Current Predicted Cost (to purchase in 2024)]])+Table1468[[#This Row],[Current Predicted Cost (to purchase in 2024)]]))))) -> 24.144 | J11: =Table13[[#This Row],[Estimated Year of Failure]] -> 2010 | M11: TRUE
A12: =Table13[[#This Row],[I.D. Number ]] -> PiPV-1970-4 | B12: =Table13[[#This Row],[Category]] -> Pipe | C12: =Table13[[#This Row],[Type]] -> PVC | D12: =Table13[[#This Row],[Description]] -> 2,292 linear feet | E12: 7 | G12: =Table13[[#This Row],[Installation Year]] -> 1970 | H12: =IF($G12= YEAR(TODAY()),$E12,(IF($G12=0,"",IF(Table13[[#This Row],[Life Expectancy]]=0,((0.056*(YEAR(TODAY())-Table1468[[#This Row],[Year of Initial Price]])*Table1468[[#This Row],[Initial Price]])+Table1468[[#This Row],[Initial Price]]),((VLOOKUP(YEAR(TODAY()),'Inflation Data'!$A:$C,3,TRUE)-VLOOKUP(Table1468[[#This Row],[Year of Initial Price]],'Inflation Data'!$A:$C,3,TRUE))/(VLOOKUP(Table1468[[#This Row],[Year of Initial Price]],'Inflation Data'!$A:$C,3,TRUE))*Table1468[[#This Row],[Initial Price]])+Table1468[[#This Row],[Initial Price]])))) -> 28.168 | I12: =IF($G12=YEAR(TODAY()),$E12,(IF($G12=0,"",IF(Table13[[#This Row],[Life Expectancy]]=0,H12, ((0.056*(Table1468[[#This Row],[Year of Failure]]-YEAR(TODAY()))*Table1468[[#This Row],[Current Predicted Cost (to purchase in 2024)]])+Table1468[[#This Row],[Current Predicted Cost (to purchase in 2024)]]))))) -> 28.168 | J12: =Table13[[#This Row],[Estimated Year of Failure]] -> 2010 | M12: TRUE
A13: =Table13[[#This Row],[I.D. Number ]] -> PiPV-1994-1 | B13: =Table13[[#This Row],[Category]] -> Pipe | C13: =Table13[[#This Row],[Type]] -> PVC | D13: =Table13[[#This Row],[Description]] -> 31500 linrar feet | E13: 1.5 | G13: =Table13[[#This Row],[Installation Year]] -> 1994 | H13: =IF($G13= YEAR(TODAY()),$E13,(IF($G13=0,"",IF(Table13[[#This Row],[Life Expectancy]]=0,((0.056*(YEAR(TODAY())-Table1468[[#This Row],[Year of Initial Price]])*Table1468[[#This Row],[Initial Price]])+Table1468[[#This Row],[Initial Price]]),((VLOOKUP(YEAR(TODAY()),'Inflation Data'!$A:$C,3,TRUE)-VLOOKUP(Table1468[[#This Row],[Year of Initial Price]],'Inflation Data'!$A:$C,3,TRUE))/(VLOOKUP(Table1468[[#This Row],[Year of Initial Price]],'Inflation Data'!$A:$C,3,TRUE))*Table1468[[#This Row],[Initial Price]])+Table1468[[#This Row],[Initial Price]])))) -> 3.079218023 | I13: =IF($G13=YEAR(TODAY()),$E13,(IF($G13=0,"",IF(Table13[[#This Row],[Life Expectancy]]=0,H13, ((0.056*(Table1468[[#This Row],[Year of Failure]]-YEAR(TODAY()))*Table1468[[#This Row],[Current Predicted Cost (to purchase in 2024)]])+Table1468[[#This Row],[Current Predicted Cost (to purchase in 2024)]]))))) -> 4.803580115 | J13: =Table13[[#This Row],[Estimated Year of Failure]] -> 2034 | M13: TRUE
A14: =Table13[[#This Row],[I.D. Number ]] -> PiPV-1994-2 | B14: =Table13[[#This Row],[Category]] -> Pipe | C14: =Table13[[#This Row],[Type]] -> PVC | D14: =Table13[[#This Row],[Description]] -> 74550 linear feet | E14: 2.5 | G14: =Table13[[#This Row],[Installation Year]] -> 1994 | H14: =IF($G14= YEAR(TODAY()),$E14,(IF($G14=0,"",IF(Table13[[#This Row],[Life Expectancy]]=0,((0.056*(YEAR(TODAY())-Table1468[[#This Row],[Year of Initial Price]])*Table1468[[#This Row],[Initial Price]])+Table1468[[#This Row],[Initial Price]]),((VLOOKUP(YEAR(TODAY()),'Inflation Data'!$A:$C,3,TRUE)-VLOOKUP(Table1468[[#This Row],[Year of Initial Price]],'Inflation Data'!$A:$C,3,TRUE))/(VLOOKUP(Table1468[[#This Row],[Year of Initial Price]],'Inflation Data'!$A:$C,3,TRUE))*Table1468[[#This Row],[Initial Price]])+Table1468[[#This Row],[Initial Price]])))) -> 5.132030038 | I14: =IF($G14=YEAR(TODAY()),$E14,(IF($G14=0,"",IF(Table13[[#This Row],[Life Expectancy]]=0,H14, ((0.056*(Table1468[[#This Row],[Year of Failure]]-YEAR(TODAY()))*Table1468[[#This Row],[Current Predicted Cost (to purchase in 2024)]])+Table1468[[#This Row],[Current Predicted Cost (to purchase in 2024)]]))))) -> 8.005966859 | J14: =Table13[[#This Row],[Estimated Year of Failure]] -> 2034 | M14: TRUE
A15: =Table13[[#This Row],[I.D. Number ]] -> PiPV-1994-3 | B15: =Table13[[#This Row],[Category]] -> Pipe | C15: =Table13[[#This Row],[Type]] -> PVC | D15: =Table13[[#This Row],[Description]] -> 29,399 linear feet | E15: 3 | G15: =Table13[[#This Row],[Installation Year]] -> 1994 | H15: =IF($G15= YEAR(TODAY()),$E15,(IF($G15=0,"",IF(Table13[[#This Row],[Life Expectancy]]=0,((0.056*(YEAR(TODAY())-Table1468[[#This Row],[Year of Initial Price]])*Table1468[[#This Row],[Initial Price]])+Table1468[[#This Row],[Initial Price]]),((VLOOKUP(YEAR(TODAY()),'Inflation Data'!$A:$C,3,TRUE)-VLOOKUP(Table1468[[#This Row],[Year of Initial Price]],'Inflation Data'!$A:$C,3,TRUE))/(VLOOKUP(Table1468[[#This Row],[Year of Initial Price]],'Inflation Data'!$A:$C,3,TRUE))*Table1468[[#This Row],[Initial Price]])+Table1468[[#This Row],[Initial Price]])))) -> 6.158436046 | I15: =IF($G15=YEAR(TODAY()),$E15,(IF($G15=0,"",IF(Table13[[#This Row],[Life Expectancy]]=0,H15, ((0.056*(Table1468[[#This Row],[Year of Failure]]-YEAR(TODAY()))*Table1468[[#This Row],[Current Predicted Cost (to purchase in 2024)]])+Table1468[[#This Row],[Current Predicted Cost (to purchase in 2024)]]))))) -> 9.607160231 | J15: =Table13[[#This Row],[Estimated Year of Failure]] -> 2034 | M15: TRUE
A16: =Table13[[#This Row],[I.D. Number ]] -> PiPV-1994-4 | B16: =Table13[[#This Row],[Category]] -> Pipe | C16: =Table13[[#This Row],[Type]] -> PVC | D16: =Table13[[#This Row],[Description]] -> 5,713 linear feet | E16: 5 | G16: =Table13[[#This Row],[Installation Year]] -> 1994 | H16: =IF($G16= YEAR(TODAY()),$E16,(IF($G16=0,"",IF(Table13[[#This Row],[Life Expectancy]]=0,((0.056*(YEAR(TODAY())-Table1468[[#This Row],[Year of Initial Price]])*Table1468[[#This Row],[Initial Price]])+Table1468[[#This Row],[Initial Price]]),((VLOOKUP(YEAR(TODAY()),'Inflation Data'!$A:$C,3,TRUE)-VLOOKUP(Table1468[[#This Row],[Year of Initial Price]],'Inflation Data'!$A:$C,3,TRUE))/(VLOOKUP(Table1468[[#This Row],[Year of Initial Price]],'Inflation Data'!$A:$C,3,TRUE))*Table1468[[#This Row],[Initial Price]])+Table1468[[#This Row],[Initial Price]])))) -> 10.26406008 | I16: =IF($G16=YEAR(TODAY()),$E16,(IF($G16=0,"",IF(Table13[[#This Row],[Life Expectancy]]=0,H16, ((0.056*(Table1468[[#This Row],[Year of Failure]]-YEAR(TODAY()))*Table1468[[#This Row],[Current Predicted Cost (to purchase in 2024)]])+Table1468[[#This Row],[Current Predicted Cost (to purchase in 2024)]]))))) -> 16.01193372 | J16: =Table13[[#This Row],[Estimated Year of Failure]] -> 2034 | M16: TRUE
A17: =Table13[[#This Row],[I.D. Number ]] -> PiPV-1994-5 | B17: =Table13[[#This Row],[Category]] -> Pipe | C17: =Table13[[#This Row],[Type]] -> PVC | D17: =Table13[[#This Row],[Description]] -> 40,940 linear feet | E17: 10 | G17: =Table13[[#This Row],[Installation Year]] -> 1994 | H17: =IF($G17= YEAR(TODAY()),$E17,(IF($G17=0,"",IF(Table13[[#This Row],[Life Expectancy]]=0,((0.056*(YEAR(TODAY())-Table1468[[#This Row],[Year of Initial Price]])*Table1468[[#This Row],[Initial Price]])+Table1468[[#This Row],[Initial Price]]),((VLOOKUP(YEAR(TODAY()),'Inflation Data'!$A:$C,3,TRUE)-VLOOKUP(Table1468[[#This Row],[Year of Initial Price]],'Inflation Data'!$A:$C,3,TRUE))/(VLOOKUP(Table1468[[#This Row],[Year of Initial Price]],'Inflation Data'!$A:$C,3,TRUE))*Table1468[[#This Row],[Initial Price]])+Table1468[[#This Row],[Initial Price]])))) -> 20.52812015 | I17: =IF($G17=YEAR(TODAY()),$E17,(IF($G17=0,"",IF(Table13[[#This Row],[Life Expectancy]]=0,H17, ((0.056*(Table1468[[#This Row],[Year of Failure]]-YEAR(TODAY()))*Table1468[[#This Row],[Current Predicted Cost (to purchase in 2024)]])+Table1468[[#This Row],[Current Predicted Cost (to purchase in 2024)]]))))) -> 32.02386744 | J17: =Table13[[#This Row],[Estimated Year of Failure]] -> 2034 | M17: TRUE
A18: =Table13[[#This Row],[I.D. Number ]] -> HyFi-1994-1 | B18: =Table13[[#This Row],[Category]] -> Hydrant | C18: =Table13[[#This Row],[Type]] -> Fire | D18: =Table13[[#This Row],[Description]] -> 24 each | E18: 12 | G18: =Table13[[#This Row],[Installation Year]] -> 1994 | H18: =IF($G18= YEAR(TODAY()),$E18,(IF($G18=0,"",IF(Table13[[#This Row],[Life Expectancy]]=0,((0.056*(YEAR(TODAY())-Table1468[[#This Row],[Year of Initial Price]])*Table1468[[#This Row],[Initial Price]])+Table1468[[#This Row],[Initial Price]]),((VLOOKUP(YEAR(TODAY()),'Inflation Data'!$A:$C,3,TRUE)-VLOOKUP(Table1468[[#This Row],[Year of Initial Price]],'Inflation Data'!$A:$C,3,TRUE))/(VLOOKUP(Table1468[[#This Row],[Year of Initial Price]],'Inflation Data'!$A:$C,3,TRUE))*Table1468[[#This Row],[Initial Price]])+Table1468[[#This Row],[Initial Price]])))) -> 24.63374418 | I18: =IF($G18=YEAR(TODAY()),$E18,(IF($G18=0,"",IF(Table13[[#This Row],[Life Expectancy]]=0,H18, ((0.056*(Table1468[[#This Row],[Year of Failure]]-YEAR(TODAY()))*Table1468[[#This Row],[Current Predicted Cost (to purchase in 2024)]])+Table1468[[#This Row],[Current Predicted Cost (to purchase in 2024)]]))))) -> 38.42864092 | J18: =Table13[[#This Row],[Estimated Year of Failure]] -> 2034 | M18: TRUE
A19: =Table13[[#This Row],[I.D. Number ]] -> SoWe-2021-1 | B19: =Table13[[#This Row],[Category]] -> Source | C19: =Table13[[#This Row],[Type]] -> Well | D19: =Table13[[#This Row],[Description]] -> Well 1 | E19: 350000 | G19: =Table13[[#This Row],[Installation Year]] -> 2021 | H19: =IF($G19= YEAR(TODAY()),$E19,(IF($G19=0,"",IF(Table13[[#This Row],[Life Expectancy]]=0,((0.056*(YEAR(TODAY())-Table1468[[#This Row],[Year of Initial Price]])*Table1468[[#This Row],[Initial Price]])+Table1468[[#This Row],[Initial Price]]),((VLOOKUP(YEAR(TODAY()),'Inflation Data'!$A:$C,3,TRUE)-VLOOKUP(Table1468[[#This Row],[Year of Initial Price]],'Inflation Data'!$A:$C,3,TRUE))/(VLOOKUP(Table1468[[#This Row],[Year of Initial Price]],'Inflation Data'!$A:$C,3,TRUE))*Table1468[[#This Row],[Initial Price]])+Table1468[[#This Row],[Initial Price]])))) -> 385492.8 | I19: =IF($G19=YEAR(TODAY()),$E19,(IF($G19=0,"",IF(Table13[[#This Row],[Life Expectancy]]=0,H19, ((0.056*(Table1468[[#This Row],[Year of Failure]]-YEAR(TODAY()))*Table1468[[#This Row],[Current Predicted Cost (to purchase in 2024)]])+Table1468[[#This Row],[Current Predicted Cost (to purchase in 2024)]]))))) -> 1400109.85 | J19: =Table13[[#This Row],[Estimated Year of Failure]] -> 2071 | M19: FALSE
A20: =Table13[[#This Row],[I.D. Number ]] -> SoWe-2021-2 | B20: =Table13[[#This Row],[Category]] -> Source | C20: =Table13[[#This Row],[Type]] -> Well | D20: =Table13[[#This Row],[Description]] -> Well 2 | E20: 350000 | G20: =Table13[[#This Row],[Installation Year]] -> 2021 | H20: =IF($G20= YEAR(TODAY()),$E20,(IF($G20=0,"",IF(Table13[[#This Row],[Life Expectancy]]=0,((0.056*(YEAR(TODAY())-Table1468[[#This Row],[Year of Initial Price]])*Table1468[[#This Row],[Initial Price]])+Table1468[[#This Row],[Initial Price]]),((VLOOKUP(YEAR(TODAY()),'Inflation Data'!$A:$C,3,TRUE)-VLOOKUP(Table1468[[#This Row],[Year of Initial Price]],'Inflation Data'!$A:$C,3,TRUE))/(VLOOKUP(Table1468[[#This Row],[Year of Initial Price]],'Inflation Data'!$A:$C,3,TRUE))*Table1468[[#This Row],[Initial Price]])+Table1468[[#This Row],[Initial Price]])))) -> 385492.8 | I20: =IF($G20=YEAR(TODAY()),$E20,(IF($G20=0,"",IF(Table13[[#This Row],[Life Expectancy]]=0,H20, ((0.056*(Table1468[[#This Row],[Year of Failure]]-YEAR(TODAY()))*Table1468[[#This Row],[Current Predicted Cost (to purchase in 2024)]])+Table1468[[#This Row],[Current Predicted Cost (to purchase in 2024)]]))))) -> 1400109.85 | J20: =Table13[[#This Row],[Estimated Year of Failure]] -> 2071
A21: =Table13[[#This Row],[I.D. Number ]] -> PuTr-2021-1 | B21: =Table13[[#This Row],[Category]] -> Pump | C21: =Table13[[#This Row],[Type]] -> Transfer | D21: =Table13[[#This Row],[Description]] -> Well 1 Pump | E21: 85000 | G21: =Table13[[#This Row],[Installation Year]] -> 2021 | H21: =IF($G21= YEAR(TODAY()),$E21,(IF($G21=0,"",IF(Table13[[#This Row],[Life Expectancy]]=0,((0.056*(YEAR(TODAY())-Table1468[[#This Row],[Year of Initial Price]])*Table1468[[#This Row],[Initial Price]])+Table1468[[#This Row],[Initial Price]]),((VLOOKUP(YEAR(TODAY()),'Inflation Data'!$A:$C,3,TRUE)-VLOOKUP(Table1468[[#This Row],[Year of Initial Price]],'Inflation Data'!$A:$C,3,TRUE))/(VLOOKUP(Table1468[[#This Row],[Year of Initial Price]],'Inflation Data'!$A:$C,3,TRUE))*Table1468[[#This Row],[Initial Price]])+Table1468[[#This Row],[Initial Price]])))) -> 93619.68 | I21: =IF($G21=YEAR(TODAY()),$E21,(IF($G21=0,"",IF(Table13[[#This Row],[Life Expectancy]]=0,H21, ((0.056*(Table1468[[#This Row],[Year of Failure]]-YEAR(TODAY()))*Table1468[[#This Row],[Current Predicted Cost (to purchase in 2024)]])+Table1468[[#This Row],[Current Predicted Cost (to purchase in 2024)]]))))) -> 156532.105 | J21: =Table13[[#This Row],[Estimated Year of Failure]] -> 2036
A22: =Table13[[#This Row],[I.D. Number ]] -> PuTr-2021-2 | B22: =Table13[[#This Row],[Category]] -> Pump | C22: =Table13[[#This Row],[Type]] -> Transfer | D22: =Table13[[#This Row],[Description]] -> Well 2 Pump | E22: 85000 | G22: =Table13[[#This Row],[Installation Year]] -> 2021 | H22: =IF($G22= YEAR(TODAY()),$E22,(IF($G22=0,"",IF(Table13[[#This Row],[Life Expectancy]]=0,((0.056*(YEAR(TODAY())-Table1468[[#This Row],[Year of Initial Price]])*Table1468[[#This Row],[Initial Price]])+Table1468[[#This Row],[Initial Price]]),((VLOOKUP(YEAR(TODAY()),'Inflation Data'!$A:$C,3,TRUE)-VLOOKUP(Table1468[[#This Row],[Year of Initial Price]],'Inflation Data'!$A:$C,3,TRUE))/(VLOOKUP(Table1468[[#This Row],[Year of Initial Price]],'Inflation Data'!$A:$C,3,TRUE))*Table1468[[#This Row],[Initial Price]])+Table1468[[#This Row],[Initial Price]])))) -> 93619.68 | I22: =IF($G22=YEAR(TODAY()),$E22,(IF($G22=0,"",IF(Table13[[#This Row],[Life Expectancy]]=0,H22, ((0.056*(Table1468[[#This Row],[Year of Failure]]-YEAR(TODAY()))*Table1468[[#This Row],[Current Predicted Cost (to purchase in 2024)]])+Table1468[[#This Row],[Current Predicted Cost (to purchase in 2024)]]))))) -> 156532.105 | J22: =Table13[[#This Row],[Estimated Year of Failure]] -> 2036 | M22: FALSE
A23: =Table13[[#This Row],[I.D. Number ]] -> MeWe-2021-1 | B23: =Table13[[#This Row],[Category]] -> Meter | C23: =Table13[[#This Row],[Type]] -> Well | D23: =Table13[[#This Row],[Description]] -> Master Meter, Well 1 | E23: 5000 | G23: =Table13[[#This Row],[Installation Year]] -> 2021 | H23: =IF($G23= YEAR(TODAY()),$E23,(IF($G23=0,"",IF(Table13[[#This Row],[Life Expectancy]]=0,((0.056*(YEAR(TODAY())-Table1468[[#This Row],[Year of Initial Price]])*Table1468[[#This Row],[Initial Price]])+Table1468[[#This Row],[Initial Price]]),((VLOOKUP(YEAR(TODAY()),'Inflation Data'!$A:$C,3,TRUE)-VLOOKUP(Table1468[[#This Row],[Year of Initial Price]],'Inflation Data'!$A:$C,3,TRUE))/(VLOOKUP(Table1468[[#This Row],[Year of Initial Price]],'Inflation Data'!$A:$C,3,TRUE))*Table1468[[#This Row],[Initial Price]])+Table1468[[#This Row],[Initial Price]])))) -> 5507.04 | I23: =IF($G23=YEAR(TODAY()),$E23,(IF($G23=0,"",IF(Table13[[#This Row],[Life Expectancy]]=0,H23, ((0.056*(Table1468[[#This Row],[Year of Failure]]-YEAR(TODAY()))*Table1468[[#This Row],[Current Predicted Cost (to purchase in 2024)]])+Table1468[[#This Row],[Current Predicted Cost (to purchase in 2024)]]))))) -> 9207.77088 | J23: =Table13[[#This Row],[Estimated Year of Failure]] -> 2036
A24: =Table13[[#This Row],[I.D. Number ]] -> MeWe-2021-2 | B24: =Table13[[#This Row],[Category]] -> Meter | C24: =Table13[[#This Row],[Type]] -> Well | D24: =Table13[[#This Row],[Description]] -> Master Meter, Well 2 | E24: 5000 | G24: =Table13[[#This Row],[Installation Year]] -> 2021 | H24: =IF($G24= YEAR(TODAY()),$E24,(IF($G24=0,"",IF(Table13[[#This Row],[Life Expectancy]]=0,((0.056*(YEAR(TODAY())-Table1468[[#This Row],[Year of Initial Price]])*Table1468[[#This Row],[Initial Price]])+Table1468[[#This Row],[Initial Price]]),((VLOOKUP(YEAR(TODAY()),'Inflation Data'!$A:$C,3,TRUE)-VLOOKUP(Table1468[[#This Row],[Year of Initial Price]],'Inflation Data'!$A:$C,3,TRUE))/(VLOOKUP(Table1468[[#This Row],[Year of Initial Price]],'Inflation Data'!$A:$C,3,TRUE))*Table1468[[#This Row],[Initial Price]])+Table1468[[#This Row],[Initial Price]])))) -> 5507.04 | I24: =IF($G24=YEAR(TODAY()),$E24,(IF($G24=0,"",IF(Table13[[#This Row],[Life Expectancy]]=0,H24, ((0.056*(Table1468[[#This Row],[Year of Failure]]-YEAR(TODAY()))*Table1468[[#This Row],[Current Predicted Cost (to purchase in 2024)]])+Table1468[[#This Row],[Current Predicted Cost (to purchase in 2024)]]))))) -> 9207.77088 | J24: =Table13[[#This Row],[Estimated Year of Failure]] -> 2036
A25: =Table13[[#This Row],[I.D. Number ]] -> WTP-2022-1 | B25: =Table13[[#This Row],[Category]] -> Building | C25: =Table13[[#This Row],[Type]] -> Treatment Plant | D25: =Table13[[#This Row],[Description]] -> 400 Sq Ft Treatment Plant Room | E25: 85000 | G25: =Table13[[#This Row],[Installation Year]] -> 2022 | H25: =IF($G25= YEAR(TODAY()),$E25,(IF($G25=0,"",IF(Table13[[#This Row],[Life Expectancy]]=0,((0.056*(YEAR(TODAY())-Table1468[[#This Row],[Year of Initial Price]])*Table1468[[#This Row],[Initial Price]])+Table1468[[#This Row],[Initial Price]]),((VLOOKUP(YEAR(TODAY()),'Inflation Data'!$A:$C,3,TRUE)-VLOOKUP(Table1468[[#This Row],[Year of Initial Price]],'Inflation Data'!$A:$C,3,TRUE))/(VLOOKUP(Table1468[[#This Row],[Year of Initial Price]],'Inflation Data'!$A:$C,3,TRUE))*Table1468[[#This Row],[Initial Price]])+Table1468[[#This Row],[Initial Price]])))) -> 89760 | I25: =IF($G25=YEAR(TODAY()),$E25,(IF($G25=0,"",IF(Table13[[#This Row],[Life Expectancy]]=0,H25, ((0.056*(Table1468[[#This Row],[Year of Failure]]-YEAR(TODAY()))*Table1468[[#This Row],[Current Predicted Cost (to purchase in 2024)]])+Table1468[[#This Row],[Current Predicted Cost (to purchase in 2024)]]))))) -> 331034.88 | J25: =Table13[[#This Row],[Estimated Year of Failure]] -> 2072
A26: =Table13[[#This Row],[I.D. Number ]] -> TaCl-2022-1 | B26: =Table13[[#This Row],[Category]] -> Tank | C26: =Table13[[#This Row],[Type]] -> Clear Well | D26: =Table13[[#This Row],[Description]] -> Water Treatment Clear well | E26: 750000 | G26: =Table13[[#This Row],[Installation Year]] -> 2022 | H26: =IF($G26= YEAR(TODAY()),$E26,(IF($G26=0,"",IF(Table13[[#This Row],[Life Expectancy]]=0,((0.056*(YEAR(TODAY())-Table1468[[#This Row],[Year of Initial Price]])*Table1468[[#This Row],[Initial Price]])+Table1468[[#This Row],[Initial Price]]),((VLOOKUP(YEAR(TODAY()),'Inflation Data'!$A:$C,3,TRUE)-VLOOKUP(Table1468[[#This Row],[Year of Initial Price]],'Inflation Data'!$A:$C,3,TRUE))/(VLOOKUP(Table1468[[#This Row],[Year of Initial Price]],'Inflation Data'!$A:$C,3,TRUE))*Table1468[[#This Row],[Initial Price]])+Table1468[[#This Row],[Initial Price]])))) -> 792000 | I26: =IF($G26=YEAR(TODAY()),$E26,(IF($G26=0,"",IF(Table13[[#This Row],[Life Expectancy]]=0,H26, ((0.056*(Table1468[[#This Row],[Year of Failure]]-YEAR(TODAY()))*Table1468[[#This Row],[Current Predicted Cost (to purchase in 2024)]])+Table1468[[#This Row],[Current Predicted Cost (to purchase in 2024)]]))))) -> 2920896 | J26: =Table13[[#This Row],[Estimated Year of Failure]] -> 2072
A27: =Table13[[#This Row],[I.D. Number ]] -> PuHi-2022-1 | B27: =Table13[[#This Row],[Category]] -> Pump | C27: =Table13[[#This Row],[Type]] -> High Service | D27: =Table13[[#This Row],[Description]] -> Vertical Turbine | E27: 75000 | G27: =Table13[[#This Row],[Installation Year]] -> 2022 | H27: =IF($G27= YEAR(TODAY()),$E27,(IF($G27=0,"",IF(Table13[[#This Row],[Life Expectancy]]=0,((0.056*(YEAR(TODAY())-Table1468[[#This Row],[Year of Initial Price]])*Table1468[[#This Row],[Initial Price]])+Table1468[[#This Row],[Initial Price]]),((VLOOKUP(YEAR(TODAY()),'Inflation Data'!$A:$C,3,TRUE)-VLOOKUP(Table1468[[#This Row],[Year of Initial Price]],'Inflation Data'!$A:$C,3,TRUE))/(VLOOKUP(Table1468[[#This Row],[Year of Initial Price]],'Inflation Data'!$A:$C,3,TRUE))*Table1468[[#This Row],[Initial Price]])+Table1468[[#This Row],[Initial Price]])))) -> 79200 | I27: =IF($G27=YEAR(TODAY()),$E27,(IF($G27=0,"",IF(Table13[[#This Row],[Life Expectancy]]=0,H27, ((0.056*(Table1468[[#This Row],[Year of Failure]]-YEAR(TODAY()))*Table1468[[#This Row],[Current Predicted Cost (to purchase in 2024)]])+Table1468[[#This Row],[Current Predicted Cost (to purchase in 2024)]]))))) -> 136857.6 | J27: =Table13[[#This Row],[Estimated Year of Failure]] -> 2037 | M27: FALSE
A28: =Table13[[#This Row],[I.D. Number ]] -> PuHi-2022-2 | B28: =Table13[[#This Row],[Category]] -> Pump | C28: =Table13[[#This Row],[Type]] -> High Service | D28: =Table13[[#This Row],[Description]] -> Vertical Turbine | E28: 75000 | G28: =Table13[[#This Row],[Installation Year]] -> 2022 | H28: =IF($G28= YEAR(TODAY()),$E28,(IF($G28=0,"",IF(Table13[[#This Row],[Life Expectancy]]=0,((0.056*(YEAR(TODAY())-Table1468[[#This Row],[Year of Initial Price]])*Table1468[[#This Row],[Initial Price]])+Table1468[[#This Row],[Initial Price]]),((VLOOKUP(YEAR(TODAY()),'Inflation Data'!$A:$C,3,TRUE)-VLOOKUP(Table1468[[#This Row],[Year of Initial Price]],'Inflation Data'!$A:$C,3,TRUE))/(VLOOKUP(Table1468[[#This Row],[Year of Initial Price]],'Inflation Data'!$A:$C,3,TRUE))*Table1468[[#This Row],[Initial Price]])+Table1468[[#This Row],[Initial Price]])))) -> 79200 | I28: =IF($G28=YEAR(TODAY()),$E28,(IF($G28=0,"",IF(Table13[[#This Row],[Life Expectancy]]=0,H28, ((0.056*(Table1468[[#This Row],[Year of Failure]]-YEAR(TODAY()))*Table1468[[#This Row],[Current Predicted Cost (to purchase in 2024)]])+Table1468[[#This Row],[Current Predicted Cost (to purchase in 2024)]]))))) -> 136857.6 | J28: =Table13[[#This Row],[Estimated Year of Failure]] -> 2037 | M28: FALSE
A29: =Table13[[#This Row],[I.D. Number ]] -> CoTe-2022-1 | B29: =Table13[[#This Row],[Category]] -> Control | C29: =Table13[[#This Row],[Type]] -> Telemetry | D29: =Table13[[#This Row],[Description]] -> Plant Control Panel | E29: 65000 | G29: =Table13[[#This Row],[Installation Year]] -> 2022 | H29: =IF($G29= YEAR(TODAY()),$E29,(IF($G29=0,"",IF(Table13[[#This Row],[Life Expectancy]]=0,((0.056*(YEAR(TODAY())-Table1468[[#This Row],[Year of Initial Price]])*Table1468[[#This Row],[Initial Price]])+Table1468[[#This Row],[Initial Price]]),((VLOOKUP(YEAR(TODAY()),'Inflation Data'!$A:$C,3,TRUE)-VLOOKUP(Table1468[[#This Row],[Year of Initial Price]],'Inflation Data'!$A:$C,3,TRUE))/(VLOOKUP(Table1468[[#This Row],[Year of Initial Price]],'Inflation Data'!$A:$C,3,TRUE))*Table1468[[#This Row],[Initial Price]])+Table1468[[#This Row],[Initial Price]])))) -> 68640 | I29: =IF($G29=YEAR(TODAY()),$E29,(IF($G29=0,"",IF(Table13[[#This Row],[Life Expectancy]]=0,H29, ((0.056*(Table1468[[#This Row],[Year of Failure]]-YEAR(TODAY()))*Table1468[[#This Row],[Current Predicted Cost (to purchase in 2024)]])+Table1468[[#This Row],[Current Predicted Cost (to purchase in 2024)]]))))) -> 118609.92 | J29: =Table13[[#This Row],[Estimated Year of Failure]] -> 2037 | M29: FALSE
A30: =Table13[[#This Row],[I.D. Number ]] -> CoTe-2022-2 | B30: =Table13[[#This Row],[Category]] -> Control | C30: =Table13[[#This Row],[Type]] -> Telemetry | D30: =Table13[[#This Row],[Description]] -> Electrical Control Panel | E30: 35000 | G30: =Table13[[#This Row],[Installation Year]] -> 2022 | H30: =IF($G30= YEAR(TODAY()),$E30,(IF($G30=0,"",IF(Table13[[#This Row],[Life Expectancy]]=0,((0.056*(YEAR(TODAY())-Table1468[[#This Row],[Year of Initial Price]])*Table1468[[#This Row],[Initial Price]])+Table1468[[#This Row],[Initial Price]]),((VLOOKUP(YEAR(TODAY()),'Inflation Data'!$A:$C,3,TRUE)-VLOOKUP(Table1468[[#This Row],[Year of Initial Price]],'Inflation Data'!$A:$C,3,TRUE))/(VLOOKUP(Table1468[[#This Row],[Year of Initial Price]],'Inflation Data'!$A:$C,3,TRUE))*Table1468[[#This Row],[Initial Price]])+Table1468[[#This Row],[Initial Price]])))) -> 36960 | I30: =IF($G30=YEAR(TODAY()),$E30,(IF($G30=0,"",IF(Table13[[#This Row],[Life Expectancy]]=0,H30, ((0.056*(Table1468[[#This Row],[Year of Failure]]-YEAR(TODAY()))*Table1468[[#This Row],[Current Predicted Cost (to purchase in 2024)]])+Table1468[[#This Row],[Current Predicted Cost (to purchase in 2024)]]))))) -> 63866.88 | J30: =Table13[[#This Row],[Estimated Year of Failure]] -> 2037 | M30: FALSE
A31: =Table13[[#This Row],[I.D. Number ]] -> TrSe-2022-1 | B31: =Table13[[#This Row],[Category]] -> Treatment | C31: =Table13[[#This Row],[Type]] -> Sedimentation | D31: =Table13[[#This Row],[Description]] -> Sediment Pond | E31: 35000 | G31: =Table13[[#This Row],[Installation Year]] -> 2022 | H31: =IF($G31= YEAR(TODAY()),$E31,(IF($G31=0,"",IF(Table13[[#This Row],[Life Expectancy]]=0,((0.056*(YEAR(TODAY())-Table1468[[#This Row],[Year of Initial Price]])*Table1468[[#This Row],[Initial Price]])+Table1468[[#This Row],[Initial Price]]),((VLOOKUP(YEAR(TODAY()),'Inflation Data'!$A:$C,3,TRUE)-VLOOKUP(Table1468[[#This Row],[Year of Initial Price]],'Inflation Data'!$A:$C,3,TRUE))/(VLOOKUP(Table1468[[#This Row],[Year of Initial Price]],'Inflation Data'!$A:$C,3,TRUE))*Table1468[[#This Row],[Initial Price]])+Table1468[[#This Row],[Initial Price]])))) -> 36960 | I31: =IF($G31=YEAR(TODAY()),$E31,(IF($G31=0,"",IF(Table13[[#This Row],[Life Expectancy]]=0,H31, ((0.056*(Table1468[[#This Row],[Year of Failure]]-YEAR(TODAY()))*Table1468[[#This Row],[Current Predicted Cost (to purchase in 2024)]])+Table1468[[#This Row],[Current Predicted Cost (to purchase in 2024)]]))))) -> 74215.68 | J31: =Table13[[#This Row],[Estimated Year of Failure]] -> 2042 | M31: FALSE
A32: =Table13[[#This Row],[I.D. Number ]] -> SaFe-2022-1 | B32: =Table13[[#This Row],[Category]] -> Safety | C32: =Table13[[#This Row],[Type]] -> Fencing | D32: =Table13[[#This Row],[Description]] -> Chain Link Fencing | E32: 35000 | G32: =Table13[[#This Row],[Installation Year]] -> 2022 | H32: =IF($G32= YEAR(TODAY()),$E32,(IF($G32=0,"",IF(Table13[[#This Row],[Life Expectancy]]=0,((0.056*(YEAR(TODAY())-Table1468[[#This Row],[Year of Initial Price]])*Table1468[[#This Row],[Initial Price]])+Table1468[[#This Row],[Initial Price]]),((VLOOKUP(YEAR(TODAY()),'Inflation Data'!$A:$C,3,TRUE)-VLOOKUP(Table1468[[#This Row],[Year of Initial Price]],'Inflation Data'!$A:$C,3,TRUE))/(VLOOKUP(Table1468[[#This Row],[Year of Initial Price]],'Inflation Data'!$A:$C,3,TRUE))*Table1468[[#This Row],[Initial Price]])+Table1468[[#This Row],[Initial Price]])))) -> 36960 | I32: =IF($G32=YEAR(TODAY()),$E32,(IF($G32=0,"",IF(Table13[[#This Row],[Life Expectancy]]=0,H32, ((0.056*(Table1468[[#This Row],[Year of Failure]]-YEAR(TODAY()))*Table1468[[#This Row],[Current Predicted Cost (to purchase in 2024)]])+Table1468[[#This Row],[Current Predicted Cost (to purchase in 2024)]]))))) -> 53518.08 | J32: =Table13[[#This Row],[Estimated Year of Failure]] -> 2032 | M32: FALSE
A33: =Table13[[#This Row],[I.D. Number ]] -> TrCh-2022-1 | B33: =Table13[[#This Row],[Category]] -> Treatment | C33: =Table13[[#This Row],[Type]] -> Chlorination | D33: =Table13[[#This Row],[Description]] -> Chlorination System | E33: 1500 | G33: =Table13[[#This Row],[Installation Year]] -> 2022 | H33: =IF($G33= YEAR(TODAY()),$E33,(IF($G33=0,"",IF(Table13[[#This Row],[Life Expectancy]]=0,((0.056*(YEAR(TODAY())-Table1468[[#This Row],[Year of Initial Price]])*Table1468[[#This Row],[Initial Price]])+Table1468[[#This Row],[Initial Price]]),((VLOOKUP(YEAR(TODAY()),'Inflation Data'!$A:$C,3,TRUE)-VLOOKUP(Table1468[[#This Row],[Year of Initial Price]],'Inflation Data'!$A:$C,3,TRUE))/(VLOOKUP(Table1468[[#This Row],[Year of Initial Price]],'Inflation Data'!$A:$C,3,TRUE))*Table1468[[#This Row],[Initial Price]])+Table1468[[#This Row],[Initial Price]])))) -> 1584 | I33: =IF($G33=YEAR(TODAY()),$E33,(IF($G33=0,"",IF(Table13[[#This Row],[Life Expectancy]]=0,H33, ((0.056*(Table1468[[#This Row],[Year of Failure]]-YEAR(TODAY()))*Table1468[[#This Row],[Current Predicted Cost (to purchase in 2024)]])+Table1468[[#This Row],[Current Predicted Cost (to purchase in 2024)]]))))) -> 3180.672 | J33: =Table13[[#This Row],[Estimated Year of Failure]] -> 2042 | M33: FALSE
A34: =Table13[[#This Row],[I.D. Number ]] -> TrFi-2022-1 | B34: =Table13[[#This Row],[Category]] -> Treatment | C34: =Table13[[#This Row],[Type]] -> Filtration | D34: =Table13[[#This Row],[Description]] -> Qty 3 Pressure Filter | E34: 110000 | G34: =Table13[[#This Row],[Installation Year]] -> 2022 | H34: =IF($G34= YEAR(TODAY()),$E34,(IF($G34=0,"",IF(Table13[[#This Row],[Life Expectancy]]=0,((0.056*(YEAR(TODAY())-Table1468[[#This Row],[Year of Initial Price]])*Table1468[[#This Row],[Initial Price]])+Table1468[[#This Row],[Initial Price]]),((VLOOKUP(YEAR(TODAY()),'Inflation Data'!$A:$C,3,TRUE)-VLOOKUP(Table1468[[#This Row],[Year of Initial Price]],'Inflation Data'!$A:$C,3,TRUE))/(VLOOKUP(Table1468[[#This Row],[Year of Initial Price]],'Inflation Data'!$A:$C,3,TRUE))*Table1468[[#This Row],[Initial Price]])+Table1468[[#This Row],[Initial Price]])))) -> 116160 | I34: =IF($G34=YEAR(TODAY()),$E34,(IF($G34=0,"",IF(Table13[[#This Row],[Life Expectancy]]=0,H34, ((0.056*(Table1468[[#This Row],[Year of Failure]]-YEAR(TODAY()))*Table1468[[#This Row],[Current Predicted Cost (to purchase in 2024)]])+Table1468[[#This Row],[Current Predicted Cost (to purchase in 2024)]]))))) -> 233249.28 | J34: =Table13[[#This Row],[Estimated Year of Failure]] -> 2042 | M34: FALSE
A35: =Table13[[#This Row],[I.D. Number ]] -> TrFi-2022-2 | B35: =Table13[[#This Row],[Category]] -> Treatment | C35: =Table13[[#This Row],[Type]] -> Filtration | D35: =Table13[[#This Row],[Description]] -> Cascade Aerator | E35: 79000 | G35: =Table13[[#This Row],[Installation Year]] -> 2022 | H35: =IF($G35= YEAR(TODAY()),$E35,(IF($G35=0,"",IF(Table13[[#This Row],[Life Expectancy]]=0,((0.056*(YEAR(TODAY())-Table1468[[#This Row],[Year of Initial Price]])*Table1468[[#This Row],[Initial Price]])+Table1468[[#This Row],[Initial Price]]),((VLOOKUP(YEAR(TODAY()),'Inflation Data'!$A:$C,3,TRUE)-VLOOKUP(Table1468[[#This Row],[Year of Initial Price]],'Inflation Data'!$A:$C,3,TRUE))/(VLOOKUP(Table1468[[#This Row],[Year of Initial Price]],'Inflation Data'!$A:$C,3,TRUE))*Table1468[[#This Row],[Initial Price]])+Table1468[[#This Row],[Initial Price]])))) -> 83424 | I35: =IF($G35=YEAR(TODAY()),$E35,(IF($G35=0,"",IF(Table13[[#This Row],[Life Expectancy]]=0,H35, ((0.056*(Table1468[[#This Row],[Year of Failure]]-YEAR(TODAY()))*Table1468[[#This Row],[Current Predicted Cost (to purchase in 2024)]])+Table1468[[#This Row],[Current Predicted Cost (to purchase in 2024)]]))))) -> 167515.392 | J35: =Table13[[#This Row],[Estimated Year of Failure]] -> 2042 | M35: FALSE
A36: =Table13[[#This Row],[I.D. Number ]] -> PuMe-2022-1 | B36: =Table13[[#This Row],[Category]] -> Pump | C36: =Table13[[#This Row],[Type]] -> Metering | D36: =Table13[[#This Row],[Description]] -> Phosphate Feed Pump | E36: 1500 | G36: =Table13[[#This Row],[Installation Year]] -> 2022 | H36: =IF($G36= YEAR(TODAY()),$E36,(IF($G36=0,"",IF(Table13[[#This Row],[Life Expectancy]]=0,((0.056*(YEAR(TODAY())-Table1468[[#This Row],[Year of Initial Price]])*Table1468[[#This Row],[Initial Price]])+Table1468[[#This Row],[Initial Price]]),((VLOOKUP(YEAR(TODAY()),'Inflation Data'!$A:$C,3,TRUE)-VLOOKUP(Table1468[[#This Row],[Year of Initial Price]],'Inflation Data'!$A:$C,3,TRUE))/(VLOOKUP(Table1468[[#This Row],[Year of Initial Price]],'Inflation Data'!$A:$C,3,TRUE))*Table1468[[#This Row],[Initial Price]])+Table1468[[#This Row],[Initial Price]])))) -> 1584 | I36: =IF($G36=YEAR(TODAY()),$E36,(IF($G36=0,"",IF(Table13[[#This Row],[Life Expectancy]]=0,H36, ((0.056*(Table1468[[#This Row],[Year of Failure]]-YEAR(TODAY()))*Table1468[[#This Row],[Current Predicted Cost (to purchase in 2024)]])+Table1468[[#This Row],[Current Predicted Cost (to purchase in 2024)]]))))) -> 2737.152 | J36: =Table13[[#This Row],[Estimated Year of Failure]] -> 2037
A37: =Table13[[#This Row],[I.D. Number ]] -> PuMe-2022-2 | B37: =Table13[[#This Row],[Category]] -> Pump | C37: =Table13[[#This Row],[Type]] -> Metering | D37: =Table13[[#This Row],[Description]] -> Caustic Feed Pump | E37: 1500 | G37: =Table13[[#This Row],[Installation Year]] -> 2022 | H37: =IF($G37= YEAR(TODAY()),$E37,(IF($G37=0,"",IF(Table13[[#This Row],[Life Expectancy]]=0,((0.056*(YEAR(TODAY())-Table1468[[#This Row],[Year of Initial Price]])*Table1468[[#This Row],[Initial Price]])+Table1468[[#This Row],[Initial Price]]),((VLOOKUP(YEAR(TODAY()),'Inflation Data'!$A:$C,3,TRUE)-VLOOKUP(Table1468[[#This Row],[Year of Initial Price]],'Inflation Data'!$A:$C,3,TRUE))/(VLOOKUP(Table1468[[#This Row],[Year of Initial Price]],'Inflation Data'!$A:$C,3,TRUE))*Table1468[[#This Row],[Initial Price]])+Table1468[[#This Row],[Initial Price]])))) -> 1584 | I37: =IF($G37=YEAR(TODAY()),$E37,(IF($G37=0,"",IF(Table13[[#This Row],[Life Expectancy]]=0,H37, ((0.056*(Table1468[[#This Row],[Year of Failure]]-YEAR(TODAY()))*Table1468[[#This Row],[Current Predicted Cost (to purchase in 2024)]])+Table1468[[#This Row],[Current Predicted Cost (to purchase in 2024)]]))))) -> 2737.152 | J37: =Table13[[#This Row],[Estimated Year of Failure]] -> 2037
A38: =Table13[[#This Row],[I.D. Number ]] -> PuMe-2022-3 | B38: =Table13[[#This Row],[Category]] -> Pump | C38: =Table13[[#This Row],[Type]] -> Metering | D38: =Table13[[#This Row],[Description]] -> Pot Perm Feed Pump | E38: 1500 | G38: =Table13[[#This Row],[Installation Year]] -> 2022 | H38: =IF($G38= YEAR(TODAY()),$E38,(IF($G38=0,"",IF(Table13[[#This Row],[Life Expectancy]]=0,((0.056*(YEAR(TODAY())-Table1468[[#This Row],[Year of Initial Price]])*Table1468[[#This Row],[Initial Price]])+Table1468[[#This Row],[Initial Price]]),((VLOOKUP(YEAR(TODAY()),'Inflation Data'!$A:$C,3,TRUE)-VLOOKUP(Table1468[[#This Row],[Year of Initial Price]],'Inflation Data'!$A:$C,3,TRUE))/(VLOOKUP(Table1468[[#This Row],[Year of Initial Price]],'Inflation Data'!$A:$C,3,TRUE))*Table1468[[#This Row],[Initial Price]])+Table1468[[#This Row],[Initial Price]])))) -> 1584 | I38: =IF($G38=YEAR(TODAY()),$E38,(IF($G38=0,"",IF(Table13[[#This Row],[Life Expectancy]]=0,H38, ((0.056*(Table1468[[#This Row],[Year of Failure]]-YEAR(TODAY()))*Table1468[[#This Row],[Current Predicted Cost (to purchase in 2024)]])+Table1468[[#This Row],[Current Predicted Cost (to purchase in 2024)]]))))) -> 2737.152 | J38: =Table13[[#This Row],[Estimated Year of Failure]] -> 2037
A39: =Table13[[#This Row],[I.D. Number ]] -> MeSo-2022-1 | B39: =Table13[[#This Row],[Category]] -> Meter | C39: =Table13[[#This Row],[Type]] -> Source | D39: =Table13[[#This Row],[Description]] -> Tank Meter Controller | E39: 1200 | G39: =Table13[[#This Row],[Installation Year]] -> 2022 | H39: =IF($G39= YEAR(TODAY()),$E39,(IF($G39=0,"",IF(Table13[[#This Row],[Life Expectancy]]=0,((0.056*(YEAR(TODAY())-Table1468[[#This Row],[Year of Initial Price]])*Table1468[[#This Row],[Initial Price]])+Table1468[[#This Row],[Initial Price]]),((VLOOKUP(YEAR(TODAY()),'Inflation Data'!$A:$C,3,TRUE)-VLOOKUP(Table1468[[#This Row],[Year of Initial Price]],'Inflation Data'!$A:$C,3,TRUE))/(VLOOKUP(Table1468[[#This Row],[Year of Initial Price]],'Inflation Data'!$A:$C,3,TRUE))*Table1468[[#This Row],[Initial Price]])+Table1468[[#This Row],[Initial Price]])))) -> 1267.2 | I39: =IF($G39=YEAR(TODAY()),$E39,(IF($G39=0,"",IF(Table13[[#This Row],[Life Expectancy]]=0,H39, ((0.056*(Table1468[[#This Row],[Year of Failure]]-YEAR(TODAY()))*Table1468[[#This Row],[Current Predicted Cost (to purchase in 2024)]])+Table1468[[#This Row],[Current Predicted Cost (to purchase in 2024)]]))))) -> 1976.832 | J39: =Table13[[#This Row],[Estimated Year of Failure]] -> 2034
A40: =Table13[[#This Row],[I.D. Number ]] -> HyFi-2022-1 | B40: =Table13[[#This Row],[Category]] -> Hydrant | C40: =Table13[[#This Row],[Type]] -> Fire | D40: =Table13[[#This Row],[Description]] -> Fire Hydrant | E40: 3000 | G40: =Table13[[#This Row],[Installation Year]] -> 2022 | H40: =IF($G40= YEAR(TODAY()),$E40,(IF($G40=0,"",IF(Table13[[#This Row],[Life Expectancy]]=0,((0.056*(YEAR(TODAY())-Table1468[[#This Row],[Year of Initial Price]])*Table1468[[#This Row],[Initial Price]])+Table1468[[#This Row],[Initial Price]]),((VLOOKUP(YEAR(TODAY()),'Inflation Data'!$A:$C,3,TRUE)-VLOOKUP(Table1468[[#This Row],[Year of Initial Price]],'Inflation Data'!$A:$C,3,TRUE))/(VLOOKUP(Table1468[[#This Row],[Year of Initial Price]],'Inflation Data'!$A:$C,3,TRUE))*Table1468[[#This Row],[Initial Price]])+Table1468[[#This Row],[Initial Price]])))) -> 3168 | I40: =IF($G40=YEAR(TODAY()),$E40,(IF($G40=0,"",IF(Table13[[#This Row],[Life Expectancy]]=0,H40, ((0.056*(Table1468[[#This Row],[Year of Failure]]-YEAR(TODAY()))*Table1468[[#This Row],[Current Predicted Cost (to purchase in 2024)]])+Table1468[[#This Row],[Current Predicted Cost (to purchase in 2024)]]))))) -> 11683.584 | J40: =Table13[[#This Row],[Estimated Year of Failure]] -> 2072
A41: =Table13[[#This Row],[I.D. Number ]] -> PiPV-2024-1 | B41: =Table13[[#This Row],[Category]] -> Pipe | C41: =Table13[[#This Row],[Type]] -> PVC | D41: =Table13[[#This Row],[Description]] -> HDPE, DR11, 200 psi, 4545 linear feet | E41: 31.87 | G41: =Table13[[#This Row],[Installation Year]] -> 2024 | H41: =IF($G41= YEAR(TODAY()),$E41,(IF($G41=0,"",IF(Table13[[#This Row],[Life Expectancy]]=0,((0.056*(YEAR(TODAY())-Table1468[[#This Row],[Year of Initial Price]])*Table1468[[#This Row],[Initial Price]])+Table1468[[#This Row],[Initial Price]]),((VLOOKUP(YEAR(TODAY()),'Inflation Data'!$A:$C,3,TRUE)-VLOOKUP(Table1468[[#This Row],[Year of Initial Price]],'Inflation Data'!$A:$C,3,TRUE))/(VLOOKUP(Table1468[[#This Row],[Year of Initial Price]],'Inflation Data'!$A:$C,3,TRUE))*Table1468[[#This Row],[Initial Price]])+Table1468[[#This Row],[Initial Price]])))) -> 31.87 | I41: =IF($G41=YEAR(TODAY()),$E41,(IF($G41=0,"",IF(Table13[[#This Row],[Life Expectancy]]=0,H41, ((0.056*(Table1468[[#This Row],[Year of Failure]]-YEAR(TODAY()))*Table1468[[#This Row],[Current Predicted Cost (to purchase in 2024)]])+Table1468[[#This Row],[Current Predicted Cost (to purchase in 2024)]]))))) -> 31.87 | J41: =Table13[[#This Row],[Estimated Year of Failure]] -> 2104
A42: =Table13[[#This Row],[I.D. Number ]] -> PiPV-2024-2 | B42: =Table13[[#This Row],[Category]] -> Pipe | C42: =Table13[[#This Row],[Type]] -> PVC | D42: =Table13[[#This Row],[Description]] -> HDPE, DR11, 200 psi, 4820 linear feet | E42: 21.99 | G42: =Table13[[#This Row],[Installation Year]] -> 2024 | H42: =IF($G42= YEAR(TODAY()),$E42,(IF($G42=0,"",IF(Table13[[#This Row],[Life Expectancy]]=0,((0.056*(YEAR(TODAY())-Table1468[[#This Row],[Year of Initial Price]])*Table1468[[#This Row],[Initial Price]])+Table1468[[#This Row],[Initial Price]]),((VLOOKUP(YEAR(TODAY()),'Inflation Data'!$A:$C,3,TRUE)-VLOOKUP(Table1468[[#This Row],[Year of Initial Price]],'Inflation Data'!$A:$C,3,TRUE))/(VLOOKUP(Table1468[[#This Row],[Year of Initial Price]],'Inflation Data'!$A:$C,3,TRUE))*Table1468[[#This Row],[Initial Price]])+Table1468[[#This Row],[Initial Price]])))) -> 21.99 | I42: =IF($G42=YEAR(TODAY()),$E42,(IF($G42=0,"",IF(Table13[[#This Row],[Life Expectancy]]=0,H42, ((0.056*(Table1468[[#This Row],[Year of Failure]]-YEAR(TODAY()))*Table1468[[#This Row],[Current Predicted Cost (to purchase in 2024)]])+Table1468[[#This Row],[Current Predicted Cost (to purchase in 2024)]]))))) -> 21.99 | J42: =Table13[[#This Row],[Estimated Year of Failure]] -> 2104
A43: =Table13[[#This Row],[I.D. Number ]] -> PiPV-2024-3 | B43: =Table13[[#This Row],[Category]] -> Pipe | C43: =Table13[[#This Row],[Type]] -> PVC | D43: =Table13[[#This Row],[Description]] -> HDPE, DR11, 200 psi, 10,400 linear feet | E43: 41.75 | G43: =Table13[[#This Row],[Installation Year]] -> 2024 | H43: =IF($G43= YEAR(TODAY()),$E43,(IF($G43=0,"",IF(Table13[[#This Row],[Life Expectancy]]=0,((0.056*(YEAR(TODAY())-Table1468[[#This Row],[Year of Initial Price]])*Table1468[[#This Row],[Initial Price]])+Table1468[[#This Row],[Initial Price]]),((VLOOKUP(YEAR(TODAY()),'Inflation Data'!$A:$C,3,TRUE)-VLOOKUP(Table1468[[#This Row],[Year of Initial Price]],'Inflation Data'!$A:$C,3,TRUE))/(VLOOKUP(Table1468[[#This Row],[Year of Initial Price]],'Inflation Data'!$A:$C,3,TRUE))*Table1468[[#This Row],[Initial Price]])+Table1468[[#This Row],[Initial Price]])))) -> 41.75 | I43: =IF($G43=YEAR(TODAY()),$E43,(IF($G43=0,"",IF(Table13[[#This Row],[Life Expectancy]]=0,H43, ((0.056*(Table1468[[#This Row],[Year of Failure]]-YEAR(TODAY()))*Table1468[[#This Row],[Current Predicted Cost (to purchase in 2024)]])+Table1468[[#This Row],[Current Predicted Cost (to purchase in 2024)]]))))) -> 41.75 | J43: =Table13[[#This Row],[Estimated Year of Failure]] -> 2104
A44: =Table13[[#This Row],[I.D. Number ]] -> HyFi-2024-1 | B44: =Table13[[#This Row],[Category]] -> Hydrant | C44: =Table13[[#This Row],[Type]] -> Fire | D44: =Table13[[#This Row],[Description]] -> Qty 5 Fire Hydrants | E44: 3000 | G44: =Table13[[#This Row],[Installation Year]] -> 2024 | H44: =IF($G44= YEAR(TODAY()),$E44,(IF($G44=0,"",IF(Table13[[#This Row],[Life Expectancy]]=0,((0.056*(YEAR(TODAY())-Table1468[[#This Row],[Year of Initial Price]])*Table1468[[#This Row],[Initial Price]])+Table1468[[#This Row],[Initial Price]]),((VLOOKUP(YEAR(TODAY()),'Inflation Data'!$A:$C,3,TRUE)-VLOOKUP(Table1468[[#This Row],[Year of Initial Price]],'Inflation Data'!$A:$C,3,TRUE))/(VLOOKUP(Table1468[[#This Row],[Year of Initial Price]],'Inflation Data'!$A:$C,3,TRUE))*Table1468[[#This Row],[Initial Price]])+Table1468[[#This Row],[Initial Price]])))) -> 3000 | I44: =IF($G44=YEAR(TODAY()),$E44,(IF($G44=0,"",IF(Table13[[#This Row],[Life Expectancy]]=0,H44, ((0.056*(Table1468[[#This Row],[Year of Failure]]-YEAR(TODAY()))*Table1468[[#This Row],[Current Predicted Cost (to purchase in 2024)]])+Table1468[[#This Row],[Current Predicted Cost (to purchase in 2024)]]))))) -> 3000 | J44: =Table13[[#This Row],[Estimated Year of Failure]] -> 2074
A45: =Table13[[#This Row],[I.D. Number ]] -> MeMa-2024-1 | B45: =Table13[[#This Row],[Category]] -> Meter | C45: =Table13[[#This Row],[Type]] -> Master | D45: =Table13[[#This Row],[Description]] -> Assembly 1, 2, 9 and 10 - Qty 4 | E45: 21000 | G45: =Table13[[#This Row],[Installation Year]] -> 2024 | H45: =IF($G45= YEAR(TODAY()),$E45,(IF($G45=0,"",IF(Table13[[#This Row],[Life Expectancy]]=0,((0.056*(YEAR(TODAY())-Table1468[[#This Row],[Year of Initial Price]])*Table1468[[#This Row],[Initial Price]])+Table1468[[#This Row],[Initial Price]]),((VLOOKUP(YEAR(TODAY()),'Inflation Data'!$A:$C,3,TRUE)-VLOOKUP(Table1468[[#This Row],[Year of Initial Price]],'Inflation Data'!$A:$C,3,TRUE))/(VLOOKUP(Table1468[[#This Row],[Year of Initial Price]],'Inflation Data'!$A:$C,3,TRUE))*Table1468[[#This Row],[Initial Price]])+Table1468[[#This Row],[Initial Price]])))) -> 21000 | I45: =IF($G45=YEAR(TODAY()),$E45,(IF($G45=0,"",IF(Table13[[#This Row],[Life Expectancy]]=0,H45, ((0.056*(Table1468[[#This Row],[Year of Failure]]-YEAR(TODAY()))*Table1468[[#This Row],[Current Predicted Cost (to purchase in 2024)]])+Table1468[[#This Row],[Current Predicted Cost (to purchase in 2024)]]))))) -> 21000 | J45: =Table13[[#This Row],[Estimated Year of Failure]] -> 2039
A46: =Table13[[#This Row],[I.D. Number ]] -> MeMa-2024-2 | B46: =Table13[[#This Row],[Category]] -> Meter | C46: =Table13[[#This Row],[Type]] -> Master | D46: =Table13[[#This Row],[Description]] -> Assembly 3 - Qty 1 | E46: 18000 | G46: =Table13[[#This Row],[Installation Year]] -> 2024 | H46: =IF($G46= YEAR(TODAY()),$E46,(IF($G46=0,"",IF(Table13[[#This Row],[Life Expectancy]]=0,((0.056*(YEAR(TODAY())-Table1468[[#This Row],[Year of Initial Price]])*Table1468[[#This Row],[Initial Price]])+Table1468[[#This Row],[Initial Price]]),((VLOOKUP(YEAR(TODAY()),'Inflation Data'!$A:$C,3,TRUE)-VLOOKUP(Table1468[[#This Row],[Year of Initial Price]],'Inflation Data'!$A:$C,3,TRUE))/(VLOOKUP(Table1468[[#This Row],[Year of Initial Price]],'Inflation Data'!$A:$C,3,TRUE))*Table1468[[#This Row],[Initial Price]])+Table1468[[#This Row],[Initial Price]])))) -> 18000 | I46: =IF($G46=YEAR(TODAY()),$E46,(IF($G46=0,"",IF(Table13[[#This Row],[Life Expectancy]]=0,H46, ((0.056*(Table1468[[#This Row],[Year of Failure]]-YEAR(TODAY()))*Table1468[[#This Row],[Current Predicted Cost (to purchase in 2024)]])+Table1468[[#This Row],[Current Predicted Cost (to purchase in 2024)]]))))) -> 18000 | J46: =Table13[[#This Row],[Estimated Year of Failure]] -> 2039
A47: =Table13[[#This Row],[I.D. Number ]] -> MeMa-2024-3 | B47: =Table13[[#This Row],[Category]] -> Meter | C47: =Table13[[#This Row],[Type]] -> Master | D47: =Table13[[#This Row],[Description]] -> Assembly 4 & 6 - Qty 2 | E47: 20766.44 | G47: =Table13[[#This Row],[Installation Year]] -> 2024 | H47: =IF($G47= YEAR(TODAY()),$E47,(IF($G47=0,"",IF(Table13[[#This Row],[Life Expectancy]]=0,((0.056*(YEAR(TODAY())-Table1468[[#This Row],[Year of Initial Price]])*Table1468[[#This Row],[Initial Price]])+Table1468[[#This Row],[Initial Price]]),((VLOOKUP(YEAR(TODAY()),'Inflation Data'!$A:$C,3,TRUE)-VLOOKUP(Table1468[[#This Row],[Year of Initial Price]],'Inflation Data'!$A:$C,3,TRUE))/(VLOOKUP(Table1468[[#This Row],[Year of Initial Price]],'Inflation Data'!$A:$C,3,TRUE))*Table1468[[#This Row],[Initial Price]])+Table1468[[#This Row],[Initial Price]])))) -> 20766.44 | I47: =IF($G47=YEAR(TODAY()),$E47,(IF($G47=0,"",IF(Table13[[#This Row],[Life Expectancy]]=0,H47, ((0.056*(Table1468[[#This Row],[Year of Failure]]-YEAR(TODAY()))*Table1468[[#This Row],[Current Predicted Cost (to purchase in 2024)]])+Table1468[[#This Row],[Current Predicted Cost (to purchase in 2024)]]))))) -> 20766.44 | J47: =Table13[[#This Row],[Estimated Year of Failure]] -> 2039
A48: =Table13[[#This Row],[I.D. Number ]] -> MeMa-2024-4 | B48: =Table13[[#This Row],[Category]] -> Meter | C48: =Table13[[#This Row],[Type]] -> Master | D48: =Table13[[#This Row],[Description]] -> Assembly 5 & 19 - Qty 2 | E48: 20006.03 | G48: =Table13[[#This Row],[Installation Year]] -> 2024 | H48: =IF($G48= YEAR(TODAY()),$E48,(IF($G48=0,"",IF(Table13[[#This Row],[Life Expectancy]]=0,((0.056*(YEAR(TODAY())-Table1468[[#This Row],[Year of Initial Price]])*Table1468[[#This Row],[Initial Price]])+Table1468[[#This Row],[Initial Price]]),((VLOOKUP(YEAR(TODAY()),'Inflation Data'!$A:$C,3,TRUE)-VLOOKUP(Table1468[[#This Row],[Year of Initial Price]],'Inflation Data'!$A:$C,3,TRUE))/(VLOOKUP(Table1468[[#This Row],[Year of Initial Price]],'Inflation Data'!$A:$C,3,TRUE))*Table1468[[#This Row],[Initial Price]])+Table1468[[#This Row],[Initial Price]])))) -> 20006.03 | I48: =IF($G48=YEAR(TODAY()),$E48,(IF($G48=0,"",IF(Table13[[#This Row],[Life Expectancy]]=0,H48, ((0.056*(Table1468[[#This Row],[Year of Failure]]-YEAR(TODAY()))*Table1468[[#This Row],[Current Predicted Cost (to purchase in 2024)]])+Table1468[[#This Row],[Current Predicted Cost (to purchase in 2024)]]))))) -> 20006.03 | J48: =Table13[[#This Row],[Estimated Year of Failure]] -> 2039
A49: =Table13[[#This Row],[I.D. Number ]] -> MeMa-2024-5 | B49: =Table13[[#This Row],[Category]] -> Meter | C49: =Table13[[#This Row],[Type]] -> Master | D49: =Table13[[#This Row],[Description]] -> Assembly 7 - Qty 1 | E49: 17441.51 | G49: =Table13[[#This Row],[Installation Year]] -> 2024 | H49: =IF($G49= YEAR(TODAY()),$E49,(IF($G49=0,"",IF(Table13[[#This Row],[Life Expectancy]]=0,((0.056*(YEAR(TODAY())-Table1468[[#This Row],[Year of Initial Price]])*Table1468[[#This Row],[Initial Price]])+Table1468[[#This Row],[Initial Price]]),((VLOOKUP(YEAR(TODAY()),'Inflation Data'!$A:$C,3,TRUE)-VLOOKUP(Table1468[[#This Row],[Year of Initial Price]],'Inflation Data'!$A:$C,3,TRUE))/(VLOOKUP(Table1468[[#This Row],[Year of Initial Price]],'Inflation Data'!$A:$C,3,TRUE))*Table1468[[#This Row],[Initial Price]])+Table1468[[#This Row],[Initial Price]])))) -> 17441.51 | I49: =IF($G49=YEAR(TODAY()),$E49,(IF($G49=0,"",IF(Table13[[#This Row],[Life Expectancy]]=0,H49, ((0.056*(Table1468[[#This Row],[Year of Failure]]-YEAR(TODAY()))*Table1468[[#This Row],[Current Predicted Cost (to purchase in 2024)]])+Table1468[[#This Row],[Current Predicted Cost (to purchase in 2024)]]))))) -> 17441.51 | J49: =Table13[[#This Row],[Estimated Year of Failure]] -> 2039
A50: =Table13[[#This Row],[I.D. Number ]] -> MeMa-2024-6 | B50: =Table13[[#This Row],[Category]] -> Meter | C50: =Table13[[#This Row],[Type]] -> Master | D50: =Table13[[#This Row],[Description]] -> Assembly 8 - Qty 1 | E50: 18867.54 | G50: =Table13[[#This Row],[Installation Year]] -> 2024 | H50: =IF($G50= YEAR(TODAY()),$E50,(IF($G50=0,"",IF(Table13[[#This Row],[Life Expectancy]]=0,((0.056*(YEAR(TODAY())-Table1468[[#This Row],[Year of Initial Price]])*Table1468[[#This Row],[Initial Price]])+Table1468[[#This Row],[Initial Price]]),((VLOOKUP(YEAR(TODAY()),'Inflation Data'!$A:$C,3,TRUE)-VLOOKUP(Table1468[[#This Row],[Year of Initial Price]],'Inflation Data'!$A:$C,3,TRUE))/(VLOOKUP(Table1468[[#This Row],[Year of Initial Price]],'Inflation Data'!$A:$C,3,TRUE))*Table1468[[#This Row],[Initial Price]])+Table1468[[#This Row],[Initial Price]])))) -> 18867.54 | I50: =IF($G50=YEAR(TODAY()),$E50,(IF($G50=0,"",IF(Table13[[#This Row],[Life Expectancy]]=0,H50, ((0.056*(Table1468[[#This Row],[Year of Failure]]-YEAR(TODAY()))*Table1468[[#This Row],[Current Predicted Cost (to purchase in 2024)]])+Table1468[[#This Row],[Current Predicted Cost (to purchase in 2024)]]))))) -> 18867.54 | J50: =Table13[[#This Row],[Estimated Year of Failure]] -> 2039
A51: =Table13[[#This Row],[I.D. Number ]] -> MeMa-2024-7 | B51: =Table13[[#This Row],[Category]] -> Meter | C51: =Table13[[#This Row],[Type]] -> Master | D51: =Table13[[#This Row],[Description]] -> Assembly 11 - Qty 1 | E51: 23669.63 | G51: =Table13[[#This Row],[Installation Year]] -> 2024 | H51: =IF($G51= YEAR(TODAY()),$E51,(IF($G51=0,"",IF(Table13[[#This Row],[Life Expectancy]]=0,((0.056*(YEAR(TODAY())-Table1468[[#This Row],[Year of Initial Price]])*Table1468[[#This Row],[Initial Price]])+Table1468[[#This Row],[Initial Price]]),((VLOOKUP(YEAR(TODAY()),'Inflation Data'!$A:$C,3,TRUE)-VLOOKUP(Table1468[[#This Row],[Year of Initial Price]],'Inflation Data'!$A:$C,3,TRUE))/(VLOOKUP(Table1468[[#This Row],[Year of Initial Price]],'Inflation Data'!$A:$C,3,TRUE))*Table1468[[#This Row],[Initial Price]])+Table1468[[#This Row],[Initial Price]])))) -> 23669.63 | I51: =IF($G51=YEAR(TODAY()),$E51,(IF($G51=0,"",IF(Table13[[#This Row],[Life Expectancy]]=0,H51, ((0.056*(Table1468[[#This Row],[Year of Failure]]-YEAR(TODAY()))*Table1468[[#This Row],[Current Predicted Cost (to purchase in 2024)]])+Table1468[[#This Row],[Current Predicted Cost (to purchase in 2024)]]))))) -> 23669.63 | J51: =Table13[[#This Row],[Estimated Year of Failure]] -> 2039
A52: =Table13[[#This Row],[I.D. Number ]] -> MeMa-2024-8 | B52: =Table13[[#This Row],[Category]] -> Meter | C52: =Table13[[#This Row],[Type]] -> Master | D52: =Table13[[#This Row],[Description]] -> Assembly 12 - Qty 1 | E52: 20736.62 | G52: =Table13[[#This Row],[Installation Year]] -> 2024 | H52: =IF($G52= YEAR(TODAY()),$E52,(IF($G52=0,"",IF(Table13[[#This Row],[Life Expectancy]]=0,((0.056*(YEAR(TODAY())-Table1468[[#This Row],[Year of Initial Price]])*Table1468[[#This Row],[Initial Price]])+Table1468[[#This Row],[Initial Price]]),((VLOOKUP(YEAR(TODAY()),'Inflation Data'!$A:$C,3,TRUE)-VLOOKUP(Table1468[[#This Row],[Year of Initial Price]],'Inflation Data'!$A:$C,3,TRUE))/(VLOOKUP(Table1468[[#This Row],[Year of Initial Price]],'Inflation Data'!$A:$C,3,TRUE))*Table1468[[#This Row],[Initial Price]])+Table1468[[#This Row],[Initial Price]])))) -> 20736.62 | I52: =IF($G52=YEAR(TODAY()),$E52,(IF($G52=0,"",IF(Table13[[#This Row],[Life Expectancy]]=0,H52, ((0.056*(Table1468[[#This Row],[Year of Failure]]-YEAR(TODAY()))*Table1468[[#This Row],[Current Predicted Cost (to purchase in 2024)]])+Table1468[[#This Row],[Current Predicted Cost (to purchase in 2024)]]))))) -> 20736.62 | J52: =Table13[[#This Row],[Estimated Year of Failure]] -> 2039
A53: =Table13[[#This Row],[I.D. Number ]] -> MeMa-2024-9 | B53: =Table13[[#This Row],[Category]] -> Meter | C53: =Table13[[#This Row],[Type]] -> Master | D53: =Table13[[#This Row],[Description]] -> Assembly 13 - Qty 1 | E53: 19896.33 | G53: =Table13[[#This Row],[Installation Year]] -> 2024 | H53: =IF($G53= YEAR(TODAY()),$E53,(IF($G53=0,"",IF(Table13[[#This Row],[Life Expectancy]]=0,((0.056*(YEAR(TODAY())-Table1468[[#This Row],[Year of Initial Price]])*Table1468[[#This Row],[Initial Price]])+Table1468[[#This Row],[Initial Price]]),((VLOOKUP(YEAR(TODAY()),'Inflation Data'!$A:$C,3,TRUE)-VLOOKUP(Table1468[[#This Row],[Year of Initial Price]],'Inflation Data'!$A:$C,3,TRUE))/(VLOOKUP(Table1468[[#This Row],[Year of Initial Price]],'Inflation Data'!$A:$C,3,TRUE))*Table1468[[#This Row],[Initial Price]])+Table1468[[#This Row],[Initial Price]])))) -> 19896.33 | I53: =IF($G53=YEAR(TODAY()),$E53,(IF($G53=0,"",IF(Table13[[#This Row],[Life Expectancy]]=0,H53, ((0.056*(Table1468[[#This Row],[Year of Failure]]-YEAR(TODAY()))*Table1468[[#This Row],[Current Predicted Cost (to purchase in 2024)]])+Table1468[[#This Row],[Current Predicted Cost (to purchase in 2024)]]))))) -> 19896.33 | J53: =Table13[[#This Row],[Estimated Year of Failure]] -> 2039
A54: =Table13[[#This Row],[I.D. Number ]] -> MeMa-2024-10 | B54: =Table13[[#This Row],[Category]] -> Meter | C54: =Table13[[#This Row],[Type]] -> Master | D54: =Table13[[#This Row],[Description]] -> Assembly 14 - Qty 1 | E54: 17441.51 | G54: =Table13[[#This Row],[Installation Year]] -> 2024 | H54: =IF($G54= YEAR(TODAY()),$E54,(IF($G54=0,"",IF(Table13[[#This Row],[Life Expectancy]]=0,((0.056*(YEAR(TODAY())-Table1468[[#This Row],[Year of Initial Price]])*Table1468[[#This Row],[Initial Price]])+Table1468[[#This Row],[Initial Price]]),((VLOOKUP(YEAR(TODAY()),'Inflation Data'!$A:$C,3,TRUE)-VLOOKUP(Table1468[[#This Row],[Year of Initial Price]],'Inflation Data'!$A:$C,3,TRUE))/(VLOOKUP(Table1468[[#This Row],[Year of Initial Price]],'Inflation Data'!$A:$C,3,TRUE))*Table1468[[#This Row],[Initial Price]])+Table1468[[#This Row],[Initial Price]])))) -> 17441.51 | I54: =IF($G54=YEAR(TODAY()),$E54,(IF($G54=0,"",IF(Table13[[#This Row],[Life Expectancy]]=0,H54, ((0.056*(Table1468[[#This Row],[Year of Failure]]-YEAR(TODAY()))*Table1468[[#This Row],[Current Predicted Cost (to purchase in 2024)]])+Table1468[[#This Row],[Current Predicted Cost (to purchase in 2024)]]))))) -> 17441.51 | J54: =Table13[[#This Row],[Estimated Year of Failure]] -> 2039
A55: =Table13[[#This Row],[I.D. Number ]] -> MeMa-2024-11 | B55: =Table13[[#This Row],[Category]] -> Meter | C55: =Table13[[#This Row],[Type]] -> Master | D55: =Table13[[#This Row],[Description]] -> Assembly 15, 16, 17, 18 - Qty 4 | E55: 19986.86 | G55: =Table13[[#This Row],[Installation Year]] -> 2024 | H55: =IF($G55= YEAR(TODAY()),$E55,(IF($G55=0,"",IF(Table13[[#This Row],[Life Expectancy]]=0,((0.056*(YEAR(TODAY())-Table1468[[#This Row],[Year of Initial Price]])*Table1468[[#This Row],[Initial Price]])+Table1468[[#This Row],[Initial Price]]),((VLOOKUP(YEAR(TODAY()),'Inflation Data'!$A:$C,3,TRUE)-VLOOKUP(Table1468[[#This Row],[Year of Initial Price]],'Inflation Data'!$A:$C,3,TRUE))/(VLOOKUP(Table1468[[#This Row],[Year of Initial Price]],'Inflation Data'!$A:$C,3,TRUE))*Table1468[[#This Row],[Initial Price]])+Table1468[[#This Row],[Initial Price]])))) -> 19986.86 | I55: =IF($G55=YEAR(TODAY()),$E55,(IF($G55=0,"",IF(Table13[[#This Row],[Life Expectancy]]=0,H55, ((0.056*(Table1468[[#This Row],[Year of Failure]]-YEAR(TODAY()))*Table1468[[#This Row],[Current Predicted Cost (to purchase in 2024)]])+Table1468[[#This Row],[Current Predicted Cost (to purchase in 2024)]]))))) -> 19986.86 | J55: =Table13[[#This Row],[Estimated Year of Failure]] -> 2039
A56: =Table13[[#This Row],[I.D. Number ]] -> MeMa-2024-12 | B56: =Table13[[#This Row],[Category]] -> Meter | C56: =Table13[[#This Row],[Type]] -> Master | D56: =Table13[[#This Row],[Description]] -> Assembly 20 - Qty 1 | E56: 8719.16 | G56: =Table13[[#This Row],[Installation Year]] -> 2024 | H56: =IF($G56= YEAR(TODAY()),$E56,(IF($G56=0,"",IF(Table13[[#This Row],[Life Expectancy]]=0,((0.056*(YEAR(TODAY())-Table1468[[#This Row],[Year of Initial Price]])*Table1468[[#This Row],[Initial Price]])+Table1468[[#This Row],[Initial Price]]),((VLOOKUP(YEAR(TODAY()),'Inflation Data'!$A:$C,3,TRUE)-VLOOKUP(Table1468[[#This Row],[Year of Initial Price]],'Inflation Data'!$A:$C,3,TRUE))/(VLOOKUP(Table1468[[#This Row],[Year of Initial Price]],'Inflation Data'!$A:$C,3,TRUE))*Table1468[[#This Row],[Initial Price]])+Table1468[[#This Row],[Initial Price]])))) -> 8719.16 | I56: =IF($G56=YEAR(TODAY()),$E56,(IF($G56=0,"",IF(Table13[[#This Row],[Life Expectancy]]=0,H56, ((0.056*(Table1468[[#This Row],[Year of Failure]]-YEAR(TODAY()))*Table1468[[#This Row],[Current Predicted Cost (to purchase in 2024)]])+Table1468[[#This Row],[Current Predicted Cost (to purchase in 2024)]]))))) -> 8719.16 | J56: =Table13[[#This Row],[Estimated Year of Failure]] -> 2039
A57: =Table13[[#This Row],[I.D. Number ]] -> VaGa-2024-1 | B57: =Table13[[#This Row],[Category]] -> Valve | C57: =Table13[[#This Row],[Type]] -> Gate | D57: =Table13[[#This Row],[Description]] -> Qty 3 | E57: 4700 | G57: =Table13[[#This Row],[Installation Year]] -> 2024 | H57: =IF($G57= YEAR(TODAY()),$E57,(IF($G57=0,"",IF(Table13[[#This Row],[Life Expectancy]]=0,((0.056*(YEAR(TODAY())-Table1468[[#This Row],[Year of Initial Price]])*Table1468[[#This Row],[Initial Price]])+Table1468[[#This Row],[Initial Price]]),((VLOOKUP(YEAR(TODAY()),'Inflation Data'!$A:$C,3,TRUE)-VLOOKUP(Table1468[[#This Row],[Year of Initial Price]],'Inflation Data'!$A:$C,3,TRUE))/(VLOOKUP(Table1468[[#This Row],[Year of Initial Price]],'Inflation Data'!$A:$C,3,TRUE))*Table1468[[#This Row],[Initial Price]])+Table1468[[#This Row],[Initial Price]])))) -> 4700 | I57: =IF($G57=YEAR(TODAY()),$E57,(IF($G57=0,"",IF(Table13[[#This Row],[Life Expectancy]]=0,H57, ((0.056*(Table1468[[#This Row],[Year of Failure]]-YEAR(TODAY()))*Table1468[[#This Row],[Current Predicted Cost (to purchase in 2024)]])+Table1468[[#This Row],[Current Predicted Cost (to purchase in 2024)]]))))) -> 4700 | J57: =Table13[[#This Row],[Estimated Year of Failure]] -> 2044
A58: =Table13[[#This Row],[I.D. Number ]] -> VaGa-2024-2 | B58: =Table13[[#This Row],[Category]] -> Valve | C58: =Table13[[#This Row],[Type]] -> Gate | D58: =Table13[[#This Row],[Description]] -> Qty 1 | E58: 4700 | G58: =Table13[[#This Row],[Installation Year]] -> 2024 | H58: =IF($G58= YEAR(TODAY()),$E58,(IF($G58=0,"",IF(Table13[[#This Row],[Life Expectancy]]=0,((0.056*(YEAR(TODAY())-Table1468[[#This Row],[Year of Initial Price]])*Table1468[[#This Row],[Initial Price]])+Table1468[[#This Row],[Initial Price]]),((VLOOKUP(YEAR(TODAY()),'Inflation Data'!$A:$C,3,TRUE)-VLOOKUP(Table1468[[#This Row],[Year of Initial Price]],'Inflation Data'!$A:$C,3,TRUE))/(VLOOKUP(Table1468[[#This Row],[Year of Initial Price]],'Inflation Data'!$A:$C,3,TRUE))*Table1468[[#This Row],[Initial Price]])+Table1468[[#This Row],[Initial Price]])))) -> 4700 | I58: =IF($G58=YEAR(TODAY()),$E58,(IF($G58=0,"",IF(Table13[[#This Row],[Life Expectancy]]=0,H58, ((0.056*(Table1468[[#This Row],[Year of Failure]]-YEAR(TODAY()))*Table1468[[#This Row],[Current Predicted Cost (to purchase in 2024)]])+Table1468[[#This Row],[Current Predicted Cost (to purchase in 2024)]]))))) -> 4700 | J58: =Table13[[#This Row],[Estimated Year of Failure]] -> 2044
A59: =Table13[[#This Row],[I.D. Number ]] -> VaGa-2024-3 | B59: =Table13[[#This Row],[Category]] -> Valve | C59: =Table13[[#This Row],[Type]] -> Gate | D59: =Table13[[#This Row],[Description]] -> Qty 2 | E59: 4704.11 | G59: =Table13[[#This Row],[Installation Year]] -> 2024 | H59: =IF($G59= YEAR(TODAY()),$E59,(IF($G59=0,"",IF(Table13[[#This Row],[Life Expectancy]]=0,((0.056*(YEAR(TODAY())-Table1468[[#This Row],[Year of Initial Price]])*Table1468[[#This Row],[Initial Price]])+Table1468[[#This Row],[Initial Price]]),((VLOOKUP(YEAR(TODAY()),'Inflation Data'!$A:$C,3,TRUE)-VLOOKUP(Table1468[[#This Row],[Year of Initial Price]],'Inflation Data'!$A:$C,3,TRUE))/(VLOOKUP(Table1468[[#This Row],[Year of Initial Price]],'Inflation Data'!$A:$C,3,TRUE))*Table1468[[#This Row],[Initial Price]])+Table1468[[#This Row],[Initial Price]])))) -> 4704.11 | I59: =IF($G59=YEAR(TODAY()),$E59,(IF($G59=0,"",IF(Table13[[#This Row],[Life Expectancy]]=0,H59, ((0.056*(Table1468[[#This Row],[Year of Failure]]-YEAR(TODAY()))*Table1468[[#This Row],[Current Predicted Cost (to purchase in 2024)]])+Table1468[[#This Row],[Current Predicted Cost (to purchase in 2024)]]))))) -> 4704.11 | J59: =Table13[[#This Row],[Estimated Year of Failure]] -> 2044
A60: =Table13[[#This Row],[I.D. Number ]] -> VaGa-2024-4 | B60: =Table13[[#This Row],[Category]] -> Valve | C60: =Table13[[#This Row],[Type]] -> Gate | D60: =Table13[[#This Row],[Description]] -> Qty 3 | E60: 3182.22 | G60: =Table13[[#This Row],[Installation Year]] -> 2024 | H60: =IF($G60= YEAR(TODAY()),$E60,(IF($G60=0,"",IF(Table13[[#This Row],[Life Expectancy]]=0,((0.056*(YEAR(TODAY())-Table1468[[#This Row],[Year of Initial Price]])*Table1468[[#This Row],[Initial Price]])+Table1468[[#This Row],[Initial Price]]),((VLOOKUP(YEAR(TODAY()),'Inflation Data'!$A:$C,3,TRUE)-VLOOKUP(Table1468[[#This Row],[Year of Initial Price]],'Inflation Data'!$A:$C,3,TRUE))/(VLOOKUP(Table1468[[#This Row],[Year of Initial Price]],'Inflation Data'!$A:$C,3,TRUE))*Table1468[[#This Row],[Initial Price]])+Table1468[[#This Row],[Initial Price]])))) -> 3182.22 | I60: =IF($G60=YEAR(TODAY()),$E60,(IF($G60=0,"",IF(Table13[[#This Row],[Life Expectancy]]=0,H60, ((0.056*(Table1468[[#This Row],[Year of Failure]]-YEAR(TODAY()))*Table1468[[#This Row],[Current Predicted Cost (to purchase in 2024)]])+Table1468[[#This Row],[Current Predicted Cost (to purchase in 2024)]]))))) -> 3182.22 | J60: =Table13[[#This Row],[Estimated Year of Failure]] -> 2044
A61: =Table13[[#This Row],[I.D. Number ]] -> VaPr-2024-1 | B61: =Table13[[#This Row],[Category]] -> Valve | C61: =Table13[[#This Row],[Type]] -> Pressure Relief (PRV) | D61: =Table13[[#This Row],[Description]] -> PRV-8 | E61: 7500 | G61: =Table13[[#This Row],[Installation Year]] -> 2024 | H61: =IF($G61= YEAR(TODAY()),$E61,(IF($G61=0,"",IF(Table13[[#This Row],[Life Expectancy]]=0,((0.056*(YEAR(TODAY())-Table1468[[#This Row],[Year of Initial Price]])*Table1468[[#This Row],[Initial Price]])+Table1468[[#This Row],[Initial Price]]),((VLOOKUP(YEAR(TODAY()),'Inflation Data'!$A:$C,3,TRUE)-VLOOKUP(Table1468[[#This Row],[Year of Initial Price]],'Inflation Data'!$A:$C,3,TRUE))/(VLOOKUP(Table1468[[#This Row],[Year of Initial Price]],'Inflation Data'!$A:$C,3,TRUE))*Table1468[[#This Row],[Initial Price]])+Table1468[[#This Row],[Initial Price]])))) -> 7500 | I61: =IF($G61=YEAR(TODAY()),$E61,(IF($G61=0,"",IF(Table13[[#This Row],[Life Expectancy]]=0,H61, ((0.056*(Table1468[[#This Row],[Year of Failure]]-YEAR(TODAY()))*Table1468[[#This Row],[Current Predicted Cost (to purchase in 2024)]])+Table1468[[#This Row],[Current Predicted Cost (to purchase in 2024)]]))))) -> 7500 | J61: =Table13[[#This Row],[Estimated Year of Failure]] -> 2044
A62: =Table13[[#This Row],[I.D. Number ]] -> VaPr-2024-2 | B62: =Table13[[#This Row],[Category]] -> Valve | C62: =Table13[[#This Row],[Type]] -> Pressure Relief (PRV) | D62: =Table13[[#This Row],[Description]] -> Residential - Qty 4 | E62: 85 | G62: =Table13[[#This Row],[Installation Year]] -> 2024 | H62: =IF($G62= YEAR(TODAY()),$E62,(IF($G62=0,"",IF(Table13[[#This Row],[Life Expectancy]]=0,((0.056*(YEAR(TODAY())-Table1468[[#This Row],[Year of Initial Price]])*Table1468[[#This Row],[Initial Price]])+Table1468[[#This Row],[Initial Price]]),((VLOOKUP(YEAR(TODAY()),'Inflation Data'!$A:$C,3,TRUE)-VLOOKUP(Table1468[[#This Row],[Year of Initial Price]],'Inflation Data'!$A:$C,3,TRUE))/(VLOOKUP(Table1468[[#This Row],[Year of Initial Price]],'Inflation Data'!$A:$C,3,TRUE))*Table1468[[#This Row],[Initial Price]])+Table1468[[#This Row],[Initial Price]])))) -> 85 | I62: =IF($G62=YEAR(TODAY()),$E62,(IF($G62=0,"",IF(Table13[[#This Row],[Life Expectancy]]=0,H62, ((0.056*(Table1468[[#This Row],[Year of Failure]]-YEAR(TODAY()))*Table1468[[#This Row],[Current Predicted Cost (to purchase in 2024)]])+Table1468[[#This Row],[Current Predicted Cost (to purchase in 2024)]]))))) -> 85 | J62: =Table13[[#This Row],[Estimated Year of Failure]] -> 2044
A63: =Table13[[#This Row],[I.D. Number ]] -> VaGa-2024-5 | B63: =Table13[[#This Row],[Category]] -> Valve | C63: =Table13[[#This Row],[Type]] -> Gate | D63: =Table13[[#This Row],[Description]] -> Flush Valve | E63: 5100 | G63: =Table13[[#This Row],[Installation Year]] -> 2024 | H63: =IF($G63= YEAR(TODAY()),$E63,(IF($G63=0,"",IF(Table13[[#This Row],[Life Expectancy]]=0,((0.056*(YEAR(TODAY())-Table1468[[#This Row],[Year of Initial Price]])*Table1468[[#This Row],[Initial Price]])+Table1468[[#This Row],[Initial Price]]),((VLOOKUP(YEAR(TODAY()),'Inflation Data'!$A:$C,3,TRUE)-VLOOKUP(Table1468[[#This Row],[Year of Initial Price]],'Inflation Data'!$A:$C,3,TRUE))/(VLOOKUP(Table1468[[#This Row],[Year of Initial Price]],'Inflation Data'!$A:$C,3,TRUE))*Table1468[[#This Row],[Initial Price]])+Table1468[[#This Row],[Initial Price]])))) -> 5100 | I63: =IF($G63=YEAR(TODAY()),$E63,(IF($G63=0,"",IF(Table13[[#This Row],[Life Expectancy]]=0,H63, ((0.056*(Table1468[[#This Row],[Year of Failure]]-YEAR(TODAY()))*Table1468[[#This Row],[Current Predicted Cost (to purchase in 2024)]])+Table1468[[#This Row],[Current Predicted Cost (to purchase in 2024)]]))))) -> 5100 | J63: =Table13[[#This Row],[Estimated Year of Failure]] -> 2044
A64: =Table13[[#This Row],[I.D. Number ]] -> CoSC-2024-1 | B64: =Table13[[#This Row],[Category]] -> Control | C64: =Table13[[#This Row],[Type]] -> SCADA | D64: =Table13[[#This Row],[Description]] -> Automated Meter Reading System | E64: 15000 | G64: =Table13[[#This Row],[Installation Year]] -> 2024 | H64: =IF($G64= YEAR(TODAY()),$E64,(IF($G64=0,"",IF(Table13[[#This Row],[Life Expectancy]]=0,((0.056*(YEAR(TODAY())-Table1468[[#This Row],[Year of Initial Price]])*Table1468[[#This Row],[Initial Price]])+Table1468[[#This Row],[Initial Price]]),((VLOOKUP(YEAR(TODAY()),'Inflation Data'!$A:$C,3,TRUE)-VLOOKUP(Table1468[[#This Row],[Year of Initial Price]],'Inflation Data'!$A:$C,3,TRUE))/(VLOOKUP(Table1468[[#This Row],[Year of Initial Price]],'Inflation Data'!$A:$C,3,TRUE))*Table1468[[#This Row],[Initial Price]])+Table1468[[#This Row],[Initial Price]])))) -> 15000 | I64: =IF($G64=YEAR(TODAY()),$E64,(IF($G64=0,"",IF(Table13[[#This Row],[Life Expectancy]]=0,H64, ((0.056*(Table1468[[#This Row],[Year of Failure]]-YEAR(TODAY()))*Table1468[[#This Row],[Current Predicted Cost (to purchase in 2024)]])+Table1468[[#This Row],[Current Predicted Cost (to purchase in 2024)]]))))) -> 15000 | J64: =Table13[[#This Row],[Estimated Year of Failure]] -> 2039
A65: =Table13[[#This Row],[I.D. Number ]] -> MeRe-2024-1 | B65: =Table13[[#This Row],[Category]] -> Meter | C65: =Table13[[#This Row],[Type]] -> Residential | D65: =Table13[[#This Row],[Description]] -> 5/8" x 3/4" Meters - Qty 932 | E65: 325 | G65: =Table13[[#This Row],[Installation Year]] -> 2024 | H65: =IF($G65= YEAR(TODAY()),$E65,(IF($G65=0,"",IF(Table13[[#This Row],[Life Expectancy]]=0,((0.056*(YEAR(TODAY())-Table1468[[#This Row],[Year of Initial Price]])*Table1468[[#This Row],[Initial Price]])+Table1468[[#This Row],[Initial Price]]),((VLOOKUP(YEAR(TODAY()),'Inflation Data'!$A:$C,3,TRUE)-VLOOKUP(Table1468[[#This Row],[Year of Initial Price]],'Inflation Data'!$A:$C,3,TRUE))/(VLOOKUP(Table1468[[#This Row],[Year of Initial Price]],'Inflation Data'!$A:$C,3,TRUE))*Table1468[[#This Row],[Initial Price]])+Table1468[[#This Row],[Initial Price]])))) -> 325 | I65: =IF($G65=YEAR(TODAY()),$E65,(IF($G65=0,"",IF(Table13[[#This Row],[Life Expectancy]]=0,H65, ((0.056*(Table1468[[#This Row],[Year of Failure]]-YEAR(TODAY()))*Table1468[[#This Row],[Current Predicted Cost (to purchase in 2024)]])+Table1468[[#This Row],[Current Predicted Cost (to purchase in 2024)]]))))) -> 325 | J65: =Table13[[#This Row],[Estimated Year of Failure]] -> 2039
A66: =Table13[[#This Row],[I.D. Number ]] -> MeCu-2024-1 | B66: =Table13[[#This Row],[Category]] -> Meter | C66: =Table13[[#This Row],[Type]] -> Customer | D66: =Table13[[#This Row],[Description]] -> Meters - Qty 8 | E66: 425 | G66: =Table13[[#This Row],[Installation Year]] -> 2024 | H66: =IF($G66= YEAR(TODAY()),$E66,(IF($G66=0,"",IF(Table13[[#This Row],[Life Expectancy]]=0,((0.056*(YEAR(TODAY())-Table1468[[#This Row],[Year of Initial Price]])*Table1468[[#This Row],[Initial Price]])+Table1468[[#This Row],[Initial Price]]),((VLOOKUP(YEAR(TODAY()),'Inflation Data'!$A:$C,3,TRUE)-VLOOKUP(Table1468[[#This Row],[Year of Initial Price]],'Inflation Data'!$A:$C,3,TRUE))/(VLOOKUP(Table1468[[#This Row],[Year of Initial Price]],'Inflation Data'!$A:$C,3,TRUE))*Table1468[[#This Row],[Initial Price]])+Table1468[[#This Row],[Initial Price]])))) -> 425 | I66: =IF($G66=YEAR(TODAY()),$E66,(IF($G66=0,"",IF(Table13[[#This Row],[Life Expectancy]]=0,H66, ((0.056*(Table1468[[#This Row],[Year of Failure]]-YEAR(TODAY()))*Table1468[[#This Row],[Current Predicted Cost (to purchase in 2024)]])+Table1468[[#This Row],[Current Predicted Cost (to purchase in 2024)]]))))) -> 425 | J66: =Table13[[#This Row],[Estimated Year of Failure]] -> 2039
A67: =Table13[[#This Row],[I.D. Number ]] -> VaPr-2024-3 | B67: =Table13[[#This Row],[Category]] -> Valve | C67: =Table13[[#This Row],[Type]] -> Pressure Relief (PRV) | D67: =Table13[[#This Row],[Description]] -> PRV-7 | E67: 7500 | G67: =Table13[[#This Row],[Installation Year]] -> 2024 | H67: =IF($G67= YEAR(TODAY()),$E67,(IF($G67=0,"",IF(Table13[[#This Row],[Life Expectancy]]=0,((0.056*(YEAR(TODAY())-Table1468[[#This Row],[Year of Initial Price]])*Table1468[[#This Row],[Initial Price]])+Table1468[[#This Row],[Initial Price]]),((VLOOKUP(YEAR(TODAY()),'Inflation Data'!$A:$C,3,TRUE)-VLOOKUP(Table1468[[#This Row],[Year of Initial Price]],'Inflation Data'!$A:$C,3,TRUE))/(VLOOKUP(Table1468[[#This Row],[Year of Initial Price]],'Inflation Data'!$A:$C,3,TRUE))*Table1468[[#This Row],[Initial Price]])+Table1468[[#This Row],[Initial Price]])))) -> 7500 | I67: =IF($G67=YEAR(TODAY()),$E67,(IF($G67=0,"",IF(Table13[[#This Row],[Life Expectancy]]=0,H67, ((0.056*(Table1468[[#This Row],[Year of Failure]]-YEAR(TODAY()))*Table1468[[#This Row],[Current Predicted Cost (to purchase in 2024)]])+Table1468[[#This Row],[Current Predicted Cost (to purchase in 2024)]]))))) -> 7500 | J67: =Table13[[#This Row],[Estimated Year of Failure]] -> 2044
A68: =Table13[[#This Row],[I.D. Number ]] -> VaGa-2024-6 | B68: =Table13[[#This Row],[Category]] -> Valve | C68: =Table13[[#This Row],[Type]] -> Gate | D68: =Table13[[#This Row],[Description]] -> Qty - 2 | E68: 4500 | G68: =Table13[[#This Row],[Installation Year]] -> 2024 | H68: =IF($G68= YEAR(TODAY()),$E68,(IF($G68=0,"",IF(Table13[[#This Row],[Life Expectancy]]=0,((0.056*(YEAR(TODAY())-Table1468[[#This Row],[Year of Initial Price]])*Table1468[[#This Row],[Initial Price]])+Table1468[[#This Row],[Initial Price]]),((VLOOKUP(YEAR(TODAY()),'Inflation Data'!$A:$C,3,TRUE)-VLOOKUP(Table1468[[#This Row],[Year of Initial Price]],'Inflation Data'!$A:$C,3,TRUE))/(VLOOKUP(Table1468[[#This Row],[Year of Initial Price]],'Inflation Data'!$A:$C,3,TRUE))*Table1468[[#This Row],[Initial Price]])+Table1468[[#This Row],[Initial Price]])))) -> 4500 | I68: =IF($G68=YEAR(TODAY()),$E68,(IF($G68=0,"",IF(Table13[[#This Row],[Life Expectancy]]=0,H68, ((0.056*(Table1468[[#This Row],[Year of Failure]]-YEAR(TODAY()))*Table1468[[#This Row],[Current Predicted Cost (to purchase in 2024)]])+Table1468[[#This Row],[Current Predicted Cost (to purchase in 2024)]]))))) -> 4500 | J68: =Table13[[#This Row],[Estimated Year of Failure]] -> 2044 | M68: TRUE
A69: =Table13[[#This Row],[I.D. Number ]] -> PiPV-2024-4 | B69: =Table13[[#This Row],[Category]] -> Pipe | C69: =Table13[[#This Row],[Type]] -> PVC | D69: =Table13[[#This Row],[Description]] -> HDPE, DR11, 200psi - 4195 linear ft | E69: 39 | G69: =Table13[[#This Row],[Installation Year]] -> 2024 | H69: =IF($G69= YEAR(TODAY()),$E69,(IF($G69=0,"",IF(Table13[[#This Row],[Life Expectancy]]=0,((0.056*(YEAR(TODAY())-Table1468[[#This Row],[Year of Initial Price]])*Table1468[[#This Row],[Initial Price]])+Table1468[[#This Row],[Initial Price]]),((VLOOKUP(YEAR(TODAY()),'Inflation Data'!$A:$C,3,TRUE)-VLOOKUP(Table1468[[#This Row],[Year of Initial Price]],'Inflation Data'!$A:$C,3,TRUE))/(VLOOKUP(Table1468[[#This Row],[Year of Initial Price]],'Inflation Data'!$A:$C,3,TRUE))*Table1468[[#This Row],[Initial Price]])+Table1468[[#This Row],[Initial Price]])))) -> 39 | I69: =IF($G69=YEAR(TODAY()),$E69,(IF($G69=0,"",IF(Table13[[#This Row],[Life Expectancy]]=0,H69, ((0.056*(Table1468[[#This Row],[Year of Failure]]-YEAR(TODAY()))*Table1468[[#This Row],[Current Predicted Cost (to purchase in 2024)]])+Table1468[[#This Row],[Current Predicted Cost (to purchase in 2024)]]))))) -> 39 | J69: =Table13[[#This Row],[Estimated Year of Failure]] -> 2104
A70: =Table13[[#This Row],[I.D. Number ]] -> VaGa-2024-7 | B70: =Table13[[#This Row],[Category]] -> Valve | C70: =Table13[[#This Row],[Type]] -> Gate | D70: =Table13[[#This Row],[Description]] -> 0 | E70: 4500 | G70: =Table13[[#This Row],[Installation Year]] -> 2024 | H70: =IF($G70= YEAR(TODAY()),$E70,(IF($G70=0,"",IF(Table13[[#This Row],[Life Expectancy]]=0,((0.056*(YEAR(TODAY())-Table1468[[#This Row],[Year of Initial Price]])*Table1468[[#This Row],[Initial Price]])+Table1468[[#This Row],[Initial Price]]),((VLOOKUP(YEAR(TODAY()),'Inflation Data'!$A:$C,3,TRUE)-VLOOKUP(Table1468[[#This Row],[Year of Initial Price]],'Inflation Data'!$A:$C,3,TRUE))/(VLOOKUP(Table1468[[#This Row],[Year of Initial Price]],'Inflation Data'!$A:$C,3,TRUE))*Table1468[[#This Row],[Initial Price]])+Table1468[[#This Row],[Initial Price]])))) -> 4500 | I70: =IF($G70=YEAR(TODAY()),$E70,(IF($G70=0,"",IF(Table13[[#This Row],[Life Expectancy]]=0,H70, ((0.056*(Table1468[[#This Row],[Year of Failure]]-YEAR(TODAY()))*Table1468[[#This Row],[Current Predicted Cost (to purchase in 2024)]])+Table1468[[#This Row],[Current Predicted Cost (to purchase in 2024)]]))))) -> 4500 | J70: =Table13[[#This Row],[Estimated Year of Failure]] -> 2044
A71: =Table13[[#This Row],[I.D. Number ]] -> VaPr-2024-4 | B71: =Table13[[#This Row],[Category]] -> Valve | C71: =Table13[[#This Row],[Type]] -> Pressure Relief (PRV) | D71: =Table13[[#This Row],[Description]] -> PRV-1 thru PRV-6 + PRV-9 - Qty 7 | E71: 7500 | G71: =Table13[[#This Row],[Installation Year]] -> 2024 | H71: =IF($G71= YEAR(TODAY()),$E71,(IF($G71=0,"",IF(Table13[[#This Row],[Life Expectancy]]=0,((0.056*(YEAR(TODAY())-Table1468[[#This Row],[Year of Initial Price]])*Table1468[[#This Row],[Initial Price]])+Table1468[[#This Row],[Initial Price]]),((VLOOKUP(YEAR(TODAY()),'Inflation Data'!$A:$C,3,TRUE)-VLOOKUP(Table1468[[#This Row],[Year of Initial Price]],'Inflation Data'!$A:$C,3,TRUE))/(VLOOKUP(Table1468[[#This Row],[Year of Initial Price]],'Inflation Data'!$A:$C,3,TRUE))*Table1468[[#This Row],[Initial Price]])+Table1468[[#This Row],[Initial Price]])))) -> 7500 | I71: =IF($G71=YEAR(TODAY()),$E71,(IF($G71=0,"",IF(Table13[[#This Row],[Life Expectancy]]=0,H71, ((0.056*(Table1468[[#This Row],[Year of Failure]]-YEAR(TODAY()))*Table1468[[#This Row],[Current Predicted Cost (to purchase in 2024)]])+Table1468[[#This Row],[Current Predicted Cost (to purchase in 2024)]]))))) -> 7500 | J71: =Table13[[#This Row],[Estimated Year of Failure]] -> 2044
A72: =Table13[[#This Row],[I.D. Number ]] -> VaGa-2024-8 | B72: =Table13[[#This Row],[Category]] -> Valve | C72: =Table13[[#This Row],[Type]] -> Gate | D72: =Table13[[#This Row],[Description]] -> Gate Valve System | E72: 4500 | G72: =Table13[[#This Row],[Installation Year]] -> 2024 | H72: =IF($G72= YEAR(TODAY()),$E72,(IF($G72=0,"",IF(Table13[[#This Row],[Life Expectancy]]=0,((0.056*(YEAR(TODAY())-Table1468[[#This Row],[Year of Initial Price]])*Table1468[[#This Row],[Initial Price]])+Table1468[[#This Row],[Initial Price]]),((VLOOKUP(YEAR(TODAY()),'Inflation Data'!$A:$C,3,TRUE)-VLOOKUP(Table1468[[#This Row],[Year of Initial Price]],'Inflation Data'!$A:$C,3,TRUE))/(VLOOKUP(Table1468[[#This Row],[Year of Initial Price]],'Inflation Data'!$A:$C,3,TRUE))*Table1468[[#This Row],[Initial Price]])+Table1468[[#This Row],[Initial Price]])))) -> 4500 | I72: =IF($G72=YEAR(TODAY()),$E72,(IF($G72=0,"",IF(Table13[[#This Row],[Life Expectancy]]=0,H72, ((0.056*(Table1468[[#This Row],[Year of Failure]]-YEAR(TODAY()))*Table1468[[#This Row],[Current Predicted Cost (to purchase in 2024)]])+Table1468[[#This Row],[Current Predicted Cost (to purchase in 2024)]]))))) -> 4500 | J72: =Table13[[#This Row],[Estimated Year of Failure]] -> 2044
A73: =Table13[[#This Row],[I.D. Number ]] ->  | B73: =Table13[[#This Row],[Category]] -> 0 | C73: =Table13[[#This Row],[Type]] -> 0 | D73: =Table13[[#This Row],[Description]] -> 0 | G73: =Table13[[#This Row],[Installation Year]] -> 0 | H73: =IF($G73= YEAR(TODAY()),$E73,(IF($G73=0,"",IF(Table13[[#This Row],[Life Expectancy]]=0,((0.056*(YEAR(TODAY())-Table1468[[#This Row],[Year of Initial Price]])*Table1468[[#This Row],[Initial Price]])+Table1468[[#This Row],[Initial Price]]),((VLOOKUP(YEAR(TODAY()),'Inflation Data'!$A:$C,3,TRUE)-VLOOKUP(Table1468[[#This Row],[Year of Initial Price]],'Inflation Data'!$A:$C,3,TRUE))/(VLOOKUP(Table1468[[#This Row],[Year of Initial Price]],'Inflation Data'!$A:$C,3,TRUE))*Table1468[[#This Row],[Initial Price]])+Table1468[[#This Row],[Initial Price]])))) ->  | I73: =IF($G73=YEAR(TODAY()),$E73,(IF($G73=0,"",IF(Table13[[#This Row],[Life Expectancy]]=0,H73, ((0.056*(Table1468[[#This Row],[Year of Failure]]-YEAR(TODAY()))*Table1468[[#This Row],[Current Predicted Cost (to purchase in 2024)]])+Table1468[[#This Row],[Current Predicted Cost (to purchase in 2024)]]))))) ->  | J73: =Table13[[#This Row],[Estimated Year of Failure]] -> 
A74: =Table13[[#This Row],[I.D. Number ]] ->  | B74: =Table13[[#This Row],[Category]] -> 0 | C74: =Table13[[#This Row],[Type]] -> 0 | D74: =Table13[[#This Row],[Description]] -> 0 | G74: =Table13[[#This Row],[Installation Year]] -> 0 | H74: =IF($G74= YEAR(TODAY()),$E74,(IF($G74=0,"",IF(Table13[[#This Row],[Life Expectancy]]=0,((0.056*(YEAR(TODAY())-Table1468[[#This Row],[Year of Initial Price]])*Table1468[[#This Row],[Initial Price]])+Table1468[[#This Row],[Initial Price]]),((VLOOKUP(YEAR(TODAY()),'Inflation Data'!$A:$C,3,TRUE)-VLOOKUP(Table1468[[#This Row],[Year of Initial Price]],'Inflation Data'!$A:$C,3,TRUE))/(VLOOKUP(Table1468[[#This Row],[Year of Initial Price]],'Inflation Data'!$A:$C,3,TRUE))*Table1468[[#This Row],[Initial Price]])+Table1468[[#This Row],[Initial Price]])))) ->  | I74: =IF($G74=YEAR(TODAY()),$E74,(IF($G74=0,"",IF(Table13[[#This Row],[Life Expectancy]]=0,H74, ((0.056*(Table1468[[#This Row],[Year of Failure]]-YEAR(TODAY()))*Table1468[[#This Row],[Current Predicted Cost (to purchase in 2024)]])+Table1468[[#This Row],[Current Predicted Cost (to purchase in 2024)]]))))) ->  | J74: =Table13[[#This Row],[Estimated Year of Failure]] -> 
A75: =Table13[[#This Row],[I.D. Number ]] ->  | B75: =Table13[[#This Row],[Category]] -> 0 | C75: =Table13[[#This Row],[Type]] -> 0 | D75: =Table13[[#This Row],[Description]] -> 0 | G75: =Table13[[#This Row],[Installation Year]] -> 0 | H75: =IF($G75= YEAR(TODAY()),$E75,(IF($G75=0,"",IF(Table13[[#This Row],[Life Expectancy]]=0,((0.056*(YEAR(TODAY())-Table1468[[#This Row],[Year of Initial Price]])*Table1468[[#This Row],[Initial Price]])+Table1468[[#This Row],[Initial Price]]),((VLOOKUP(YEAR(TODAY()),'Inflation Data'!$A:$C,3,TRUE)-VLOOKUP(Table1468[[#This Row],[Year of Initial Price]],'Inflation Data'!$A:$C,3,TRUE))/(VLOOKUP(Table1468[[#This Row],[Year of Initial Price]],'Inflation Data'!$A:$C,3,TRUE))*Table1468[[#This Row],[Initial Price]])+Table1468[[#This Row],[Initial Price]])))) ->  | I75: =IF($G75=YEAR(TODAY()),$E75,(IF($G75=0,"",IF(Table13[[#This Row],[Life Expectancy]]=0,H75, ((0.056*(Table1468[[#This Row],[Year of Failure]]-YEAR(TODAY()))*Table1468[[#This Row],[Current Predicted Cost (to purchase in 2024)]])+Table1468[[#This Row],[Current Predicted Cost (to purchase in 2024)]]))))) ->  | J75: =Table13[[#This Row],[Estimated Year of Failure]] -> 
A76: =Table13[[#This Row],[I.D. Number ]] ->  | B76: =Table13[[#This Row],[Category]] -> 0 | C76: =Table13[[#This Row],[Type]] -> 0 | D76: =Table13[[#This Row],[Description]] -> 0 | G76: =Table13[[#This Row],[Installation Year]] -> 0 | H76: =IF($G76= YEAR(TODAY()),$E76,(IF($G76=0,"",IF(Table13[[#This Row],[Life Expectancy]]=0,((0.056*(YEAR(TODAY())-Table1468[[#This Row],[Year of Initial Price]])*Table1468[[#This Row],[Initial Price]])+Table1468[[#This Row],[Initial Price]]),((VLOOKUP(YEAR(TODAY()),'Inflation Data'!$A:$C,3,TRUE)-VLOOKUP(Table1468[[#This Row],[Year of Initial Price]],'Inflation Data'!$A:$C,3,TRUE))/(VLOOKUP(Table1468[[#This Row],[Year of Initial Price]],'Inflation Data'!$A:$C,3,TRUE))*Table1468[[#This Row],[Initial Price]])+Table1468[[#This Row],[Initial Price]])))) ->  | I76: =IF($G76=YEAR(TODAY()),$E76,(IF($G76=0,"",IF(Table13[[#This Row],[Life Expectancy]]=0,H76, ((0.056*(Table1468[[#This Row],[Year of Failure]]-YEAR(TODAY()))*Table1468[[#This Row],[Current Predicted Cost (to purchase in 2024)]])+Table1468[[#This Row],[Current Predicted Cost (to purchase in 2024)]]))))) ->  | J76: =Table13[[#This Row],[Estimated Year of Failure]] -> 
A77: =Table13[[#This Row],[I.D. Number ]] ->  | B77: =Table13[[#This Row],[Category]] -> 0 | C77: =Table13[[#This Row],[Type]] -> 0 | D77: =Table13[[#This Row],[Description]] -> 0 | G77: =Table13[[#This Row],[Installation Year]] -> 0 | H77: =IF($G77= YEAR(TODAY()),$E77,(IF($G77=0,"",IF(Table13[[#This Row],[Life Expectancy]]=0,((0.056*(YEAR(TODAY())-Table1468[[#This Row],[Year of Initial Price]])*Table1468[[#This Row],[Initial Price]])+Table1468[[#This Row],[Initial Price]]),((VLOOKUP(YEAR(TODAY()),'Inflation Data'!$A:$C,3,TRUE)-VLOOKUP(Table1468[[#This Row],[Year of Initial Price]],'Inflation Data'!$A:$C,3,TRUE))/(VLOOKUP(Table1468[[#This Row],[Year of Initial Price]],'Inflation Data'!$A:$C,3,TRUE))*Table1468[[#This Row],[Initial Price]])+Table1468[[#This Row],[Initial Price]])))) ->  | I77: =IF($G77=YEAR(TODAY()),$E77,(IF($G77=0,"",IF(Table13[[#This Row],[Life Expectancy]]=0,H77, ((0.056*(Table1468[[#This Row],[Year of Failure]]-YEAR(TODAY()))*Table1468[[#This Row],[Current Predicted Cost (to purchase in 2024)]])+Table1468[[#This Row],[Current Predicted Cost (to purchase in 2024)]]))))) ->  | J77: =Table13[[#This Row],[Estimated Year of Failure]] -> 
A78: =Table13[[#This Row],[I.D. Number ]] ->  | B78: =Table13[[#This Row],[Category]] -> 0 | C78: =Table13[[#This Row],[Type]] -> 0 | D78: =Table13[[#This Row],[Description]] -> 0 | G78: =Table13[[#This Row],[Installation Year]] -> 0 | H78: =IF($G78= YEAR(TODAY()),$E78,(IF($G78=0,"",IF(Table13[[#This Row],[Life Expectancy]]=0,((0.056*(YEAR(TODAY())-Table1468[[#This Row],[Year of Initial Price]])*Table1468[[#This Row],[Initial Price]])+Table1468[[#This Row],[Initial Price]]),((VLOOKUP(YEAR(TODAY()),'Inflation Data'!$A:$C,3,TRUE)-VLOOKUP(Table1468[[#This Row],[Year of Initial Price]],'Inflation Data'!$A:$C,3,TRUE))/(VLOOKUP(Table1468[[#This Row],[Year of Initial Price]],'Inflation Data'!$A:$C,3,TRUE))*Table1468[[#This Row],[Initial Price]])+Table1468[[#This Row],[Initial Price]])))) ->  | I78: =IF($G78=YEAR(TODAY()),$E78,(IF($G78=0,"",IF(Table13[[#This Row],[Life Expectancy]]=0,H78, ((0.056*(Table1468[[#This Row],[Year of Failure]]-YEAR(TODAY()))*Table1468[[#This Row],[Current Predicted Cost (to purchase in 2024)]])+Table1468[[#This Row],[Current Predicted Cost (to purchase in 2024)]]))))) ->  | J78: =Table13[[#This Row],[Estimated Year of Failure]] -> 
A79: =Table13[[#This Row],[I.D. Number ]] ->  | B79: =Table13[[#This Row],[Category]] -> 0 | C79: =Table13[[#This Row],[Type]] -> 0 | D79: =Table13[[#This Row],[Description]] -> 0 | G79: =Table13[[#This Row],[Installation Year]] -> 0 | H79: =IF($G79= YEAR(TODAY()),$E79,(IF($G79=0,"",IF(Table13[[#This Row],[Life Expectancy]]=0,((0.056*(YEAR(TODAY())-Table1468[[#This Row],[Year of Initial Price]])*Table1468[[#This Row],[Initial Price]])+Table1468[[#This Row],[Initial Price]]),((VLOOKUP(YEAR(TODAY()),'Inflation Data'!$A:$C,3,TRUE)-VLOOKUP(Table1468[[#This Row],[Year of Initial Price]],'Inflation Data'!$A:$C,3,TRUE))/(VLOOKUP(Table1468[[#This Row],[Year of Initial Price]],'Inflation Data'!$A:$C,3,TRUE))*Table1468[[#This Row],[Initial Price]])+Table1468[[#This Row],[Initial Price]])))) ->  | I79: =IF($G79=YEAR(TODAY()),$E79,(IF($G79=0,"",IF(Table13[[#This Row],[Life Expectancy]]=0,H79, ((0.056*(Table1468[[#This Row],[Year of Failure]]-YEAR(TODAY()))*Table1468[[#This Row],[Current Predicted Cost (to purchase in 2024)]])+Table1468[[#This Row],[Current Predicted Cost (to purchase in 2024)]]))))) ->  | J79: =Table13[[#This Row],[Estimated Year of Failure]] -> 
A80: =Table13[[#This Row],[I.D. Number ]] ->  | B80: =Table13[[#This Row],[Category]] -> 0 | C80: =Table13[[#This Row],[Type]] -> 0 | D80: =Table13[[#This Row],[Description]] -> 0 | G80: =Table13[[#This Row],[Installation Year]] -> 0 | H80: =IF($G80= YEAR(TODAY()),$E80,(IF($G80=0,"",IF(Table13[[#This Row],[Life Expectancy]]=0,((0.056*(YEAR(TODAY())-Table1468[[#This Row],[Year of Initial Price]])*Table1468[[#This Row],[Initial Price]])+Table1468[[#This Row],[Initial Price]]),((VLOOKUP(YEAR(TODAY()),'Inflation Data'!$A:$C,3,TRUE)-VLOOKUP(Table1468[[#This Row],[Year of Initial Price]],'Inflation Data'!$A:$C,3,TRUE))/(VLOOKUP(Table1468[[#This Row],[Year of Initial Price]],'Inflation Data'!$A:$C,3,TRUE))*Table1468[[#This Row],[Initial Price]])+Table1468[[#This Row],[Initial Price]])))) ->  | I80: =IF($G80=YEAR(TODAY()),$E80,(IF($G80=0,"",IF(Table13[[#This Row],[Life Expectancy]]=0,H80, ((0.056*(Table1468[[#This Row],[Year of Failure]]-YEAR(TODAY()))*Table1468[[#This Row],[Current Predicted Cost (to purchase in 2024)]])+Table1468[[#This Row],[Current Predicted Cost (to purchase in 2024)]]))))) ->  | J80: =Table13[[#This Row],[Estimated Year of Failure]] -> 
A81: =Table13[[#This Row],[I.D. Number ]] ->  | B81: =Table13[[#This Row],[Category]] -> 0 | C81: =Table13[[#This Row],[Type]] -> 0 | D81: =Table13[[#This Row],[Description]] -> 0 | G81: =Table13[[#This Row],[Installation Year]] -> 0 | H81: =IF($G81= YEAR(TODAY()),$E81,(IF($G81=0,"",IF(Table13[[#This Row],[Life Expectancy]]=0,((0.056*(YEAR(TODAY())-Table1468[[#This Row],[Year of Initial Price]])*Table1468[[#This Row],[Initial Price]])+Table1468[[#This Row],[Initial Price]]),((VLOOKUP(YEAR(TODAY()),'Inflation Data'!$A:$C,3,TRUE)-VLOOKUP(Table1468[[#This Row],[Year of Initial Price]],'Inflation Data'!$A:$C,3,TRUE))/(VLOOKUP(Table1468[[#This Row],[Year of Initial Price]],'Inflation Data'!$A:$C,3,TRUE))*Table1468[[#This Row],[Initial Price]])+Table1468[[#This Row],[Initial Price]])))) ->  | I81: =IF($G81=YEAR(TODAY()),$E81,(IF($G81=0,"",IF(Table13[[#This Row],[Life Expectancy]]=0,H81, ((0.056*(Table1468[[#This Row],[Year of Failure]]-YEAR(TODAY()))*Table1468[[#This Row],[Current Predicted Cost (to purchase in 2024)]])+Table1468[[#This Row],[Current Predicted Cost (to purchase in 2024)]]))))) ->  | J81: =Table13[[#This Row],[Estimated Year of Failure]] -> 
A82: =Table13[[#This Row],[I.D. Number ]] ->  | B82: =Table13[[#This Row],[Category]] -> 0 | C82: =Table13[[#This Row],[Type]] -> 0 | D82: =Table13[[#This Row],[Description]] -> 0 | G82: =Table13[[#This Row],[Installation Year]] -> 0 | H82: =IF($G82= YEAR(TODAY()),$E82,(IF($G82=0,"",IF(Table13[[#This Row],[Life Expectancy]]=0,((0.056*(YEAR(TODAY())-Table1468[[#This Row],[Year of Initial Price]])*Table1468[[#This Row],[Initial Price]])+Table1468[[#This Row],[Initial Price]]),((VLOOKUP(YEAR(TODAY()),'Inflation Data'!$A:$C,3,TRUE)-VLOOKUP(Table1468[[#This Row],[Year of Initial Price]],'Inflation Data'!$A:$C,3,TRUE))/(VLOOKUP(Table1468[[#This Row],[Year of Initial Price]],'Inflation Data'!$A:$C,3,TRUE))*Table1468[[#This Row],[Initial Price]])+Table1468[[#This Row],[Initial Price]])))) ->  | I82: =IF($G82=YEAR(TODAY()),$E82,(IF($G82=0,"",IF(Table13[[#This Row],[Life Expectancy]]=0,H82, ((0.056*(Table1468[[#This Row],[Year of Failure]]-YEAR(TODAY()))*Table1468[[#This Row],[Current Predicted Cost (to purchase in 2024)]])+Table1468[[#This Row],[Current Predicted Cost (to purchase in 2024)]]))))) ->  | J82: =Table13[[#This Row],[Estimated Year of Failure]] -> 
A83: =Table13[[#This Row],[I.D. Number ]] ->  | B83: =Table13[[#This Row],[Category]] -> 0 | C83: =Table13[[#This Row],[Type]] -> 0 | D83: =Table13[[#This Row],[Description]] -> 0 | G83: =Table13[[#This Row],[Installation Year]] -> 0 | H83: =IF($G83= YEAR(TODAY()),$E83,(IF($G83=0,"",IF(Table13[[#This Row],[Life Expectancy]]=0,((0.056*(YEAR(TODAY())-Table1468[[#This Row],[Year of Initial Price]])*Table1468[[#This Row],[Initial Price]])+Table1468[[#This Row],[Initial Price]]),((VLOOKUP(YEAR(TODAY()),'Inflation Data'!$A:$C,3,TRUE)-VLOOKUP(Table1468[[#This Row],[Year of Initial Price]],'Inflation Data'!$A:$C,3,TRUE))/(VLOOKUP(Table1468[[#This Row],[Year of Initial Price]],'Inflation Data'!$A:$C,3,TRUE))*Table1468[[#This Row],[Initial Price]])+Table1468[[#This Row],[Initial Price]])))) ->  | I83: =IF($G83=YEAR(TODAY()),$E83,(IF($G83=0,"",IF(Table13[[#This Row],[Life Expectancy]]=0,H83, ((0.056*(Table1468[[#This Row],[Year of Failure]]-YEAR(TODAY()))*Table1468[[#This Row],[Current Predicted Cost (to purchase in 2024)]])+Table1468[[#This Row],[Current Predicted Cost (to purchase in 2024)]]))))) ->  | J83: =Table13[[#This Row],[Estimated Year of Failure]] -> 
A84: =Table13[[#This Row],[I.D. Number ]] ->  | B84: =Table13[[#This Row],[Category]] -> 0 | C84: =Table13[[#This Row],[Type]] -> 0 | D84: =Table13[[#This Row],[Description]] -> 0 | G84: =Table13[[#This Row],[Installation Year]] -> 0 | H84: =IF($G84= YEAR(TODAY()),$E84,(IF($G84=0,"",IF(Table13[[#This Row],[Life Expectancy]]=0,((0.056*(YEAR(TODAY())-Table1468[[#This Row],[Year of Initial Price]])*Table1468[[#This Row],[Initial Price]])+Table1468[[#This Row],[Initial Price]]),((VLOOKUP(YEAR(TODAY()),'Inflation Data'!$A:$C,3,TRUE)-VLOOKUP(Table1468[[#This Row],[Year of Initial Price]],'Inflation Data'!$A:$C,3,TRUE))/(VLOOKUP(Table1468[[#This Row],[Year of Initial Price]],'Inflation Data'!$A:$C,3,TRUE))*Table1468[[#This Row],[Initial Price]])+Table1468[[#This Row],[Initial Price]])))) ->  | I84: =IF($G84=YEAR(TODAY()),$E84,(IF($G84=0,"",IF(Table13[[#This Row],[Life Expectancy]]=0,H84, ((0.056*(Table1468[[#This Row],[Year of Failure]]-YEAR(TODAY()))*Table1468[[#This Row],[Current Predicted Cost (to purchase in 2024)]])+Table1468[[#This Row],[Current Predicted Cost (to purchase in 2024)]]))))) ->  | J84: =Table13[[#This Row],[Estimated Year of Failure]] -> 
A85: =Table13[[#This Row],[I.D. Number ]] ->  | B85: =Table13[[#This Row],[Category]] -> 0 | C85: =Table13[[#This Row],[Type]] -> 0 | D85: =Table13[[#This Row],[Description]] -> 0 | G85: =Table13[[#This Row],[Installation Year]] -> 0 | H85: =IF($G85= YEAR(TODAY()),$E85,(IF($G85=0,"",IF(Table13[[#This Row],[Life Expectancy]]=0,((0.056*(YEAR(TODAY())-Table1468[[#This Row],[Year of Initial Price]])*Table1468[[#This Row],[Initial Price]])+Table1468[[#This Row],[Initial Price]]),((VLOOKUP(YEAR(TODAY()),'Inflation Data'!$A:$C,3,TRUE)-VLOOKUP(Table1468[[#This Row],[Year of Initial Price]],'Inflation Data'!$A:$C,3,TRUE))/(VLOOKUP(Table1468[[#This Row],[Year of Initial Price]],'Inflation Data'!$A:$C,3,TRUE))*Table1468[[#This Row],[Initial Price]])+Table1468[[#This Row],[Initial Price]])))) ->  | I85: =IF($G85=YEAR(TODAY()),$E85,(IF($G85=0,"",IF(Table13[[#This Row],[Life Expectancy]]=0,H85, ((0.056*(Table1468[[#This Row],[Year of Failure]]-YEAR(TODAY()))*Table1468[[#This Row],[Current Predicted Cost (to purchase in 2024)]])+Table1468[[#This Row],[Current Predicted Cost (to purchase in 2024)]]))))) ->  | J85: =Table13[[#This Row],[Estimated Year of Failure]] -> 
A86: =Table13[[#This Row],[I.D. Number ]] ->  | B86: =Table13[[#This Row],[Category]] -> 0 | C86: =Table13[[#This Row],[Type]] -> 0 | D86: =Table13[[#This Row],[Description]] -> 0 | G86: =Table13[[#This Row],[Installation Year]] -> 0 | H86: =IF($G86= YEAR(TODAY()),$E86,(IF($G86=0,"",IF(Table13[[#This Row],[Life Expectancy]]=0,((0.056*(YEAR(TODAY())-Table1468[[#This Row],[Year of Initial Price]])*Table1468[[#This Row],[Initial Price]])+Table1468[[#This Row],[Initial Price]]),((VLOOKUP(YEAR(TODAY()),'Inflation Data'!$A:$C,3,TRUE)-VLOOKUP(Table1468[[#This Row],[Year of Initial Price]],'Inflation Data'!$A:$C,3,TRUE))/(VLOOKUP(Table1468[[#This Row],[Year of Initial Price]],'Inflation Data'!$A:$C,3,TRUE))*Table1468[[#This Row],[Initial Price]])+Table1468[[#This Row],[Initial Price]])))) ->  | I86: =IF($G86=YEAR(TODAY()),$E86,(IF($G86=0,"",IF(Table13[[#This Row],[Life Expectancy]]=0,H86, ((0.056*(Table1468[[#This Row],[Year of Failure]]-YEAR(TODAY()))*Table1468[[#This Row],[Current Predicted Cost (to purchase in 2024)]])+Table1468[[#This Row],[Current Predicted Cost (to purchase in 2024)]]))))) ->  | J86: =Table13[[#This Row],[Estimated Year of Failure]] -> 
A87: =Table13[[#This Row],[I.D. Number ]] ->  | B87: =Table13[[#This Row],[Category]] -> 0 | C87: =Table13[[#This Row],[Type]] -> 0 | D87: =Table13[[#This Row],[Description]] -> 0 | G87: =Table13[[#This Row],[Installation Year]] -> 0 | H87: =IF($G87= YEAR(TODAY()),$E87,(IF($G87=0,"",IF(Table13[[#This Row],[Life Expectancy]]=0,((0.056*(YEAR(TODAY())-Table1468[[#This Row],[Year of Initial Price]])*Table1468[[#This Row],[Initial Price]])+Table1468[[#This Row],[Initial Price]]),((VLOOKUP(YEAR(TODAY()),'Inflation Data'!$A:$C,3,TRUE)-VLOOKUP(Table1468[[#This Row],[Year of Initial Price]],'Inflation Data'!$A:$C,3,TRUE))/(VLOOKUP(Table1468[[#This Row],[Year of Initial Price]],'Inflation Data'!$A:$C,3,TRUE))*Table1468[[#This Row],[Initial Price]])+Table1468[[#This Row],[Initial Price]])))) ->  | I87: =IF($G87=YEAR(TODAY()),$E87,(IF($G87=0,"",IF(Table13[[#This Row],[Life Expectancy]]=0,H87, ((0.056*(Table1468[[#This Row],[Year of Failure]]-YEAR(TODAY()))*Table1468[[#This Row],[Current Predicted Cost (to purchase in 2024)]])+Table1468[[#This Row],[Current Predicted Cost (to purchase in 2024)]]))))) ->  | J87: =Table13[[#This Row],[Estimated Year of Failure]] -> 
A88: =Table13[[#This Row],[I.D. Number ]] ->  | B88: =Table13[[#This Row],[Category]] -> 0 | C88: =Table13[[#This Row],[Type]] -> 0 | D88: =Table13[[#This Row],[Description]] -> 0 | G88: =Table13[[#This Row],[Installation Year]] -> 0 | H88: =IF($G88= YEAR(TODAY()),$E88,(IF($G88=0,"",IF(Table13[[#This Row],[Life Expectancy]]=0,((0.056*(YEAR(TODAY())-Table1468[[#This Row],[Year of Initial Price]])*Table1468[[#This Row],[Initial Price]])+Table1468[[#This Row],[Initial Price]]),((VLOOKUP(YEAR(TODAY()),'Inflation Data'!$A:$C,3,TRUE)-VLOOKUP(Table1468[[#This Row],[Year of Initial Price]],'Inflation Data'!$A:$C,3,TRUE))/(VLOOKUP(Table1468[[#This Row],[Year of Initial Price]],'Inflation Data'!$A:$C,3,TRUE))*Table1468[[#This Row],[Initial Price]])+Table1468[[#This Row],[Initial Price]])))) ->  | I88: =IF($G88=YEAR(TODAY()),$E88,(IF($G88=0,"",IF(Table13[[#This Row],[Life Expectancy]]=0,H88, ((0.056*(Table1468[[#This Row],[Year of Failure]]-YEAR(TODAY()))*Table1468[[#This Row],[Current Predicted Cost (to purchase in 2024)]])+Table1468[[#This Row],[Current Predicted Cost (to purchase in 2024)]]))))) ->  | J88: =Table13[[#This Row],[Estimated Year of Failure]] -> 
A89: =Table13[[#This Row],[I.D. Number ]] ->  | B89: =Table13[[#This Row],[Category]] -> 0 | C89: =Table13[[#This Row],[Type]] -> 0 | D89: =Table13[[#This Row],[Description]] -> 0 | G89: =Table13[[#This Row],[Installation Year]] -> 0 | H89: =IF($G89= YEAR(TODAY()),$E89,(IF($G89=0,"",IF(Table13[[#This Row],[Life Expectancy]]=0,((0.056*(YEAR(TODAY())-Table1468[[#This Row],[Year of Initial Price]])*Table1468[[#This Row],[Initial Price]])+Table1468[[#This Row],[Initial Price]]),((VLOOKUP(YEAR(TODAY()),'Inflation Data'!$A:$C,3,TRUE)-VLOOKUP(Table1468[[#This Row],[Year of Initial Price]],'Inflation Data'!$A:$C,3,TRUE))/(VLOOKUP(Table1468[[#This Row],[Year of Initial Price]],'Inflation Data'!$A:$C,3,TRUE))*Table1468[[#This Row],[Initial Price]])+Table1468[[#This Row],[Initial Price]])))) ->  | I89: =IF($G89=YEAR(TODAY()),$E89,(IF($G89=0,"",IF(Table13[[#This Row],[Life Expectancy]]=0,H89, ((0.056*(Table1468[[#This Row],[Year of Failure]]-YEAR(TODAY()))*Table1468[[#This Row],[Current Predicted Cost (to purchase in 2024)]])+Table1468[[#This Row],[Current Predicted Cost (to purchase in 2024)]]))))) ->  | J89: =Table13[[#This Row],[Estimated Year of Failure]] -> 
A90: =Table13[[#This Row],[I.D. Number ]] ->  | B90: =Table13[[#This Row],[Category]] -> 0 | C90: =Table13[[#This Row],[Type]] -> 0 | D90: =Table13[[#This Row],[Description]] -> 0 | G90: =Table13[[#This Row],[Installation Year]] -> 0 | H90: =IF($G90= YEAR(TODAY()),$E90,(IF($G90=0,"",IF(Table13[[#This Row],[Life Expectancy]]=0,((0.056*(YEAR(TODAY())-Table1468[[#This Row],[Year of Initial Price]])*Table1468[[#This Row],[Initial Price]])+Table1468[[#This Row],[Initial Price]]),((VLOOKUP(YEAR(TODAY()),'Inflation Data'!$A:$C,3,TRUE)-VLOOKUP(Table1468[[#This Row],[Year of Initial Price]],'Inflation Data'!$A:$C,3,TRUE))/(VLOOKUP(Table1468[[#This Row],[Year of Initial Price]],'Inflation Data'!$A:$C,3,TRUE))*Table1468[[#This Row],[Initial Price]])+Table1468[[#This Row],[Initial Price]])))) ->  | I90: =IF($G90=YEAR(TODAY()),$E90,(IF($G90=0,"",IF(Table13[[#This Row],[Life Expectancy]]=0,H90, ((0.056*(Table1468[[#This Row],[Year of Failure]]-YEAR(TODAY()))*Table1468[[#This Row],[Current Predicted Cost (to purchase in 2024)]])+Table1468[[#This Row],[Current Predicted Cost (to purchase in 2024)]]))))) ->  | J90: =Table13[[#This Row],[Estimated Year of Failure]] -> 
A91: =Table13[[#This Row],[I.D. Number ]] ->  | B91: =Table13[[#This Row],[Category]] -> 0 | C91: =Table13[[#This Row],[Type]] -> 0 | D91: =Table13[[#This Row],[Description]] -> 0 | G91: =Table13[[#This Row],[Installation Year]] -> 0 | H91: =IF($G91= YEAR(TODAY()),$E91,(IF($G91=0,"",IF(Table13[[#This Row],[Life Expectancy]]=0,((0.056*(YEAR(TODAY())-Table1468[[#This Row],[Year of Initial Price]])*Table1468[[#This Row],[Initial Price]])+Table1468[[#This Row],[Initial Price]]),((VLOOKUP(YEAR(TODAY()),'Inflation Data'!$A:$C,3,TRUE)-VLOOKUP(Table1468[[#This Row],[Year of Initial Price]],'Inflation Data'!$A:$C,3,TRUE))/(VLOOKUP(Table1468[[#This Row],[Year of Initial Price]],'Inflation Data'!$A:$C,3,TRUE))*Table1468[[#This Row],[Initial Price]])+Table1468[[#This Row],[Initial Price]])))) ->  | I91: =IF($G91=YEAR(TODAY()),$E91,(IF($G91=0,"",IF(Table13[[#This Row],[Life Expectancy]]=0,H91, ((0.056*(Table1468[[#This Row],[Year of Failure]]-YEAR(TODAY()))*Table1468[[#This Row],[Current Predicted Cost (to purchase in 2024)]])+Table1468[[#This Row],[Current Predicted Cost (to purchase in 2024)]]))))) ->  | J91: =Table13[[#This Row],[Estimated Year of Failure]] -> 
A92: =Table13[[#This Row],[I.D. Number ]] ->  | B92: =Table13[[#This Row],[Category]] -> 0 | C92: =Table13[[#This Row],[Type]] -> 0 | D92: =Table13[[#This Row],[Description]] -> 0 | G92: =Table13[[#This Row],[Installation Year]] -> 0 | H92: =IF($G92= YEAR(TODAY()),$E92,(IF($G92=0,"",IF(Table13[[#This Row],[Life Expectancy]]=0,((0.056*(YEAR(TODAY())-Table1468[[#This Row],[Year of Initial Price]])*Table1468[[#This Row],[Initial Price]])+Table1468[[#This Row],[Initial Price]]),((VLOOKUP(YEAR(TODAY()),'Inflation Data'!$A:$C,3,TRUE)-VLOOKUP(Table1468[[#This Row],[Year of Initial Price]],'Inflation Data'!$A:$C,3,TRUE))/(VLOOKUP(Table1468[[#This Row],[Year of Initial Price]],'Inflation Data'!$A:$C,3,TRUE))*Table1468[[#This Row],[Initial Price]])+Table1468[[#This Row],[Initial Price]])))) ->  | I92: =IF($G92=YEAR(TODAY()),$E92,(IF($G92=0,"",IF(Table13[[#This Row],[Life Expectancy]]=0,H92, ((0.056*(Table1468[[#This Row],[Year of Failure]]-YEAR(TODAY()))*Table1468[[#This Row],[Current Predicted Cost (to purchase in 2024)]])+Table1468[[#This Row],[Current Predicted Cost (to purchase in 2024)]]))))) ->  | J92: =Table13[[#This Row],[Estimated Year of Failure]] -> 
A93: =Table13[[#This Row],[I.D. Number ]] ->  | B93: =Table13[[#This Row],[Category]] -> 0 | C93: =Table13[[#This Row],[Type]] -> 0 | D93: =Table13[[#This Row],[Description]] -> 0 | G93: =Table13[[#This Row],[Installation Year]] -> 0 | H93: =IF($G93= YEAR(TODAY()),$E93,(IF($G93=0,"",IF(Table13[[#This Row],[Life Expectancy]]=0,((0.056*(YEAR(TODAY())-Table1468[[#This Row],[Year of Initial Price]])*Table1468[[#This Row],[Initial Price]])+Table1468[[#This Row],[Initial Price]]),((VLOOKUP(YEAR(TODAY()),'Inflation Data'!$A:$C,3,TRUE)-VLOOKUP(Table1468[[#This Row],[Year of Initial Price]],'Inflation Data'!$A:$C,3,TRUE))/(VLOOKUP(Table1468[[#This Row],[Year of Initial Price]],'Inflation Data'!$A:$C,3,TRUE))*Table1468[[#This Row],[Initial Price]])+Table1468[[#This Row],[Initial Price]])))) ->  | I93: =IF($G93=YEAR(TODAY()),$E93,(IF($G93=0,"",IF(Table13[[#This Row],[Life Expectancy]]=0,H93, ((0.056*(Table1468[[#This Row],[Year of Failure]]-YEAR(TODAY()))*Table1468[[#This Row],[Current Predicted Cost (to purchase in 2024)]])+Table1468[[#This Row],[Current Predicted Cost (to purchase in 2024)]]))))) ->  | J93: =Table13[[#This Row],[Estimated Year of Failure]] -> 
A94: =Table13[[#This Row],[I.D. Number ]] ->  | B94: =Table13[[#This Row],[Category]] -> 0 | C94: =Table13[[#This Row],[Type]] -> 0 | D94: =Table13[[#This Row],[Description]] -> 0 | G94: =Table13[[#This Row],[Installation Year]] -> 0 | H94: =IF($G94= YEAR(TODAY()),$E94,(IF($G94=0,"",IF(Table13[[#This Row],[Life Expectancy]]=0,((0.056*(YEAR(TODAY())-Table1468[[#This Row],[Year of Initial Price]])*Table1468[[#This Row],[Initial Price]])+Table1468[[#This Row],[Initial Price]]),((VLOOKUP(YEAR(TODAY()),'Inflation Data'!$A:$C,3,TRUE)-VLOOKUP(Table1468[[#This Row],[Year of Initial Price]],'Inflation Data'!$A:$C,3,TRUE))/(VLOOKUP(Table1468[[#This Row],[Year of Initial Price]],'Inflation Data'!$A:$C,3,TRUE))*Table1468[[#This Row],[Initial Price]])+Table1468[[#This Row],[Initial Price]])))) ->  | I94: =IF($G94=YEAR(TODAY()),$E94,(IF($G94=0,"",IF(Table13[[#This Row],[Life Expectancy]]=0,H94, ((0.056*(Table1468[[#This Row],[Year of Failure]]-YEAR(TODAY()))*Table1468[[#This Row],[Current Predicted Cost (to purchase in 2024)]])+Table1468[[#This Row],[Current Predicted Cost (to purchase in 2024)]]))))) ->  | J94: =Table13[[#This Row],[Estimated Year of Failure]] -> 
A95: =Table13[[#This Row],[I.D. Number ]] ->  | B95: =Table13[[#This Row],[Category]] -> 0 | C95: =Table13[[#This Row],[Type]] -> 0 | D95: =Table13[[#This Row],[Description]] -> 0 | G95: =Table13[[#This Row],[Installation Year]] -> 0 | H95: =IF($G95= YEAR(TODAY()),$E95,(IF($G95=0,"",IF(Table13[[#This Row],[Life Expectancy]]=0,((0.056*(YEAR(TODAY())-Table1468[[#This Row],[Year of Initial Price]])*Table1468[[#This Row],[Initial Price]])+Table1468[[#This Row],[Initial Price]]),((VLOOKUP(YEAR(TODAY()),'Inflation Data'!$A:$C,3,TRUE)-VLOOKUP(Table1468[[#This Row],[Year of Initial Price]],'Inflation Data'!$A:$C,3,TRUE))/(VLOOKUP(Table1468[[#This Row],[Year of Initial Price]],'Inflation Data'!$A:$C,3,TRUE))*Table1468[[#This Row],[Initial Price]])+Table1468[[#This Row],[Initial Price]])))) ->  | I95: =IF($G95=YEAR(TODAY()),$E95,(IF($G95=0,"",IF(Table13[[#This Row],[Life Expectancy]]=0,H95, ((0.056*(Table1468[[#This Row],[Year of Failure]]-YEAR(TODAY()))*Table1468[[#This Row],[Current Predicted Cost (to purchase in 2024)]])+Table1468[[#This Row],[Current Predicted Cost (to purchase in 2024)]]))))) ->  | J95: =Table13[[#This Row],[Estimated Year of Failure]] -> 
A96: =Table13[[#This Row],[I.D. Number ]] ->  | B96: =Table13[[#This Row],[Category]] -> 0 | C96: =Table13[[#This Row],[Type]] -> 0 | D96: =Table13[[#This Row],[Description]] -> 0 | G96: =Table13[[#This Row],[Installation Year]] -> 0 | H96: =IF($G96= YEAR(TODAY()),$E96,(IF($G96=0,"",IF(Table13[[#This Row],[Life Expectancy]]=0,((0.056*(YEAR(TODAY())-Table1468[[#This Row],[Year of Initial Price]])*Table1468[[#This Row],[Initial Price]])+Table1468[[#This Row],[Initial Price]]),((VLOOKUP(YEAR(TODAY()),'Inflation Data'!$A:$C,3,TRUE)-VLOOKUP(Table1468[[#This Row],[Year of Initial Price]],'Inflation Data'!$A:$C,3,TRUE))/(VLOOKUP(Table1468[[#This Row],[Year of Initial Price]],'Inflation Data'!$A:$C,3,TRUE))*Table1468[[#This Row],[Initial Price]])+Table1468[[#This Row],[Initial Price]])))) ->  | I96: =IF($G96=YEAR(TODAY()),$E96,(IF($G96=0,"",IF(Table13[[#This Row],[Life Expectancy]]=0,H96, ((0.056*(Table1468[[#This Row],[Year of Failure]]-YEAR(TODAY()))*Table1468[[#This Row],[Current Predicted Cost (to purchase in 2024)]])+Table1468[[#This Row],[Current Predicted Cost (to purchase in 2024)]]))))) ->  | J96: =Table13[[#This Row],[Estimated Year of Failure]] -> 
A97: =Table13[[#This Row],[I.D. Number ]] ->  | B97: =Table13[[#This Row],[Category]] -> 0 | C97: =Table13[[#This Row],[Type]] -> 0 | D97: =Table13[[#This Row],[Description]] -> 0 | G97: =Table13[[#This Row],[Installation Year]] -> 0 | H97: =IF($G97= YEAR(TODAY()),$E97,(IF($G97=0,"",IF(Table13[[#This Row],[Life Expectancy]]=0,((0.056*(YEAR(TODAY())-Table1468[[#This Row],[Year of Initial Price]])*Table1468[[#This Row],[Initial Price]])+Table1468[[#This Row],[Initial Price]]),((VLOOKUP(YEAR(TODAY()),'Inflation Data'!$A:$C,3,TRUE)-VLOOKUP(Table1468[[#This Row],[Year of Initial Price]],'Inflation Data'!$A:$C,3,TRUE))/(VLOOKUP(Table1468[[#This Row],[Year of Initial Price]],'Inflation Data'!$A:$C,3,TRUE))*Table1468[[#This Row],[Initial Price]])+Table1468[[#This Row],[Initial Price]])))) ->  | I97: =IF($G97=YEAR(TODAY()),$E97,(IF($G97=0,"",IF(Table13[[#This Row],[Life Expectancy]]=0,H97, ((0.056*(Table1468[[#This Row],[Year of Failure]]-YEAR(TODAY()))*Table1468[[#This Row],[Current Predicted Cost (to purchase in 2024)]])+Table1468[[#This Row],[Current Predicted Cost (to purchase in 2024)]]))))) ->  | J97: =Table13[[#This Row],[Estimated Year of Failure]] -> 
A98: =Table13[[#This Row],[I.D. Number ]] ->  | B98: =Table13[[#This Row],[Category]] -> 0 | C98: =Table13[[#This Row],[Type]] -> 0 | D98: =Table13[[#This Row],[Description]] -> 0 | G98: =Table13[[#This Row],[Installation Year]] -> 0 | H98: =IF($G98= YEAR(TODAY()),$E98,(IF($G98=0,"",IF(Table13[[#This Row],[Life Expectancy]]=0,((0.056*(YEAR(TODAY())-Table1468[[#This Row],[Year of Initial Price]])*Table1468[[#This Row],[Initial Price]])+Table1468[[#This Row],[Initial Price]]),((VLOOKUP(YEAR(TODAY()),'Inflation Data'!$A:$C,3,TRUE)-VLOOKUP(Table1468[[#This Row],[Year of Initial Price]],'Inflation Data'!$A:$C,3,TRUE))/(VLOOKUP(Table1468[[#This Row],[Year of Initial Price]],'Inflation Data'!$A:$C,3,TRUE))*Table1468[[#This Row],[Initial Price]])+Table1468[[#This Row],[Initial Price]])))) ->  | I98: =IF($G98=YEAR(TODAY()),$E98,(IF($G98=0,"",IF(Table13[[#This Row],[Life Expectancy]]=0,H98, ((0.056*(Table1468[[#This Row],[Year of Failure]]-YEAR(TODAY()))*Table1468[[#This Row],[Current Predicted Cost (to purchase in 2024)]])+Table1468[[#This Row],[Current Predicted Cost (to purchase in 2024)]]))))) ->  | J98: =Table13[[#This Row],[Estimated Year of Failure]] -> 
A99: =Table13[[#This Row],[I.D. Number ]] ->  | B99: =Table13[[#This Row],[Category]] -> 0 | C99: =Table13[[#This Row],[Type]] -> 0 | D99: =Table13[[#This Row],[Description]] -> 0 | G99: =Table13[[#This Row],[Installation Year]] -> 0 | H99: =IF($G99= YEAR(TODAY()),$E99,(IF($G99=0,"",IF(Table13[[#This Row],[Life Expectancy]]=0,((0.056*(YEAR(TODAY())-Table1468[[#This Row],[Year of Initial Price]])*Table1468[[#This Row],[Initial Price]])+Table1468[[#This Row],[Initial Price]]),((VLOOKUP(YEAR(TODAY()),'Inflation Data'!$A:$C,3,TRUE)-VLOOKUP(Table1468[[#This Row],[Year of Initial Price]],'Inflation Data'!$A:$C,3,TRUE))/(VLOOKUP(Table1468[[#This Row],[Year of Initial Price]],'Inflation Data'!$A:$C,3,TRUE))*Table1468[[#This Row],[Initial Price]])+Table1468[[#This Row],[Initial Price]])))) ->  | I99: =IF($G99=YEAR(TODAY()),$E99,(IF($G99=0,"",IF(Table13[[#This Row],[Life Expectancy]]=0,H99, ((0.056*(Table1468[[#This Row],[Year of Failure]]-YEAR(TODAY()))*Table1468[[#This Row],[Current Predicted Cost (to purchase in 2024)]])+Table1468[[#This Row],[Current Predicted Cost (to purchase in 2024)]]))))) ->  | J99: =Table13[[#This Row],[Estimated Year of Failure]] -> 
A100: =Table13[[#This Row],[I.D. Number ]] ->  | B100: =Table13[[#This Row],[Category]] -> 0 | C100: =Table13[[#This Row],[Type]] -> 0 | D100: =Table13[[#This Row],[Description]] -> 0 | G100: =Table13[[#This Row],[Installation Year]] -> 0 | H100: =IF($G100= YEAR(TODAY()),$E100,(IF($G100=0,"",IF(Table13[[#This Row],[Life Expectancy]]=0,((0.056*(YEAR(TODAY())-Table1468[[#This Row],[Year of Initial Price]])*Table1468[[#This Row],[Initial Price]])+Table1468[[#This Row],[Initial Price]]),((VLOOKUP(YEAR(TODAY()),'Inflation Data'!$A:$C,3,TRUE)-VLOOKUP(Table1468[[#This Row],[Year of Initial Price]],'Inflation Data'!$A:$C,3,TRUE))/(VLOOKUP(Table1468[[#This Row],[Year of Initial Price]],'Inflation Data'!$A:$C,3,TRUE))*Table1468[[#This Row],[Initial Price]])+Table1468[[#This Row],[Initial Price]])))) ->  | I100: =IF($G100=YEAR(TODAY()),$E100,(IF($G100=0,"",IF(Table13[[#This Row],[Life Expectancy]]=0,H100, ((0.056*(Table1468[[#This Row],[Year of Failure]]-YEAR(TODAY()))*Table1468[[#This Row],[Current Predicted Cost (to purchase in 2024)]])+Table1468[[#This Row],[Current Predicted Cost (to purchase in 2024)]]))))) ->  | J100: =Table13[[#This Row],[Estimated Year of Failure]] -> 
A101: =Table13[[#This Row],[I.D. Number ]] ->  | B101: =Table13[[#This Row],[Category]] -> 0 | C101: =Table13[[#This Row],[Type]] -> 0 | D101: =Table13[[#This Row],[Description]] -> 0 | G101: =Table13[[#This Row],[Installation Year]] -> 0 | H101: =IF($G101= YEAR(TODAY()),$E101,(IF($G101=0,"",IF(Table13[[#This Row],[Life Expectancy]]=0,((0.056*(YEAR(TODAY())-Table1468[[#This Row],[Year of Initial Price]])*Table1468[[#This Row],[Initial Price]])+Table1468[[#This Row],[Initial Price]]),((VLOOKUP(YEAR(TODAY()),'Inflation Data'!$A:$C,3,TRUE)-VLOOKUP(Table1468[[#This Row],[Year of Initial Price]],'Inflation Data'!$A:$C,3,TRUE))/(VLOOKUP(Table1468[[#This Row],[Year of Initial Price]],'Inflation Data'!$A:$C,3,TRUE))*Table1468[[#This Row],[Initial Price]])+Table1468[[#This Row],[Initial Price]])))) ->  | I101: =IF($G101=YEAR(TODAY()),$E101,(IF($G101=0,"",IF(Table13[[#This Row],[Life Expectancy]]=0,H101, ((0.056*(Table1468[[#This Row],[Year of Failure]]-YEAR(TODAY()))*Table1468[[#This Row],[Current Predicted Cost (to purchase in 2024)]])+Table1468[[#This Row],[Current Predicted Cost (to purchase in 2024)]]))))) ->  | J101: =Table13[[#This Row],[Estimated Year of Failure]] -> 
A102: =Table13[[#This Row],[I.D. Number ]] ->  | B102: =Table13[[#This Row],[Category]] -> 0 | C102: =Table13[[#This Row],[Type]] -> 0 | D102: =Table13[[#This Row],[Description]] -> 0 | G102: =Table13[[#This Row],[Installation Year]] -> 0 | H102: =IF($G102= YEAR(TODAY()),$E102,(IF($G102=0,"",IF(Table13[[#This Row],[Life Expectancy]]=0,((0.056*(YEAR(TODAY())-Table1468[[#This Row],[Year of Initial Price]])*Table1468[[#This Row],[Initial Price]])+Table1468[[#This Row],[Initial Price]]),((VLOOKUP(YEAR(TODAY()),'Inflation Data'!$A:$C,3,TRUE)-VLOOKUP(Table1468[[#This Row],[Year of Initial Price]],'Inflation Data'!$A:$C,3,TRUE))/(VLOOKUP(Table1468[[#This Row],[Year of Initial Price]],'Inflation Data'!$A:$C,3,TRUE))*Table1468[[#This Row],[Initial Price]])+Table1468[[#This Row],[Initial Price]])))) ->  | I102: =IF($G102=YEAR(TODAY()),$E102,(IF($G102=0,"",IF(Table13[[#This Row],[Life Expectancy]]=0,H102, ((0.056*(Table1468[[#This Row],[Year of Failure]]-YEAR(TODAY()))*Table1468[[#This Row],[Current Predicted Cost (to purchase in 2024)]])+Table1468[[#This Row],[Current Predicted Cost (to purchase in 2024)]]))))) ->  | J102: =Table13[[#This Row],[Estimated Year of Failure]] -> 
A103: =Table13[[#This Row],[I.D. Number ]] ->  | B103: =Table13[[#This Row],[Category]] -> 0 | C103: =Table13[[#This Row],[Type]] -> 0 | D103: =Table13[[#This Row],[Description]] -> 0 | G103: =Table13[[#This Row],[Installation Year]] -> 0 | H103: =IF($G103= YEAR(TODAY()),$E103,(IF($G103=0,"",IF(Table13[[#This Row],[Life Expectancy]]=0,((0.056*(YEAR(TODAY())-Table1468[[#This Row],[Year of Initial Price]])*Table1468[[#This Row],[Initial Price]])+Table1468[[#This Row],[Initial Price]]),((VLOOKUP(YEAR(TODAY()),'Inflation Data'!$A:$C,3,TRUE)-VLOOKUP(Table1468[[#This Row],[Year of Initial Price]],'Inflation Data'!$A:$C,3,TRUE))/(VLOOKUP(Table1468[[#This Row],[Year of Initial Price]],'Inflation Data'!$A:$C,3,TRUE))*Table1468[[#This Row],[Initial Price]])+Table1468[[#This Row],[Initial Price]])))) ->  | I103: =IF($G103=YEAR(TODAY()),$E103,(IF($G103=0,"",IF(Table13[[#This Row],[Life Expectancy]]=0,H103, ((0.056*(Table1468[[#This Row],[Year of Failure]]-YEAR(TODAY()))*Table1468[[#This Row],[Current Predicted Cost (to purchase in 2024)]])+Table1468[[#This Row],[Current Predicted Cost (to purchase in 2024)]]))))) ->  | J103: =Table13[[#This Row],[Estimated Year of Failure]] -> 
A104: =Table13[[#This Row],[I.D. Number ]] ->  | B104: =Table13[[#This Row],[Category]] -> 0 | C104: =Table13[[#This Row],[Type]] -> 0 | D104: =Table13[[#This Row],[Description]] -> 0 | G104: =Table13[[#This Row],[Installation Year]] -> 0 | H104: =IF($G104= YEAR(TODAY()),$E104,(IF($G104=0,"",IF(Table13[[#This Row],[Life Expectancy]]=0,((0.056*(YEAR(TODAY())-Table1468[[#This Row],[Year of Initial Price]])*Table1468[[#This Row],[Initial Price]])+Table1468[[#This Row],[Initial Price]]),((VLOOKUP(YEAR(TODAY()),'Inflation Data'!$A:$C,3,TRUE)-VLOOKUP(Table1468[[#This Row],[Year of Initial Price]],'Inflation Data'!$A:$C,3,TRUE))/(VLOOKUP(Table1468[[#This Row],[Year of Initial Price]],'Inflation Data'!$A:$C,3,TRUE))*Table1468[[#This Row],[Initial Price]])+Table1468[[#This Row],[Initial Price]])))) ->  | I104: =IF($G104=YEAR(TODAY()),$E104,(IF($G104=0,"",IF(Table13[[#This Row],[Life Expectancy]]=0,H104, ((0.056*(Table1468[[#This Row],[Year of Failure]]-YEAR(TODAY()))*Table1468[[#This Row],[Current Predicted Cost (to purchase in 2024)]])+Table1468[[#This Row],[Current Predicted Cost (to purchase in 2024)]]))))) ->  | J104: =Table13[[#This Row],[Estimated Year of Failure]] -> 
A105: =Table13[[#This Row],[I.D. Number ]] ->  | B105: =Table13[[#This Row],[Category]] -> 0 | C105: =Table13[[#This Row],[Type]] -> 0 | D105: =Table13[[#This Row],[Description]] -> 0 | G105: =Table13[[#This Row],[Installation Year]] -> 0 | H105: =IF($G105= YEAR(TODAY()),$E105,(IF($G105=0,"",IF(Table13[[#This Row],[Life Expectancy]]=0,((0.056*(YEAR(TODAY())-Table1468[[#This Row],[Year of Initial Price]])*Table1468[[#This Row],[Initial Price]])+Table1468[[#This Row],[Initial Price]]),((VLOOKUP(YEAR(TODAY()),'Inflation Data'!$A:$C,3,TRUE)-VLOOKUP(Table1468[[#This Row],[Year of Initial Price]],'Inflation Data'!$A:$C,3,TRUE))/(VLOOKUP(Table1468[[#This Row],[Year of Initial Price]],'Inflation Data'!$A:$C,3,TRUE))*Table1468[[#This Row],[Initial Price]])+Table1468[[#This Row],[Initial Price]])))) ->  | I105: =IF($G105=YEAR(TODAY()),$E105,(IF($G105=0,"",IF(Table13[[#This Row],[Life Expectancy]]=0,H105, ((0.056*(Table1468[[#This Row],[Year of Failure]]-YEAR(TODAY()))*Table1468[[#This Row],[Current Predicted Cost (to purchase in 2024)]])+Table1468[[#This Row],[Current Predicted Cost (to purchase in 2024)]]))))) ->  | J105: =Table13[[#This Row],[Estimated Year of Failure]] -> 
A106: =Table13[[#This Row],[I.D. Number ]] ->  | B106: =Table13[[#This Row],[Category]] -> 0 | C106: =Table13[[#This Row],[Type]] -> 0 | D106: =Table13[[#This Row],[Description]] -> 0 | G106: =Table13[[#This Row],[Installation Year]] -> 0 | H106: =IF($G106= YEAR(TODAY()),$E106,(IF($G106=0,"",IF(Table13[[#This Row],[Life Expectancy]]=0,((0.056*(YEAR(TODAY())-Table1468[[#This Row],[Year of Initial Price]])*Table1468[[#This Row],[Initial Price]])+Table1468[[#This Row],[Initial Price]]),((VLOOKUP(YEAR(TODAY()),'Inflation Data'!$A:$C,3,TRUE)-VLOOKUP(Table1468[[#This Row],[Year of Initial Price]],'Inflation Data'!$A:$C,3,TRUE))/(VLOOKUP(Table1468[[#This Row],[Year of Initial Price]],'Inflation Data'!$A:$C,3,TRUE))*Table1468[[#This Row],[Initial Price]])+Table1468[[#This Row],[Initial Price]])))) ->  | I106: =IF($G106=YEAR(TODAY()),$E106,(IF($G106=0,"",IF(Table13[[#This Row],[Life Expectancy]]=0,H106, ((0.056*(Table1468[[#This Row],[Year of Failure]]-YEAR(TODAY()))*Table1468[[#This Row],[Current Predicted Cost (to purchase in 2024)]])+Table1468[[#This Row],[Current Predicted Cost (to purchase in 2024)]]))))) ->  | J106: =Table13[[#This Row],[Estimated Year of Failure]] -> 
A107: =Table13[[#This Row],[I.D. Number ]] ->  | B107: =Table13[[#This Row],[Category]] -> 0 | C107: =Table13[[#This Row],[Type]] -> 0 | D107: =Table13[[#This Row],[Description]] -> 0 | G107: =Table13[[#This Row],[Installation Year]] -> 0 | H107: =IF($G107= YEAR(TODAY()),$E107,(IF($G107=0,"",IF(Table13[[#This Row],[Life Expectancy]]=0,((0.056*(YEAR(TODAY())-Table1468[[#This Row],[Year of Initial Price]])*Table1468[[#This Row],[Initial Price]])+Table1468[[#This Row],[Initial Price]]),((VLOOKUP(YEAR(TODAY()),'Inflation Data'!$A:$C,3,TRUE)-VLOOKUP(Table1468[[#This Row],[Year of Initial Price]],'Inflation Data'!$A:$C,3,TRUE))/(VLOOKUP(Table1468[[#This Row],[Year of Initial Price]],'Inflation Data'!$A:$C,3,TRUE))*Table1468[[#This Row],[Initial Price]])+Table1468[[#This Row],[Initial Price]])))) ->  | I107: =IF($G107=YEAR(TODAY()),$E107,(IF($G107=0,"",IF(Table13[[#This Row],[Life Expectancy]]=0,H107, ((0.056*(Table1468[[#This Row],[Year of Failure]]-YEAR(TODAY()))*Table1468[[#This Row],[Current Predicted Cost (to purchase in 2024)]])+Table1468[[#This Row],[Current Predicted Cost (to purchase in 2024)]]))))) ->  | J107: =Table13[[#This Row],[Estimated Year of Failure]] -> 
A108: =Table13[[#This Row],[I.D. Number ]] ->  | B108: =Table13[[#This Row],[Category]] -> 0 | C108: =Table13[[#This Row],[Type]] -> 0 | D108: =Table13[[#This Row],[Description]] -> 0 | G108: =Table13[[#This Row],[Installation Year]] -> 0 | H108: =IF($G108= YEAR(TODAY()),$E108,(IF($G108=0,"",IF(Table13[[#This Row],[Life Expectancy]]=0,((0.056*(YEAR(TODAY())-Table1468[[#This Row],[Year of Initial Price]])*Table1468[[#This Row],[Initial Price]])+Table1468[[#This Row],[Initial Price]]),((VLOOKUP(YEAR(TODAY()),'Inflation Data'!$A:$C,3,TRUE)-VLOOKUP(Table1468[[#This Row],[Year of Initial Price]],'Inflation Data'!$A:$C,3,TRUE))/(VLOOKUP(Table1468[[#This Row],[Year of Initial Price]],'Inflation Data'!$A:$C,3,TRUE))*Table1468[[#This Row],[Initial Price]])+Table1468[[#This Row],[Initial Price]])))) ->  | I108: =IF($G108=YEAR(TODAY()),$E108,(IF($G108=0,"",IF(Table13[[#This Row],[Life Expectancy]]=0,H108, ((0.056*(Table1468[[#This Row],[Year of Failure]]-YEAR(TODAY()))*Table1468[[#This Row],[Current Predicted Cost (to purchase in 2024)]])+Table1468[[#This Row],[Current Predicted Cost (to purchase in 2024)]]))))) ->  | J108: =Table13[[#This Row],[Estimated Year of Failure]] -> 
A109: =Table13[[#This Row],[I.D. Number ]] ->  | B109: =Table13[[#This Row],[Category]] -> 0 | C109: =Table13[[#This Row],[Type]] -> 0 | D109: =Table13[[#This Row],[Description]] -> 0 | G109: =Table13[[#This Row],[Installation Year]] -> 0 | H109: =IF($G109= YEAR(TODAY()),$E109,(IF($G109=0,"",IF(Table13[[#This Row],[Life Expectancy]]=0,((0.056*(YEAR(TODAY())-Table1468[[#This Row],[Year of Initial Price]])*Table1468[[#This Row],[Initial Price]])+Table1468[[#This Row],[Initial Price]]),((VLOOKUP(YEAR(TODAY()),'Inflation Data'!$A:$C,3,TRUE)-VLOOKUP(Table1468[[#This Row],[Year of Initial Price]],'Inflation Data'!$A:$C,3,TRUE))/(VLOOKUP(Table1468[[#This Row],[Year of Initial Price]],'Inflation Data'!$A:$C,3,TRUE))*Table1468[[#This Row],[Initial Price]])+Table1468[[#This Row],[Initial Price]])))) ->  | I109: =IF($G109=YEAR(TODAY()),$E109,(IF($G109=0,"",IF(Table13[[#This Row],[Life Expectancy]]=0,H109, ((0.056*(Table1468[[#This Row],[Year of Failure]]-YEAR(TODAY()))*Table1468[[#This Row],[Current Predicted Cost (to purchase in 2024)]])+Table1468[[#This Row],[Current Predicted Cost (to purchase in 2024)]]))))) ->  | J109: =Table13[[#This Row],[Estimated Year of Failure]] -> 
A110: =Table13[[#This Row],[I.D. Number ]] ->  | B110: =Table13[[#This Row],[Category]] -> 0 | C110: =Table13[[#This Row],[Type]] -> 0 | D110: =Table13[[#This Row],[Description]] -> 0 | G110: =Table13[[#This Row],[Installation Year]] -> 0 | H110: =IF($G110= YEAR(TODAY()),$E110,(IF($G110=0,"",IF(Table13[[#This Row],[Life Expectancy]]=0,((0.056*(YEAR(TODAY())-Table1468[[#This Row],[Year of Initial Price]])*Table1468[[#This Row],[Initial Price]])+Table1468[[#This Row],[Initial Price]]),((VLOOKUP(YEAR(TODAY()),'Inflation Data'!$A:$C,3,TRUE)-VLOOKUP(Table1468[[#This Row],[Year of Initial Price]],'Inflation Data'!$A:$C,3,TRUE))/(VLOOKUP(Table1468[[#This Row],[Year of Initial Price]],'Inflation Data'!$A:$C,3,TRUE))*Table1468[[#This Row],[Initial Price]])+Table1468[[#This Row],[Initial Price]])))) ->  | I110: =IF($G110=YEAR(TODAY()),$E110,(IF($G110=0,"",IF(Table13[[#This Row],[Life Expectancy]]=0,H110, ((0.056*(Table1468[[#This Row],[Year of Failure]]-YEAR(TODAY()))*Table1468[[#This Row],[Current Predicted Cost (to purchase in 2024)]])+Table1468[[#This Row],[Current Predicted Cost (to purchase in 2024)]]))))) ->  | J110: =Table13[[#This Row],[Estimated Year of Failure]] -> 
A111: =Table13[[#This Row],[I.D. Number ]] ->  | B111: =Table13[[#This Row],[Category]] -> 0 | C111: =Table13[[#This Row],[Type]] -> 0 | D111: =Table13[[#This Row],[Description]] -> 0 | G111: =Table13[[#This Row],[Installation Year]] -> 0 | H111: =IF($G111= YEAR(TODAY()),$E111,(IF($G111=0,"",IF(Table13[[#This Row],[Life Expectancy]]=0,((0.056*(YEAR(TODAY())-Table1468[[#This Row],[Year of Initial Price]])*Table1468[[#This Row],[Initial Price]])+Table1468[[#This Row],[Initial Price]]),((VLOOKUP(YEAR(TODAY()),'Inflation Data'!$A:$C,3,TRUE)-VLOOKUP(Table1468[[#This Row],[Year of Initial Price]],'Inflation Data'!$A:$C,3,TRUE))/(VLOOKUP(Table1468[[#This Row],[Year of Initial Price]],'Inflation Data'!$A:$C,3,TRUE))*Table1468[[#This Row],[Initial Price]])+Table1468[[#This Row],[Initial Price]])))) ->  | I111: =IF($G111=YEAR(TODAY()),$E111,(IF($G111=0,"",IF(Table13[[#This Row],[Life Expectancy]]=0,H111, ((0.056*(Table1468[[#This Row],[Year of Failure]]-YEAR(TODAY()))*Table1468[[#This Row],[Current Predicted Cost (to purchase in 2024)]])+Table1468[[#This Row],[Current Predicted Cost (to purchase in 2024)]]))))) ->  | J111: =Table13[[#This Row],[Estimated Year of Failure]] -> 
A112: =Table13[[#This Row],[I.D. Number ]] ->  | B112: =Table13[[#This Row],[Category]] -> 0 | C112: =Table13[[#This Row],[Type]] -> 0 | D112: =Table13[[#This Row],[Description]] -> 0 | G112: =Table13[[#This Row],[Installation Year]] -> 0 | H112: =IF($G112= YEAR(TODAY()),$E112,(IF($G112=0,"",IF(Table13[[#This Row],[Life Expectancy]]=0,((0.056*(YEAR(TODAY())-Table1468[[#This Row],[Year of Initial Price]])*Table1468[[#This Row],[Initial Price]])+Table1468[[#This Row],[Initial Price]]),((VLOOKUP(YEAR(TODAY()),'Inflation Data'!$A:$C,3,TRUE)-VLOOKUP(Table1468[[#This Row],[Year of Initial Price]],'Inflation Data'!$A:$C,3,TRUE))/(VLOOKUP(Table1468[[#This Row],[Year of Initial Price]],'Inflation Data'!$A:$C,3,TRUE))*Table1468[[#This Row],[Initial Price]])+Table1468[[#This Row],[Initial Price]])))) ->  | I112: =IF($G112=YEAR(TODAY()),$E112,(IF($G112=0,"",IF(Table13[[#This Row],[Life Expectancy]]=0,H112, ((0.056*(Table1468[[#This Row],[Year of Failure]]-YEAR(TODAY()))*Table1468[[#This Row],[Current Predicted Cost (to purchase in 2024)]])+Table1468[[#This Row],[Current Predicted Cost (to purchase in 2024)]]))))) ->  | J112: =Table13[[#This Row],[Estimated Year of Failure]] -> 
A113: =Table13[[#This Row],[I.D. Number ]] ->  | B113: =Table13[[#This Row],[Category]] -> 0 | C113: =Table13[[#This Row],[Type]] -> 0 | D113: =Table13[[#This Row],[Description]] -> 0 | G113: =Table13[[#This Row],[Installation Year]] -> 0 | H113: =IF($G113= YEAR(TODAY()),$E113,(IF($G113=0,"",IF(Table13[[#This Row],[Life Expectancy]]=0,((0.056*(YEAR(TODAY())-Table1468[[#This Row],[Year of Initial Price]])*Table1468[[#This Row],[Initial Price]])+Table1468[[#This Row],[Initial Price]]),((VLOOKUP(YEAR(TODAY()),'Inflation Data'!$A:$C,3,TRUE)-VLOOKUP(Table1468[[#This Row],[Year of Initial Price]],'Inflation Data'!$A:$C,3,TRUE))/(VLOOKUP(Table1468[[#This Row],[Year of Initial Price]],'Inflation Data'!$A:$C,3,TRUE))*Table1468[[#This Row],[Initial Price]])+Table1468[[#This Row],[Initial Price]])))) ->  | I113: =IF($G113=YEAR(TODAY()),$E113,(IF($G113=0,"",IF(Table13[[#This Row],[Life Expectancy]]=0,H113, ((0.056*(Table1468[[#This Row],[Year of Failure]]-YEAR(TODAY()))*Table1468[[#This Row],[Current Predicted Cost (to purchase in 2024)]])+Table1468[[#This Row],[Current Predicted Cost (to purchase in 2024)]]))))) ->  | J113: =Table13[[#This Row],[Estimated Year of Failure]] -> 
A114: =Table13[[#This Row],[I.D. Number ]] ->  | B114: =Table13[[#This Row],[Category]] -> 0 | C114: =Table13[[#This Row],[Type]] -> 0 | D114: =Table13[[#This Row],[Description]] -> 0 | G114: =Table13[[#This Row],[Installation Year]] -> 0 | H114: =IF($G114= YEAR(TODAY()),$E114,(IF($G114=0,"",IF(Table13[[#This Row],[Life Expectancy]]=0,((0.056*(YEAR(TODAY())-Table1468[[#This Row],[Year of Initial Price]])*Table1468[[#This Row],[Initial Price]])+Table1468[[#This Row],[Initial Price]]),((VLOOKUP(YEAR(TODAY()),'Inflation Data'!$A:$C,3,TRUE)-VLOOKUP(Table1468[[#This Row],[Year of Initial Price]],'Inflation Data'!$A:$C,3,TRUE))/(VLOOKUP(Table1468[[#This Row],[Year of Initial Price]],'Inflation Data'!$A:$C,3,TRUE))*Table1468[[#This Row],[Initial Price]])+Table1468[[#This Row],[Initial Price]])))) ->  | I114: =IF($G114=YEAR(TODAY()),$E114,(IF($G114=0,"",IF(Table13[[#This Row],[Life Expectancy]]=0,H114, ((0.056*(Table1468[[#This Row],[Year of Failure]]-YEAR(TODAY()))*Table1468[[#This Row],[Current Predicted Cost (to purchase in 2024)]])+Table1468[[#This Row],[Current Predicted Cost (to purchase in 2024)]]))))) ->  | J114: =Table13[[#This Row],[Estimated Year of Failure]] -> 
A115: =Table13[[#This Row],[I.D. Number ]] ->  | B115: =Table13[[#This Row],[Category]] -> 0 | C115: =Table13[[#This Row],[Type]] -> 0 | D115: =Table13[[#This Row],[Description]] -> 0 | G115: =Table13[[#This Row],[Installation Year]] -> 0 | H115: =IF($G115= YEAR(TODAY()),$E115,(IF($G115=0,"",IF(Table13[[#This Row],[Life Expectancy]]=0,((0.056*(YEAR(TODAY())-Table1468[[#This Row],[Year of Initial Price]])*Table1468[[#This Row],[Initial Price]])+Table1468[[#This Row],[Initial Price]]),((VLOOKUP(YEAR(TODAY()),'Inflation Data'!$A:$C,3,TRUE)-VLOOKUP(Table1468[[#This Row],[Year of Initial Price]],'Inflation Data'!$A:$C,3,TRUE))/(VLOOKUP(Table1468[[#This Row],[Year of Initial Price]],'Inflation Data'!$A:$C,3,TRUE))*Table1468[[#This Row],[Initial Price]])+Table1468[[#This Row],[Initial Price]])))) ->  | I115: =IF($G115=YEAR(TODAY()),$E115,(IF($G115=0,"",IF(Table13[[#This Row],[Life Expectancy]]=0,H115, ((0.056*(Table1468[[#This Row],[Year of Failure]]-YEAR(TODAY()))*Table1468[[#This Row],[Current Predicted Cost (to purchase in 2024)]])+Table1468[[#This Row],[Current Predicted Cost (to purchase in 2024)]]))))) ->  | J115: =Table13[[#This Row],[Estimated Year of Failure]] -> 
A116: =Table13[[#This Row],[I.D. Number ]] ->  | B116: =Table13[[#This Row],[Category]] -> 0 | C116: =Table13[[#This Row],[Type]] -> 0 | D116: =Table13[[#This Row],[Description]] -> 0 | G116: =Table13[[#This Row],[Installation Year]] -> 0 | H116: =IF($G116= YEAR(TODAY()),$E116,(IF($G116=0,"",IF(Table13[[#This Row],[Life Expectancy]]=0,((0.056*(YEAR(TODAY())-Table1468[[#This Row],[Year of Initial Price]])*Table1468[[#This Row],[Initial Price]])+Table1468[[#This Row],[Initial Price]]),((VLOOKUP(YEAR(TODAY()),'Inflation Data'!$A:$C,3,TRUE)-VLOOKUP(Table1468[[#This Row],[Year of Initial Price]],'Inflation Data'!$A:$C,3,TRUE))/(VLOOKUP(Table1468[[#This Row],[Year of Initial Price]],'Inflation Data'!$A:$C,3,TRUE))*Table1468[[#This Row],[Initial Price]])+Table1468[[#This Row],[Initial Price]])))) ->  | I116: =IF($G116=YEAR(TODAY()),$E116,(IF($G116=0,"",IF(Table13[[#This Row],[Life Expectancy]]=0,H116, ((0.056*(Table1468[[#This Row],[Year of Failure]]-YEAR(TODAY()))*Table1468[[#This Row],[Current Predicted Cost (to purchase in 2024)]])+Table1468[[#This Row],[Current Predicted Cost (to purchase in 2024)]]))))) ->  | J116: =Table13[[#This Row],[Estimated Year of Failure]] -> 
A117: =Table13[[#This Row],[I.D. Number ]] ->  | B117: =Table13[[#This Row],[Category]] -> 0 | C117: =Table13[[#This Row],[Type]] -> 0 | D117: =Table13[[#This Row],[Description]] -> 0 | G117: =Table13[[#This Row],[Installation Year]] -> 0 | H117: =IF($G117= YEAR(TODAY()),$E117,(IF($G117=0,"",IF(Table13[[#This Row],[Life Expectancy]]=0,((0.056*(YEAR(TODAY())-Table1468[[#This Row],[Year of Initial Price]])*Table1468[[#This Row],[Initial Price]])+Table1468[[#This Row],[Initial Price]]),((VLOOKUP(YEAR(TODAY()),'Inflation Data'!$A:$C,3,TRUE)-VLOOKUP(Table1468[[#This Row],[Year of Initial Price]],'Inflation Data'!$A:$C,3,TRUE))/(VLOOKUP(Table1468[[#This Row],[Year of Initial Price]],'Inflation Data'!$A:$C,3,TRUE))*Table1468[[#This Row],[Initial Price]])+Table1468[[#This Row],[Initial Price]])))) ->  | I117: =IF($G117=YEAR(TODAY()),$E117,(IF($G117=0,"",IF(Table13[[#This Row],[Life Expectancy]]=0,H117, ((0.056*(Table1468[[#This Row],[Year of Failure]]-YEAR(TODAY()))*Table1468[[#This Row],[Current Predicted Cost (to purchase in 2024)]])+Table1468[[#This Row],[Current Predicted Cost (to purchase in 2024)]]))))) ->  | J117: =Table13[[#This Row],[Estimated Year of Failure]] -> 
A118: =Table13[[#This Row],[I.D. Number ]] ->  | B118: =Table13[[#This Row],[Category]] -> 0 | C118: =Table13[[#This Row],[Type]] -> 0 | D118: =Table13[[#This Row],[Description]] -> 0 | G118: =Table13[[#This Row],[Installation Year]] -> 0 | H118: =IF($G118= YEAR(TODAY()),$E118,(IF($G118=0,"",IF(Table13[[#This Row],[Life Expectancy]]=0,((0.056*(YEAR(TODAY())-Table1468[[#This Row],[Year of Initial Price]])*Table1468[[#This Row],[Initial Price]])+Table1468[[#This Row],[Initial Price]]),((VLOOKUP(YEAR(TODAY()),'Inflation Data'!$A:$C,3,TRUE)-VLOOKUP(Table1468[[#This Row],[Year of Initial Price]],'Inflation Data'!$A:$C,3,TRUE))/(VLOOKUP(Table1468[[#This Row],[Year of Initial Price]],'Inflation Data'!$A:$C,3,TRUE))*Table1468[[#This Row],[Initial Price]])+Table1468[[#This Row],[Initial Price]])))) ->  | I118: =IF($G118=YEAR(TODAY()),$E118,(IF($G118=0,"",IF(Table13[[#This Row],[Life Expectancy]]=0,H118, ((0.056*(Table1468[[#This Row],[Year of Failure]]-YEAR(TODAY()))*Table1468[[#This Row],[Current Predicted Cost (to purchase in 2024)]])+Table1468[[#This Row],[Current Predicted Cost (to purchase in 2024)]]))))) ->  | J118: =Table13[[#This Row],[Estimated Year of Failure]] -> 
A119: =Table13[[#This Row],[I.D. Number ]] ->  | B119: =Table13[[#This Row],[Category]] -> 0 | C119: =Table13[[#This Row],[Type]] -> 0 | D119: =Table13[[#This Row],[Description]] -> 0 | G119: =Table13[[#This Row],[Installation Year]] -> 0 | H119: =IF($G119= YEAR(TODAY()),$E119,(IF($G119=0,"",IF(Table13[[#This Row],[Life Expectancy]]=0,((0.056*(YEAR(TODAY())-Table1468[[#This Row],[Year of Initial Price]])*Table1468[[#This Row],[Initial Price]])+Table1468[[#This Row],[Initial Price]]),((VLOOKUP(YEAR(TODAY()),'Inflation Data'!$A:$C,3,TRUE)-VLOOKUP(Table1468[[#This Row],[Year of Initial Price]],'Inflation Data'!$A:$C,3,TRUE))/(VLOOKUP(Table1468[[#This Row],[Year of Initial Price]],'Inflation Data'!$A:$C,3,TRUE))*Table1468[[#This Row],[Initial Price]])+Table1468[[#This Row],[Initial Price]])))) ->  | I119: =IF($G119=YEAR(TODAY()),$E119,(IF($G119=0,"",IF(Table13[[#This Row],[Life Expectancy]]=0,H119, ((0.056*(Table1468[[#This Row],[Year of Failure]]-YEAR(TODAY()))*Table1468[[#This Row],[Current Predicted Cost (to purchase in 2024)]])+Table1468[[#This Row],[Current Predicted Cost (to purchase in 2024)]]))))) ->  | J119: =Table13[[#This Row],[Estimated Year of Failure]] -> 
A120: =Table13[[#This Row],[I.D. Number ]] ->  | B120: =Table13[[#This Row],[Category]] -> 0 | C120: =Table13[[#This Row],[Type]] -> 0 | D120: =Table13[[#This Row],[Description]] -> 0 | G120: =Table13[[#This Row],[Installation Year]] -> 0 | H120: =IF($G120= YEAR(TODAY()),$E120,(IF($G120=0,"",IF(Table13[[#This Row],[Life Expectancy]]=0,((0.056*(YEAR(TODAY())-Table1468[[#This Row],[Year of Initial Price]])*Table1468[[#This Row],[Initial Price]])+Table1468[[#This Row],[Initial Price]]),((VLOOKUP(YEAR(TODAY()),'Inflation Data'!$A:$C,3,TRUE)-VLOOKUP(Table1468[[#This Row],[Year of Initial Price]],'Inflation Data'!$A:$C,3,TRUE))/(VLOOKUP(Table1468[[#This Row],[Year of Initial Price]],'Inflation Data'!$A:$C,3,TRUE))*Table1468[[#This Row],[Initial Price]])+Table1468[[#This Row],[Initial Price]])))) ->  | I120: =IF($G120=YEAR(TODAY()),$E120,(IF($G120=0,"",IF(Table13[[#This Row],[Life Expectancy]]=0,H120, ((0.056*(Table1468[[#This Row],[Year of Failure]]-YEAR(TODAY()))*Table1468[[#This Row],[Current Predicted Cost (to purchase in 2024)]])+Table1468[[#This Row],[Current Predicted Cost (to purchase in 2024)]]))))) ->  | J120: =Table13[[#This Row],[Estimated Year of Failure]] -> 
A121: =Table13[[#This Row],[I.D. Number ]] ->  | B121: =Table13[[#This Row],[Category]] -> 0 | C121: =Table13[[#This Row],[Type]] -> 0 | D121: =Table13[[#This Row],[Description]] -> 0 | G121: =Table13[[#This Row],[Installation Year]] -> 0 | H121: =IF($G121= YEAR(TODAY()),$E121,(IF($G121=0,"",IF(Table13[[#This Row],[Life Expectancy]]=0,((0.056*(YEAR(TODAY())-Table1468[[#This Row],[Year of Initial Price]])*Table1468[[#This Row],[Initial Price]])+Table1468[[#This Row],[Initial Price]]),((VLOOKUP(YEAR(TODAY()),'Inflation Data'!$A:$C,3,TRUE)-VLOOKUP(Table1468[[#This Row],[Year of Initial Price]],'Inflation Data'!$A:$C,3,TRUE))/(VLOOKUP(Table1468[[#This Row],[Year of Initial Price]],'Inflation Data'!$A:$C,3,TRUE))*Table1468[[#This Row],[Initial Price]])+Table1468[[#This Row],[Initial Price]])))) ->  | I121: =IF($G121=YEAR(TODAY()),$E121,(IF($G121=0,"",IF(Table13[[#This Row],[Life Expectancy]]=0,H121, ((0.056*(Table1468[[#This Row],[Year of Failure]]-YEAR(TODAY()))*Table1468[[#This Row],[Current Predicted Cost (to purchase in 2024)]])+Table1468[[#This Row],[Current Predicted Cost (to purchase in 2024)]]))))) ->  | J121: =Table13[[#This Row],[Estimated Year of Failure]] -> 
A122: =Table13[[#This Row],[I.D. Number ]] ->  | B122: =Table13[[#This Row],[Category]] -> 0 | C122: =Table13[[#This Row],[Type]] -> 0 | D122: =Table13[[#This Row],[Description]] -> 0 | G122: =Table13[[#This Row],[Installation Year]] -> 0 | H122: =IF($G122= YEAR(TODAY()),$E122,(IF($G122=0,"",IF(Table13[[#This Row],[Life Expectancy]]=0,((0.056*(YEAR(TODAY())-Table1468[[#This Row],[Year of Initial Price]])*Table1468[[#This Row],[Initial Price]])+Table1468[[#This Row],[Initial Price]]),((VLOOKUP(YEAR(TODAY()),'Inflation Data'!$A:$C,3,TRUE)-VLOOKUP(Table1468[[#This Row],[Year of Initial Price]],'Inflation Data'!$A:$C,3,TRUE))/(VLOOKUP(Table1468[[#This Row],[Year of Initial Price]],'Inflation Data'!$A:$C,3,TRUE))*Table1468[[#This Row],[Initial Price]])+Table1468[[#This Row],[Initial Price]])))) ->  | I122: =IF($G122=YEAR(TODAY()),$E122,(IF($G122=0,"",IF(Table13[[#This Row],[Life Expectancy]]=0,H122, ((0.056*(Table1468[[#This Row],[Year of Failure]]-YEAR(TODAY()))*Table1468[[#This Row],[Current Predicted Cost (to purchase in 2024)]])+Table1468[[#This Row],[Current Predicted Cost (to purchase in 2024)]]))))) ->  | J122: =Table13[[#This Row],[Estimated Year of Failure]] -> 
A123: =Table13[[#This Row],[I.D. Number ]] ->  | B123: =Table13[[#This Row],[Category]] -> 0 | C123: =Table13[[#This Row],[Type]] -> 0 | D123: =Table13[[#This Row],[Description]] -> 0 | G123: =Table13[[#This Row],[Installation Year]] -> 0 | H123: =IF($G123= YEAR(TODAY()),$E123,(IF($G123=0,"",IF(Table13[[#This Row],[Life Expectancy]]=0,((0.056*(YEAR(TODAY())-Table1468[[#This Row],[Year of Initial Price]])*Table1468[[#This Row],[Initial Price]])+Table1468[[#This Row],[Initial Price]]),((VLOOKUP(YEAR(TODAY()),'Inflation Data'!$A:$C,3,TRUE)-VLOOKUP(Table1468[[#This Row],[Year of Initial Price]],'Inflation Data'!$A:$C,3,TRUE))/(VLOOKUP(Table1468[[#This Row],[Year of Initial Price]],'Inflation Data'!$A:$C,3,TRUE))*Table1468[[#This Row],[Initial Price]])+Table1468[[#This Row],[Initial Price]])))) ->  | I123: =IF($G123=YEAR(TODAY()),$E123,(IF($G123=0,"",IF(Table13[[#This Row],[Life Expectancy]]=0,H123, ((0.056*(Table1468[[#This Row],[Year of Failure]]-YEAR(TODAY()))*Table1468[[#This Row],[Current Predicted Cost (to purchase in 2024)]])+Table1468[[#This Row],[Current Predicted Cost (to purchase in 2024)]]))))) ->  | J123: =Table13[[#This Row],[Estimated Year of Failure]] -> 
A124: =Table13[[#This Row],[I.D. Number ]] ->  | B124: =Table13[[#This Row],[Category]] -> 0 | C124: =Table13[[#This Row],[Type]] -> 0 | D124: =Table13[[#This Row],[Description]] -> 0 | G124: =Table13[[#This Row],[Installation Year]] -> 0 | H124: =IF($G124= YEAR(TODAY()),$E124,(IF($G124=0,"",IF(Table13[[#This Row],[Life Expectancy]]=0,((0.056*(YEAR(TODAY())-Table1468[[#This Row],[Year of Initial Price]])*Table1468[[#This Row],[Initial Price]])+Table1468[[#This Row],[Initial Price]]),((VLOOKUP(YEAR(TODAY()),'Inflation Data'!$A:$C,3,TRUE)-VLOOKUP(Table1468[[#This Row],[Year of Initial Price]],'Inflation Data'!$A:$C,3,TRUE))/(VLOOKUP(Table1468[[#This Row],[Year of Initial Price]],'Inflation Data'!$A:$C,3,TRUE))*Table1468[[#This Row],[Initial Price]])+Table1468[[#This Row],[Initial Price]])))) ->  | I124: =IF($G124=YEAR(TODAY()),$E124,(IF($G124=0,"",IF(Table13[[#This Row],[Life Expectancy]]=0,H124, ((0.056*(Table1468[[#This Row],[Year of Failure]]-YEAR(TODAY()))*Table1468[[#This Row],[Current Predicted Cost (to purchase in 2024)]])+Table1468[[#This Row],[Current Predicted Cost (to purchase in 2024)]]))))) ->  | J124: =Table13[[#This Row],[Estimated Year of Failure]] -> 
A125: =Table13[[#This Row],[I.D. Number ]] ->  | B125: =Table13[[#This Row],[Category]] -> 0 | C125: =Table13[[#This Row],[Type]] -> 0 | D125: =Table13[[#This Row],[Description]] -> 0 | G125: =Table13[[#This Row],[Installation Year]] -> 0 | H125: =IF($G125= YEAR(TODAY()),$E125,(IF($G125=0,"",IF(Table13[[#This Row],[Life Expectancy]]=0,((0.056*(YEAR(TODAY())-Table1468[[#This Row],[Year of Initial Price]])*Table1468[[#This Row],[Initial Price]])+Table1468[[#This Row],[Initial Price]]),((VLOOKUP(YEAR(TODAY()),'Inflation Data'!$A:$C,3,TRUE)-VLOOKUP(Table1468[[#This Row],[Year of Initial Price]],'Inflation Data'!$A:$C,3,TRUE))/(VLOOKUP(Table1468[[#This Row],[Year of Initial Price]],'Inflation Data'!$A:$C,3,TRUE))*Table1468[[#This Row],[Initial Price]])+Table1468[[#This Row],[Initial Price]])))) ->  | I125: =IF($G125=YEAR(TODAY()),$E125,(IF($G125=0,"",IF(Table13[[#This Row],[Life Expectancy]]=0,H125, ((0.056*(Table1468[[#This Row],[Year of Failure]]-YEAR(TODAY()))*Table1468[[#This Row],[Current Predicted Cost (to purchase in 2024)]])+Table1468[[#This Row],[Current Predicted Cost (to purchase in 2024)]]))))) ->  | J125: =Table13[[#This Row],[Estimated Year of Failure]] -> 
A126: =Table13[[#This Row],[I.D. Number ]] ->  | B126: =Table13[[#This Row],[Category]] -> 0 | C126: =Table13[[#This Row],[Type]] -> 0 | D126: =Table13[[#This Row],[Description]] -> 0 | G126: =Table13[[#This Row],[Installation Year]] -> 0 | H126: =IF($G126= YEAR(TODAY()),$E126,(IF($G126=0,"",IF(Table13[[#This Row],[Life Expectancy]]=0,((0.056*(YEAR(TODAY())-Table1468[[#This Row],[Year of Initial Price]])*Table1468[[#This Row],[Initial Price]])+Table1468[[#This Row],[Initial Price]]),((VLOOKUP(YEAR(TODAY()),'Inflation Data'!$A:$C,3,TRUE)-VLOOKUP(Table1468[[#This Row],[Year of Initial Price]],'Inflation Data'!$A:$C,3,TRUE))/(VLOOKUP(Table1468[[#This Row],[Year of Initial Price]],'Inflation Data'!$A:$C,3,TRUE))*Table1468[[#This Row],[Initial Price]])+Table1468[[#This Row],[Initial Price]])))) ->  | I126: =IF($G126=YEAR(TODAY()),$E126,(IF($G126=0,"",IF(Table13[[#This Row],[Life Expectancy]]=0,H126, ((0.056*(Table1468[[#This Row],[Year of Failure]]-YEAR(TODAY()))*Table1468[[#This Row],[Current Predicted Cost (to purchase in 2024)]])+Table1468[[#This Row],[Current Predicted Cost (to purchase in 2024)]]))))) ->  | J126: =Table13[[#This Row],[Estimated Year of Failure]] -> 
A127: =Table13[[#This Row],[I.D. Number ]] ->  | B127: =Table13[[#This Row],[Category]] -> 0 | C127: =Table13[[#This Row],[Type]] -> 0 | D127: =Table13[[#This Row],[Description]] -> 0 | G127: =Table13[[#This Row],[Installation Year]] -> 0 | H127: =IF($G127= YEAR(TODAY()),$E127,(IF($G127=0,"",IF(Table13[[#This Row],[Life Expectancy]]=0,((0.056*(YEAR(TODAY())-Table1468[[#This Row],[Year of Initial Price]])*Table1468[[#This Row],[Initial Price]])+Table1468[[#This Row],[Initial Price]]),((VLOOKUP(YEAR(TODAY()),'Inflation Data'!$A:$C,3,TRUE)-VLOOKUP(Table1468[[#This Row],[Year of Initial Price]],'Inflation Data'!$A:$C,3,TRUE))/(VLOOKUP(Table1468[[#This Row],[Year of Initial Price]],'Inflation Data'!$A:$C,3,TRUE))*Table1468[[#This Row],[Initial Price]])+Table1468[[#This Row],[Initial Price]])))) ->  | I127: =IF($G127=YEAR(TODAY()),$E127,(IF($G127=0,"",IF(Table13[[#This Row],[Life Expectancy]]=0,H127, ((0.056*(Table1468[[#This Row],[Year of Failure]]-YEAR(TODAY()))*Table1468[[#This Row],[Current Predicted Cost (to purchase in 2024)]])+Table1468[[#This Row],[Current Predicted Cost (to purchase in 2024)]]))))) ->  | J127: =Table13[[#This Row],[Estimated Year of Failure]] -> 
A128: =Table13[[#This Row],[I.D. Number ]] ->  | B128: =Table13[[#This Row],[Category]] -> 0 | C128: =Table13[[#This Row],[Type]] -> 0 | D128: =Table13[[#This Row],[Description]] -> 0 | G128: =Table13[[#This Row],[Installation Year]] -> 0 | H128: =IF($G128= YEAR(TODAY()),$E128,(IF($G128=0,"",IF(Table13[[#This Row],[Life Expectancy]]=0,((0.056*(YEAR(TODAY())-Table1468[[#This Row],[Year of Initial Price]])*Table1468[[#This Row],[Initial Price]])+Table1468[[#This Row],[Initial Price]]),((VLOOKUP(YEAR(TODAY()),'Inflation Data'!$A:$C,3,TRUE)-VLOOKUP(Table1468[[#This Row],[Year of Initial Price]],'Inflation Data'!$A:$C,3,TRUE))/(VLOOKUP(Table1468[[#This Row],[Year of Initial Price]],'Inflation Data'!$A:$C,3,TRUE))*Table1468[[#This Row],[Initial Price]])+Table1468[[#This Row],[Initial Price]])))) ->  | I128: =IF($G128=YEAR(TODAY()),$E128,(IF($G128=0,"",IF(Table13[[#This Row],[Life Expectancy]]=0,H128, ((0.056*(Table1468[[#This Row],[Year of Failure]]-YEAR(TODAY()))*Table1468[[#This Row],[Current Predicted Cost (to purchase in 2024)]])+Table1468[[#This Row],[Current Predicted Cost (to purchase in 2024)]]))))) ->  | J128: =Table13[[#This Row],[Estimated Year of Failure]] -> 
A129: =Table13[[#This Row],[I.D. Number ]] ->  | B129: =Table13[[#This Row],[Category]] -> 0 | C129: =Table13[[#This Row],[Type]] -> 0 | D129: =Table13[[#This Row],[Description]] -> 0 | G129: =Table13[[#This Row],[Installation Year]] -> 0 | H129: =IF($G129= YEAR(TODAY()),$E129,(IF($G129=0,"",IF(Table13[[#This Row],[Life Expectancy]]=0,((0.056*(YEAR(TODAY())-Table1468[[#This Row],[Year of Initial Price]])*Table1468[[#This Row],[Initial Price]])+Table1468[[#This Row],[Initial Price]]),((VLOOKUP(YEAR(TODAY()),'Inflation Data'!$A:$C,3,TRUE)-VLOOKUP(Table1468[[#This Row],[Year of Initial Price]],'Inflation Data'!$A:$C,3,TRUE))/(VLOOKUP(Table1468[[#This Row],[Year of Initial Price]],'Inflation Data'!$A:$C,3,TRUE))*Table1468[[#This Row],[Initial Price]])+Table1468[[#This Row],[Initial Price]])))) ->  | I129: =IF($G129=YEAR(TODAY()),$E129,(IF($G129=0,"",IF(Table13[[#This Row],[Life Expectancy]]=0,H129, ((0.056*(Table1468[[#This Row],[Year of Failure]]-YEAR(TODAY()))*Table1468[[#This Row],[Current Predicted Cost (to purchase in 2024)]])+Table1468[[#This Row],[Current Predicted Cost (to purchase in 2024)]]))))) ->  | J129: =Table13[[#This Row],[Estimated Year of Failure]] -> 
A130: =Table13[[#This Row],[I.D. Number ]] ->  | B130: =Table13[[#This Row],[Category]] -> 0 | C130: =Table13[[#This Row],[Type]] -> 0 | D130: =Table13[[#This Row],[Description]] -> 0 | G130: =Table13[[#This Row],[Installation Year]] -> 0 | H130: =IF($G130= YEAR(TODAY()),$E130,(IF($G130=0,"",IF(Table13[[#This Row],[Life Expectancy]]=0,((0.056*(YEAR(TODAY())-Table1468[[#This Row],[Year of Initial Price]])*Table1468[[#This Row],[Initial Price]])+Table1468[[#This Row],[Initial Price]]),((VLOOKUP(YEAR(TODAY()),'Inflation Data'!$A:$C,3,TRUE)-VLOOKUP(Table1468[[#This Row],[Year of Initial Price]],'Inflation Data'!$A:$C,3,TRUE))/(VLOOKUP(Table1468[[#This Row],[Year of Initial Price]],'Inflation Data'!$A:$C,3,TRUE))*Table1468[[#This Row],[Initial Price]])+Table1468[[#This Row],[Initial Price]])))) ->  | I130: =IF($G130=YEAR(TODAY()),$E130,(IF($G130=0,"",IF(Table13[[#This Row],[Life Expectancy]]=0,H130, ((0.056*(Table1468[[#This Row],[Year of Failure]]-YEAR(TODAY()))*Table1468[[#This Row],[Current Predicted Cost (to purchase in 2024)]])+Table1468[[#This Row],[Current Predicted Cost (to purchase in 2024)]]))))) ->  | J130: =Table13[[#This Row],[Estimated Year of Failure]] -> 
A131: =Table13[[#This Row],[I.D. Number ]] ->  | B131: =Table13[[#This Row],[Category]] -> 0 | C131: =Table13[[#This Row],[Type]] -> 0 | D131: =Table13[[#This Row],[Description]] -> 0 | G131: =Table13[[#This Row],[Installation Year]] -> 0 | H131: =IF($G131= YEAR(TODAY()),$E131,(IF($G131=0,"",IF(Table13[[#This Row],[Life Expectancy]]=0,((0.056*(YEAR(TODAY())-Table1468[[#This Row],[Year of Initial Price]])*Table1468[[#This Row],[Initial Price]])+Table1468[[#This Row],[Initial Price]]),((VLOOKUP(YEAR(TODAY()),'Inflation Data'!$A:$C,3,TRUE)-VLOOKUP(Table1468[[#This Row],[Year of Initial Price]],'Inflation Data'!$A:$C,3,TRUE))/(VLOOKUP(Table1468[[#This Row],[Year of Initial Price]],'Inflation Data'!$A:$C,3,TRUE))*Table1468[[#This Row],[Initial Price]])+Table1468[[#This Row],[Initial Price]])))) ->  | I131: =IF($G131=YEAR(TODAY()),$E131,(IF($G131=0,"",IF(Table13[[#This Row],[Life Expectancy]]=0,H131, ((0.056*(Table1468[[#This Row],[Year of Failure]]-YEAR(TODAY()))*Table1468[[#This Row],[Current Predicted Cost (to purchase in 2024)]])+Table1468[[#This Row],[Current Predicted Cost (to purchase in 2024)]]))))) ->  | J131: =Table13[[#This Row],[Estimated Year of Failure]] -> 
A132: =Table13[[#This Row],[I.D. Number ]] ->  | B132: =Table13[[#This Row],[Category]] -> 0 | C132: =Table13[[#This Row],[Type]] -> 0 | D132: =Table13[[#This Row],[Description]] -> 0 | G132: =Table13[[#This Row],[Installation Year]] -> 0 | H132: =IF($G132= YEAR(TODAY()),$E132,(IF($G132=0,"",IF(Table13[[#This Row],[Life Expectancy]]=0,((0.056*(YEAR(TODAY())-Table1468[[#This Row],[Year of Initial Price]])*Table1468[[#This Row],[Initial Price]])+Table1468[[#This Row],[Initial Price]]),((VLOOKUP(YEAR(TODAY()),'Inflation Data'!$A:$C,3,TRUE)-VLOOKUP(Table1468[[#This Row],[Year of Initial Price]],'Inflation Data'!$A:$C,3,TRUE))/(VLOOKUP(Table1468[[#This Row],[Year of Initial Price]],'Inflation Data'!$A:$C,3,TRUE))*Table1468[[#This Row],[Initial Price]])+Table1468[[#This Row],[Initial Price]])))) ->  | I132: =IF($G132=YEAR(TODAY()),$E132,(IF($G132=0,"",IF(Table13[[#This Row],[Life Expectancy]]=0,H132, ((0.056*(Table1468[[#This Row],[Year of Failure]]-YEAR(TODAY()))*Table1468[[#This Row],[Current Predicted Cost (to purchase in 2024)]])+Table1468[[#This Row],[Current Predicted Cost (to purchase in 2024)]]))))) ->  | J132: =Table13[[#This Row],[Estimated Year of Failure]] -> 
A133: =Table13[[#This Row],[I.D. Number ]] ->  | B133: =Table13[[#This Row],[Category]] -> 0 | C133: =Table13[[#This Row],[Type]] -> 0 | D133: =Table13[[#This Row],[Description]] -> 0 | G133: =Table13[[#This Row],[Installation Year]] -> 0 | H133: =IF($G133= YEAR(TODAY()),$E133,(IF($G133=0,"",IF(Table13[[#This Row],[Life Expectancy]]=0,((0.056*(YEAR(TODAY())-Table1468[[#This Row],[Year of Initial Price]])*Table1468[[#This Row],[Initial Price]])+Table1468[[#This Row],[Initial Price]]),((VLOOKUP(YEAR(TODAY()),'Inflation Data'!$A:$C,3,TRUE)-VLOOKUP(Table1468[[#This Row],[Year of Initial Price]],'Inflation Data'!$A:$C,3,TRUE))/(VLOOKUP(Table1468[[#This Row],[Year of Initial Price]],'Inflation Data'!$A:$C,3,TRUE))*Table1468[[#This Row],[Initial Price]])+Table1468[[#This Row],[Initial Price]])))) ->  | I133: =IF($G133=YEAR(TODAY()),$E133,(IF($G133=0,"",IF(Table13[[#This Row],[Life Expectancy]]=0,H133, ((0.056*(Table1468[[#This Row],[Year of Failure]]-YEAR(TODAY()))*Table1468[[#This Row],[Current Predicted Cost (to purchase in 2024)]])+Table1468[[#This Row],[Current Predicted Cost (to purchase in 2024)]]))))) ->  | J133: =Table13[[#This Row],[Estimated Year of Failure]] -> 
A134: =Table13[[#This Row],[I.D. Number ]] ->  | B134: =Table13[[#This Row],[Category]] -> 0 | C134: =Table13[[#This Row],[Type]] -> 0 | D134: =Table13[[#This Row],[Description]] -> 0 | G134: =Table13[[#This Row],[Installation Year]] -> 0 | H134: =IF($G134= YEAR(TODAY()),$E134,(IF($G134=0,"",IF(Table13[[#This Row],[Life Expectancy]]=0,((0.056*(YEAR(TODAY())-Table1468[[#This Row],[Year of Initial Price]])*Table1468[[#This Row],[Initial Price]])+Table1468[[#This Row],[Initial Price]]),((VLOOKUP(YEAR(TODAY()),'Inflation Data'!$A:$C,3,TRUE)-VLOOKUP(Table1468[[#This Row],[Year of Initial Price]],'Inflation Data'!$A:$C,3,TRUE))/(VLOOKUP(Table1468[[#This Row],[Year of Initial Price]],'Inflation Data'!$A:$C,3,TRUE))*Table1468[[#This Row],[Initial Price]])+Table1468[[#This Row],[Initial Price]])))) ->  | I134: =IF($G134=YEAR(TODAY()),$E134,(IF($G134=0,"",IF(Table13[[#This Row],[Life Expectancy]]=0,H134, ((0.056*(Table1468[[#This Row],[Year of Failure]]-YEAR(TODAY()))*Table1468[[#This Row],[Current Predicted Cost (to purchase in 2024)]])+Table1468[[#This Row],[Current Predicted Cost (to purchase in 2024)]]))))) ->  | J134: =Table13[[#This Row],[Estimated Year of Failure]] -> 
A135: =Table13[[#This Row],[I.D. Number ]] ->  | B135: =Table13[[#This Row],[Category]] -> 0 | C135: =Table13[[#This Row],[Type]] -> 0 | D135: =Table13[[#This Row],[Description]] -> 0 | G135: =Table13[[#This Row],[Installation Year]] -> 0 | H135: =IF($G135= YEAR(TODAY()),$E135,(IF($G135=0,"",IF(Table13[[#This Row],[Life Expectancy]]=0,((0.056*(YEAR(TODAY())-Table1468[[#This Row],[Year of Initial Price]])*Table1468[[#This Row],[Initial Price]])+Table1468[[#This Row],[Initial Price]]),((VLOOKUP(YEAR(TODAY()),'Inflation Data'!$A:$C,3,TRUE)-VLOOKUP(Table1468[[#This Row],[Year of Initial Price]],'Inflation Data'!$A:$C,3,TRUE))/(VLOOKUP(Table1468[[#This Row],[Year of Initial Price]],'Inflation Data'!$A:$C,3,TRUE))*Table1468[[#This Row],[Initial Price]])+Table1468[[#This Row],[Initial Price]])))) ->  | I135: =IF($G135=YEAR(TODAY()),$E135,(IF($G135=0,"",IF(Table13[[#This Row],[Life Expectancy]]=0,H135, ((0.056*(Table1468[[#This Row],[Year of Failure]]-YEAR(TODAY()))*Table1468[[#This Row],[Current Predicted Cost (to purchase in 2024)]])+Table1468[[#This Row],[Current Predicted Cost (to purchase in 2024)]]))))) ->  | J135: =Table13[[#This Row],[Estimated Year of Failure]] -> 
A136: =Table13[[#This Row],[I.D. Number ]] ->  | B136: =Table13[[#This Row],[Category]] -> 0 | C136: =Table13[[#This Row],[Type]] -> 0 | D136: =Table13[[#This Row],[Description]] -> 0 | G136: =Table13[[#This Row],[Installation Year]] -> 0 | H136: =IF($G136= YEAR(TODAY()),$E136,(IF($G136=0,"",IF(Table13[[#This Row],[Life Expectancy]]=0,((0.056*(YEAR(TODAY())-Table1468[[#This Row],[Year of Initial Price]])*Table1468[[#This Row],[Initial Price]])+Table1468[[#This Row],[Initial Price]]),((VLOOKUP(YEAR(TODAY()),'Inflation Data'!$A:$C,3,TRUE)-VLOOKUP(Table1468[[#This Row],[Year of Initial Price]],'Inflation Data'!$A:$C,3,TRUE))/(VLOOKUP(Table1468[[#This Row],[Year of Initial Price]],'Inflation Data'!$A:$C,3,TRUE))*Table1468[[#This Row],[Initial Price]])+Table1468[[#This Row],[Initial Price]])))) ->  | I136: =IF($G136=YEAR(TODAY()),$E136,(IF($G136=0,"",IF(Table13[[#This Row],[Life Expectancy]]=0,H136, ((0.056*(Table1468[[#This Row],[Year of Failure]]-YEAR(TODAY()))*Table1468[[#This Row],[Current Predicted Cost (to purchase in 2024)]])+Table1468[[#This Row],[Current Predicted Cost (to purchase in 2024)]]))))) ->  | J136: =Table13[[#This Row],[Estimated Year of Failure]] -> 
A137: =Table13[[#This Row],[I.D. Number ]] ->  | B137: =Table13[[#This Row],[Category]] -> 0 | C137: =Table13[[#This Row],[Type]] -> 0 | D137: =Table13[[#This Row],[Description]] -> 0 | G137: =Table13[[#This Row],[Installation Year]] -> 0 | H137: =IF($G137= YEAR(TODAY()),$E137,(IF($G137=0,"",IF(Table13[[#This Row],[Life Expectancy]]=0,((0.056*(YEAR(TODAY())-Table1468[[#This Row],[Year of Initial Price]])*Table1468[[#This Row],[Initial Price]])+Table1468[[#This Row],[Initial Price]]),((VLOOKUP(YEAR(TODAY()),'Inflation Data'!$A:$C,3,TRUE)-VLOOKUP(Table1468[[#This Row],[Year of Initial Price]],'Inflation Data'!$A:$C,3,TRUE))/(VLOOKUP(Table1468[[#This Row],[Year of Initial Price]],'Inflation Data'!$A:$C,3,TRUE))*Table1468[[#This Row],[Initial Price]])+Table1468[[#This Row],[Initial Price]])))) ->  | I137: =IF($G137=YEAR(TODAY()),$E137,(IF($G137=0,"",IF(Table13[[#This Row],[Life Expectancy]]=0,H137, ((0.056*(Table1468[[#This Row],[Year of Failure]]-YEAR(TODAY()))*Table1468[[#This Row],[Current Predicted Cost (to purchase in 2024)]])+Table1468[[#This Row],[Current Predicted Cost (to purchase in 2024)]]))))) ->  | J137: =Table13[[#This Row],[Estimated Year of Failure]] -> 
A138: =Table13[[#This Row],[I.D. Number ]] ->  | B138: =Table13[[#This Row],[Category]] -> 0 | C138: =Table13[[#This Row],[Type]] -> 0 | D138: =Table13[[#This Row],[Description]] -> 0 | G138: =Table13[[#This Row],[Installation Year]] -> 0 | H138: =IF($G138= YEAR(TODAY()),$E138,(IF($G138=0,"",IF(Table13[[#This Row],[Life Expectancy]]=0,((0.056*(YEAR(TODAY())-Table1468[[#This Row],[Year of Initial Price]])*Table1468[[#This Row],[Initial Price]])+Table1468[[#This Row],[Initial Price]]),((VLOOKUP(YEAR(TODAY()),'Inflation Data'!$A:$C,3,TRUE)-VLOOKUP(Table1468[[#This Row],[Year of Initial Price]],'Inflation Data'!$A:$C,3,TRUE))/(VLOOKUP(Table1468[[#This Row],[Year of Initial Price]],'Inflation Data'!$A:$C,3,TRUE))*Table1468[[#This Row],[Initial Price]])+Table1468[[#This Row],[Initial Price]])))) ->  | I138: =IF($G138=YEAR(TODAY()),$E138,(IF($G138=0,"",IF(Table13[[#This Row],[Life Expectancy]]=0,H138, ((0.056*(Table1468[[#This Row],[Year of Failure]]-YEAR(TODAY()))*Table1468[[#This Row],[Current Predicted Cost (to purchase in 2024)]])+Table1468[[#This Row],[Current Predicted Cost (to purchase in 2024)]]))))) ->  | J138: =Table13[[#This Row],[Estimated Year of Failure]] -> 
A139: =Table13[[#This Row],[I.D. Number ]] ->  | B139: =Table13[[#This Row],[Category]] -> 0 | C139: =Table13[[#This Row],[Type]] -> 0 | D139: =Table13[[#This Row],[Description]] -> 0 | G139: =Table13[[#This Row],[Installation Year]] -> 0 | H139: =IF($G139= YEAR(TODAY()),$E139,(IF($G139=0,"",IF(Table13[[#This Row],[Life Expectancy]]=0,((0.056*(YEAR(TODAY())-Table1468[[#This Row],[Year of Initial Price]])*Table1468[[#This Row],[Initial Price]])+Table1468[[#This Row],[Initial Price]]),((VLOOKUP(YEAR(TODAY()),'Inflation Data'!$A:$C,3,TRUE)-VLOOKUP(Table1468[[#This Row],[Year of Initial Price]],'Inflation Data'!$A:$C,3,TRUE))/(VLOOKUP(Table1468[[#This Row],[Year of Initial Price]],'Inflation Data'!$A:$C,3,TRUE))*Table1468[[#This Row],[Initial Price]])+Table1468[[#This Row],[Initial Price]])))) ->  | I139: =IF($G139=YEAR(TODAY()),$E139,(IF($G139=0,"",IF(Table13[[#This Row],[Life Expectancy]]=0,H139, ((0.056*(Table1468[[#This Row],[Year of Failure]]-YEAR(TODAY()))*Table1468[[#This Row],[Current Predicted Cost (to purchase in 2024)]])+Table1468[[#This Row],[Current Predicted Cost (to purchase in 2024)]]))))) ->  | J139: =Table13[[#This Row],[Estimated Year of Failure]] -> 
A140: =Table13[[#This Row],[I.D. Number ]] ->  | B140: =Table13[[#This Row],[Category]] -> 0 | C140: =Table13[[#This Row],[Type]] -> 0 | D140: =Table13[[#This Row],[Description]] -> 0 | G140: =Table13[[#This Row],[Installation Year]] -> 0 | H140: =IF($G140= YEAR(TODAY()),$E140,(IF($G140=0,"",IF(Table13[[#This Row],[Life Expectancy]]=0,((0.056*(YEAR(TODAY())-Table1468[[#This Row],[Year of Initial Price]])*Table1468[[#This Row],[Initial Price]])+Table1468[[#This Row],[Initial Price]]),((VLOOKUP(YEAR(TODAY()),'Inflation Data'!$A:$C,3,TRUE)-VLOOKUP(Table1468[[#This Row],[Year of Initial Price]],'Inflation Data'!$A:$C,3,TRUE))/(VLOOKUP(Table1468[[#This Row],[Year of Initial Price]],'Inflation Data'!$A:$C,3,TRUE))*Table1468[[#This Row],[Initial Price]])+Table1468[[#This Row],[Initial Price]])))) ->  | I140: =IF($G140=YEAR(TODAY()),$E140,(IF($G140=0,"",IF(Table13[[#This Row],[Life Expectancy]]=0,H140, ((0.056*(Table1468[[#This Row],[Year of Failure]]-YEAR(TODAY()))*Table1468[[#This Row],[Current Predicted Cost (to purchase in 2024)]])+Table1468[[#This Row],[Current Predicted Cost (to purchase in 2024)]]))))) ->  | J140: =Table13[[#This Row],[Estimated Year of Failure]] -> 
A141: =Table13[[#This Row],[I.D. Number ]] ->  | B141: =Table13[[#This Row],[Category]] -> 0 | C141: =Table13[[#This Row],[Type]] -> 0 | D141: =Table13[[#This Row],[Description]] -> 0 | G141: =Table13[[#This Row],[Installation Year]] -> 0 | H141: =IF($G141= YEAR(TODAY()),$E141,(IF($G141=0,"",IF(Table13[[#This Row],[Life Expectancy]]=0,((0.056*(YEAR(TODAY())-Table1468[[#This Row],[Year of Initial Price]])*Table1468[[#This Row],[Initial Price]])+Table1468[[#This Row],[Initial Price]]),((VLOOKUP(YEAR(TODAY()),'Inflation Data'!$A:$C,3,TRUE)-VLOOKUP(Table1468[[#This Row],[Year of Initial Price]],'Inflation Data'!$A:$C,3,TRUE))/(VLOOKUP(Table1468[[#This Row],[Year of Initial Price]],'Inflation Data'!$A:$C,3,TRUE))*Table1468[[#This Row],[Initial Price]])+Table1468[[#This Row],[Initial Price]])))) ->  | I141: =IF($G141=YEAR(TODAY()),$E141,(IF($G141=0,"",IF(Table13[[#This Row],[Life Expectancy]]=0,H141, ((0.056*(Table1468[[#This Row],[Year of Failure]]-YEAR(TODAY()))*Table1468[[#This Row],[Current Predicted Cost (to purchase in 2024)]])+Table1468[[#This Row],[Current Predicted Cost (to purchase in 2024)]]))))) ->  | J141: =Table13[[#This Row],[Estimated Year of Failure]] -> 
A142: =Table13[[#This Row],[I.D. Number ]] ->  | B142: =Table13[[#This Row],[Category]] -> 0 | C142: =Table13[[#This Row],[Type]] -> 0 | D142: =Table13[[#This Row],[Description]] -> 0 | G142: =Table13[[#This Row],[Installation Year]] -> 0 | H142: =IF($G142= YEAR(TODAY()),$E142,(IF($G142=0,"",IF(Table13[[#This Row],[Life Expectancy]]=0,((0.056*(YEAR(TODAY())-Table1468[[#This Row],[Year of Initial Price]])*Table1468[[#This Row],[Initial Price]])+Table1468[[#This Row],[Initial Price]]),((VLOOKUP(YEAR(TODAY()),'Inflation Data'!$A:$C,3,TRUE)-VLOOKUP(Table1468[[#This Row],[Year of Initial Price]],'Inflation Data'!$A:$C,3,TRUE))/(VLOOKUP(Table1468[[#This Row],[Year of Initial Price]],'Inflation Data'!$A:$C,3,TRUE))*Table1468[[#This Row],[Initial Price]])+Table1468[[#This Row],[Initial Price]])))) ->  | I142: =IF($G142=YEAR(TODAY()),$E142,(IF($G142=0,"",IF(Table13[[#This Row],[Life Expectancy]]=0,H142, ((0.056*(Table1468[[#This Row],[Year of Failure]]-YEAR(TODAY()))*Table1468[[#This Row],[Current Predicted Cost (to purchase in 2024)]])+Table1468[[#This Row],[Current Predicted Cost (to purchase in 2024)]]))))) ->  | J142: =Table13[[#This Row],[Estimated Year of Failure]] -> 
A143: =Table13[[#This Row],[I.D. Number ]] ->  | B143: =Table13[[#This Row],[Category]] -> 0 | C143: =Table13[[#This Row],[Type]] -> 0 | D143: =Table13[[#This Row],[Description]] -> 0 | G143: =Table13[[#This Row],[Installation Year]] -> 0 | H143: =IF($G143= YEAR(TODAY()),$E143,(IF($G143=0,"",IF(Table13[[#This Row],[Life Expectancy]]=0,((0.056*(YEAR(TODAY())-Table1468[[#This Row],[Year of Initial Price]])*Table1468[[#This Row],[Initial Price]])+Table1468[[#This Row],[Initial Price]]),((VLOOKUP(YEAR(TODAY()),'Inflation Data'!$A:$C,3,TRUE)-VLOOKUP(Table1468[[#This Row],[Year of Initial Price]],'Inflation Data'!$A:$C,3,TRUE))/(VLOOKUP(Table1468[[#This Row],[Year of Initial Price]],'Inflation Data'!$A:$C,3,TRUE))*Table1468[[#This Row],[Initial Price]])+Table1468[[#This Row],[Initial Price]])))) ->  | I143: =IF($G143=YEAR(TODAY()),$E143,(IF($G143=0,"",IF(Table13[[#This Row],[Life Expectancy]]=0,H143, ((0.056*(Table1468[[#This Row],[Year of Failure]]-YEAR(TODAY()))*Table1468[[#This Row],[Current Predicted Cost (to purchase in 2024)]])+Table1468[[#This Row],[Current Predicted Cost (to purchase in 2024)]]))))) ->  | J143: =Table13[[#This Row],[Estimated Year of Failure]] -> 
A144: =Table13[[#This Row],[I.D. Number ]] ->  | B144: =Table13[[#This Row],[Category]] -> 0 | C144: =Table13[[#This Row],[Type]] -> 0 | D144: =Table13[[#This Row],[Description]] -> 0 | G144: =Table13[[#This Row],[Installation Year]] -> 0 | H144: =IF($G144= YEAR(TODAY()),$E144,(IF($G144=0,"",IF(Table13[[#This Row],[Life Expectancy]]=0,((0.056*(YEAR(TODAY())-Table1468[[#This Row],[Year of Initial Price]])*Table1468[[#This Row],[Initial Price]])+Table1468[[#This Row],[Initial Price]]),((VLOOKUP(YEAR(TODAY()),'Inflation Data'!$A:$C,3,TRUE)-VLOOKUP(Table1468[[#This Row],[Year of Initial Price]],'Inflation Data'!$A:$C,3,TRUE))/(VLOOKUP(Table1468[[#This Row],[Year of Initial Price]],'Inflation Data'!$A:$C,3,TRUE))*Table1468[[#This Row],[Initial Price]])+Table1468[[#This Row],[Initial Price]])))) ->  | I144: =IF($G144=YEAR(TODAY()),$E144,(IF($G144=0,"",IF(Table13[[#This Row],[Life Expectancy]]=0,H144, ((0.056*(Table1468[[#This Row],[Year of Failure]]-YEAR(TODAY()))*Table1468[[#This Row],[Current Predicted Cost (to purchase in 2024)]])+Table1468[[#This Row],[Current Predicted Cost (to purchase in 2024)]]))))) ->  | J144: =Table13[[#This Row],[Estimated Year of Failure]] -> 
A145: =Table13[[#This Row],[I.D. Number ]] ->  | B145: =Table13[[#This Row],[Category]] -> 0 | C145: =Table13[[#This Row],[Type]] -> 0 | D145: =Table13[[#This Row],[Description]] -> 0 | G145: =Table13[[#This Row],[Installation Year]] -> 0 | H145: =IF($G145= YEAR(TODAY()),$E145,(IF($G145=0,"",IF(Table13[[#This Row],[Life Expectancy]]=0,((0.056*(YEAR(TODAY())-Table1468[[#This Row],[Year of Initial Price]])*Table1468[[#This Row],[Initial Price]])+Table1468[[#This Row],[Initial Price]]),((VLOOKUP(YEAR(TODAY()),'Inflation Data'!$A:$C,3,TRUE)-VLOOKUP(Table1468[[#This Row],[Year of Initial Price]],'Inflation Data'!$A:$C,3,TRUE))/(VLOOKUP(Table1468[[#This Row],[Year of Initial Price]],'Inflation Data'!$A:$C,3,TRUE))*Table1468[[#This Row],[Initial Price]])+Table1468[[#This Row],[Initial Price]])))) ->  | I145: =IF($G145=YEAR(TODAY()),$E145,(IF($G145=0,"",IF(Table13[[#This Row],[Life Expectancy]]=0,H145, ((0.056*(Table1468[[#This Row],[Year of Failure]]-YEAR(TODAY()))*Table1468[[#This Row],[Current Predicted Cost (to purchase in 2024)]])+Table1468[[#This Row],[Current Predicted Cost (to purchase in 2024)]]))))) ->  | J145: =Table13[[#This Row],[Estimated Year of Failure]] -> 
A146: =Table13[[#This Row],[I.D. Number ]] ->  | B146: =Table13[[#This Row],[Category]] -> 0 | C146: =Table13[[#This Row],[Type]] -> 0 | D146: =Table13[[#This Row],[Description]] -> 0 | G146: =Table13[[#This Row],[Installation Year]] -> 0 | H146: =IF($G146= YEAR(TODAY()),$E146,(IF($G146=0,"",IF(Table13[[#This Row],[Life Expectancy]]=0,((0.056*(YEAR(TODAY())-Table1468[[#This Row],[Year of Initial Price]])*Table1468[[#This Row],[Initial Price]])+Table1468[[#This Row],[Initial Price]]),((VLOOKUP(YEAR(TODAY()),'Inflation Data'!$A:$C,3,TRUE)-VLOOKUP(Table1468[[#This Row],[Year of Initial Price]],'Inflation Data'!$A:$C,3,TRUE))/(VLOOKUP(Table1468[[#This Row],[Year of Initial Price]],'Inflation Data'!$A:$C,3,TRUE))*Table1468[[#This Row],[Initial Price]])+Table1468[[#This Row],[Initial Price]])))) ->  | I146: =IF($G146=YEAR(TODAY()),$E146,(IF($G146=0,"",IF(Table13[[#This Row],[Life Expectancy]]=0,H146, ((0.056*(Table1468[[#This Row],[Year of Failure]]-YEAR(TODAY()))*Table1468[[#This Row],[Current Predicted Cost (to purchase in 2024)]])+Table1468[[#This Row],[Current Predicted Cost (to purchase in 2024)]]))))) ->  | J146: =Table13[[#This Row],[Estimated Year of Failure]] -> 
A147: =Table13[[#This Row],[I.D. Number ]] ->  | B147: =Table13[[#This Row],[Category]] -> 0 | C147: =Table13[[#This Row],[Type]] -> 0 | D147: =Table13[[#This Row],[Description]] -> 0 | G147: =Table13[[#This Row],[Installation Year]] -> 0 | H147: =IF($G147= YEAR(TODAY()),$E147,(IF($G147=0,"",IF(Table13[[#This Row],[Life Expectancy]]=0,((0.056*(YEAR(TODAY())-Table1468[[#This Row],[Year of Initial Price]])*Table1468[[#This Row],[Initial Price]])+Table1468[[#This Row],[Initial Price]]),((VLOOKUP(YEAR(TODAY()),'Inflation Data'!$A:$C,3,TRUE)-VLOOKUP(Table1468[[#This Row],[Year of Initial Price]],'Inflation Data'!$A:$C,3,TRUE))/(VLOOKUP(Table1468[[#This Row],[Year of Initial Price]],'Inflation Data'!$A:$C,3,TRUE))*Table1468[[#This Row],[Initial Price]])+Table1468[[#This Row],[Initial Price]])))) ->  | I147: =IF($G147=YEAR(TODAY()),$E147,(IF($G147=0,"",IF(Table13[[#This Row],[Life Expectancy]]=0,H147, ((0.056*(Table1468[[#This Row],[Year of Failure]]-YEAR(TODAY()))*Table1468[[#This Row],[Current Predicted Cost (to purchase in 2024)]])+Table1468[[#This Row],[Current Predicted Cost (to purchase in 2024)]]))))) ->  | J147: =Table13[[#This Row],[Estimated Year of Failure]] -> 
A148: =Table13[[#This Row],[I.D. Number ]] ->  | B148: =Table13[[#This Row],[Category]] -> 0 | C148: =Table13[[#This Row],[Type]] -> 0 | D148: =Table13[[#This Row],[Description]] -> 0 | G148: =Table13[[#This Row],[Installation Year]] -> 0 | H148: =IF($G148= YEAR(TODAY()),$E148,(IF($G148=0,"",IF(Table13[[#This Row],[Life Expectancy]]=0,((0.056*(YEAR(TODAY())-Table1468[[#This Row],[Year of Initial Price]])*Table1468[[#This Row],[Initial Price]])+Table1468[[#This Row],[Initial Price]]),((VLOOKUP(YEAR(TODAY()),'Inflation Data'!$A:$C,3,TRUE)-VLOOKUP(Table1468[[#This Row],[Year of Initial Price]],'Inflation Data'!$A:$C,3,TRUE))/(VLOOKUP(Table1468[[#This Row],[Year of Initial Price]],'Inflation Data'!$A:$C,3,TRUE))*Table1468[[#This Row],[Initial Price]])+Table1468[[#This Row],[Initial Price]])))) ->  | I148: =IF($G148=YEAR(TODAY()),$E148,(IF($G148=0,"",IF(Table13[[#This Row],[Life Expectancy]]=0,H148, ((0.056*(Table1468[[#This Row],[Year of Failure]]-YEAR(TODAY()))*Table1468[[#This Row],[Current Predicted Cost (to purchase in 2024)]])+Table1468[[#This Row],[Current Predicted Cost (to purchase in 2024)]]))))) ->  | J148: =Table13[[#This Row],[Estimated Year of Failure]] -> 
A149: =Table13[[#This Row],[I.D. Number ]] ->  | B149: =Table13[[#This Row],[Category]] -> 0 | C149: =Table13[[#This Row],[Type]] -> 0 | D149: =Table13[[#This Row],[Description]] -> 0 | G149: =Table13[[#This Row],[Installation Year]] -> 0 | H149: =IF($G149= YEAR(TODAY()),$E149,(IF($G149=0,"",IF(Table13[[#This Row],[Life Expectancy]]=0,((0.056*(YEAR(TODAY())-Table1468[[#This Row],[Year of Initial Price]])*Table1468[[#This Row],[Initial Price]])+Table1468[[#This Row],[Initial Price]]),((VLOOKUP(YEAR(TODAY()),'Inflation Data'!$A:$C,3,TRUE)-VLOOKUP(Table1468[[#This Row],[Year of Initial Price]],'Inflation Data'!$A:$C,3,TRUE))/(VLOOKUP(Table1468[[#This Row],[Year of Initial Price]],'Inflation Data'!$A:$C,3,TRUE))*Table1468[[#This Row],[Initial Price]])+Table1468[[#This Row],[Initial Price]])))) ->  | I149: =IF($G149=YEAR(TODAY()),$E149,(IF($G149=0,"",IF(Table13[[#This Row],[Life Expectancy]]=0,H149, ((0.056*(Table1468[[#This Row],[Year of Failure]]-YEAR(TODAY()))*Table1468[[#This Row],[Current Predicted Cost (to purchase in 2024)]])+Table1468[[#This Row],[Current Predicted Cost (to purchase in 2024)]]))))) ->  | J149: =Table13[[#This Row],[Estimated Year of Failure]] -> 
A150: =Table13[[#This Row],[I.D. Number ]] ->  | B150: =Table13[[#This Row],[Category]] -> 0 | C150: =Table13[[#This Row],[Type]] -> 0 | D150: =Table13[[#This Row],[Description]] -> 0 | G150: =Table13[[#This Row],[Installation Year]] -> 0 | H150: =IF($G150= YEAR(TODAY()),$E150,(IF($G150=0,"",IF(Table13[[#This Row],[Life Expectancy]]=0,((0.056*(YEAR(TODAY())-Table1468[[#This Row],[Year of Initial Price]])*Table1468[[#This Row],[Initial Price]])+Table1468[[#This Row],[Initial Price]]),((VLOOKUP(YEAR(TODAY()),'Inflation Data'!$A:$C,3,TRUE)-VLOOKUP(Table1468[[#This Row],[Year of Initial Price]],'Inflation Data'!$A:$C,3,TRUE))/(VLOOKUP(Table1468[[#This Row],[Year of Initial Price]],'Inflation Data'!$A:$C,3,TRUE))*Table1468[[#This Row],[Initial Price]])+Table1468[[#This Row],[Initial Price]])))) ->  | I150: =IF($G150=YEAR(TODAY()),$E150,(IF($G150=0,"",IF(Table13[[#This Row],[Life Expectancy]]=0,H150, ((0.056*(Table1468[[#This Row],[Year of Failure]]-YEAR(TODAY()))*Table1468[[#This Row],[Current Predicted Cost (to purchase in 2024)]])+Table1468[[#This Row],[Current Predicted Cost (to purchase in 2024)]]))))) ->  | J150: =Table13[[#This Row],[Estimated Year of Failure]] -> 
A151: =Table13[[#This Row],[I.D. Number ]] ->  | B151: =Table13[[#This Row],[Category]] -> 0 | C151: =Table13[[#This Row],[Type]] -> 0 | D151: =Table13[[#This Row],[Description]] -> 0 | G151: =Table13[[#This Row],[Installation Year]] -> 0 | H151: =IF($G151= YEAR(TODAY()),$E151,(IF($G151=0,"",IF(Table13[[#This Row],[Life Expectancy]]=0,((0.056*(YEAR(TODAY())-Table1468[[#This Row],[Year of Initial Price]])*Table1468[[#This Row],[Initial Price]])+Table1468[[#This Row],[Initial Price]]),((VLOOKUP(YEAR(TODAY()),'Inflation Data'!$A:$C,3,TRUE)-VLOOKUP(Table1468[[#This Row],[Year of Initial Price]],'Inflation Data'!$A:$C,3,TRUE))/(VLOOKUP(Table1468[[#This Row],[Year of Initial Price]],'Inflation Data'!$A:$C,3,TRUE))*Table1468[[#This Row],[Initial Price]])+Table1468[[#This Row],[Initial Price]])))) ->  | I151: =IF($G151=YEAR(TODAY()),$E151,(IF($G151=0,"",IF(Table13[[#This Row],[Life Expectancy]]=0,H151, ((0.056*(Table1468[[#This Row],[Year of Failure]]-YEAR(TODAY()))*Table1468[[#This Row],[Current Predicted Cost (to purchase in 2024)]])+Table1468[[#This Row],[Current Predicted Cost (to purchase in 2024)]]))))) ->  | J151: =Table13[[#This Row],[Estimated Year of Failure]] -> 
A152: =Table13[[#This Row],[I.D. Number ]] ->  | B152: =Table13[[#This Row],[Category]] -> 0 | C152: =Table13[[#This Row],[Type]] -> 0 | D152: =Table13[[#This Row],[Description]] -> 0 | G152: =Table13[[#This Row],[Installation Year]] -> 0 | H152: =IF($G152= YEAR(TODAY()),$E152,(IF($G152=0,"",IF(Table13[[#This Row],[Life Expectancy]]=0,((0.056*(YEAR(TODAY())-Table1468[[#This Row],[Year of Initial Price]])*Table1468[[#This Row],[Initial Price]])+Table1468[[#This Row],[Initial Price]]),((VLOOKUP(YEAR(TODAY()),'Inflation Data'!$A:$C,3,TRUE)-VLOOKUP(Table1468[[#This Row],[Year of Initial Price]],'Inflation Data'!$A:$C,3,TRUE))/(VLOOKUP(Table1468[[#This Row],[Year of Initial Price]],'Inflation Data'!$A:$C,3,TRUE))*Table1468[[#This Row],[Initial Price]])+Table1468[[#This Row],[Initial Price]])))) ->  | I152: =IF($G152=YEAR(TODAY()),$E152,(IF($G152=0,"",IF(Table13[[#This Row],[Life Expectancy]]=0,H152, ((0.056*(Table1468[[#This Row],[Year of Failure]]-YEAR(TODAY()))*Table1468[[#This Row],[Current Predicted Cost (to purchase in 2024)]])+Table1468[[#This Row],[Current Predicted Cost (to purchase in 2024)]]))))) ->  | J152: =Table13[[#This Row],[Estimated Year of Failure]] -> 
A153: =Table13[[#This Row],[I.D. Number ]] ->  | B153: =Table13[[#This Row],[Category]] -> 0 | C153: =Table13[[#This Row],[Type]] -> 0 | D153: =Table13[[#This Row],[Description]] -> 0 | G153: =Table13[[#This Row],[Installation Year]] -> 0 | H153: =IF($G153= YEAR(TODAY()),$E153,(IF($G153=0,"",IF(Table13[[#This Row],[Life Expectancy]]=0,((0.056*(YEAR(TODAY())-Table1468[[#This Row],[Year of Initial Price]])*Table1468[[#This Row],[Initial Price]])+Table1468[[#This Row],[Initial Price]]),((VLOOKUP(YEAR(TODAY()),'Inflation Data'!$A:$C,3,TRUE)-VLOOKUP(Table1468[[#This Row],[Year of Initial Price]],'Inflation Data'!$A:$C,3,TRUE))/(VLOOKUP(Table1468[[#This Row],[Year of Initial Price]],'Inflation Data'!$A:$C,3,TRUE))*Table1468[[#This Row],[Initial Price]])+Table1468[[#This Row],[Initial Price]])))) ->  | I153: =IF($G153=YEAR(TODAY()),$E153,(IF($G153=0,"",IF(Table13[[#This Row],[Life Expectancy]]=0,H153, ((0.056*(Table1468[[#This Row],[Year of Failure]]-YEAR(TODAY()))*Table1468[[#This Row],[Current Predicted Cost (to purchase in 2024)]])+Table1468[[#This Row],[Current Predicted Cost (to purchase in 2024)]]))))) ->  | J153: =Table13[[#This Row],[Estimated Year of Failure]] -> 
A154: =Table13[[#This Row],[I.D. Number ]] ->  | B154: =Table13[[#This Row],[Category]] -> 0 | C154: =Table13[[#This Row],[Type]] -> 0 | D154: =Table13[[#This Row],[Description]] -> 0 | G154: =Table13[[#This Row],[Installation Year]] -> 0 | H154: =IF($G154= YEAR(TODAY()),$E154,(IF($G154=0,"",IF(Table13[[#This Row],[Life Expectancy]]=0,((0.056*(YEAR(TODAY())-Table1468[[#This Row],[Year of Initial Price]])*Table1468[[#This Row],[Initial Price]])+Table1468[[#This Row],[Initial Price]]),((VLOOKUP(YEAR(TODAY()),'Inflation Data'!$A:$C,3,TRUE)-VLOOKUP(Table1468[[#This Row],[Year of Initial Price]],'Inflation Data'!$A:$C,3,TRUE))/(VLOOKUP(Table1468[[#This Row],[Year of Initial Price]],'Inflation Data'!$A:$C,3,TRUE))*Table1468[[#This Row],[Initial Price]])+Table1468[[#This Row],[Initial Price]])))) ->  | I154: =IF($G154=YEAR(TODAY()),$E154,(IF($G154=0,"",IF(Table13[[#This Row],[Life Expectancy]]=0,H154, ((0.056*(Table1468[[#This Row],[Year of Failure]]-YEAR(TODAY()))*Table1468[[#This Row],[Current Predicted Cost (to purchase in 2024)]])+Table1468[[#This Row],[Current Predicted Cost (to purchase in 2024)]]))))) ->  | J154: =Table13[[#This Row],[Estimated Year of Failure]] -> 
A155: =Table13[[#This Row],[I.D. Number ]] ->  | B155: =Table13[[#This Row],[Category]] -> 0 | C155: =Table13[[#This Row],[Type]] -> 0 | D155: =Table13[[#This Row],[Description]] -> 0 | G155: =Table13[[#This Row],[Installation Year]] -> 0 | H155: =IF($G155= YEAR(TODAY()),$E155,(IF($G155=0,"",IF(Table13[[#This Row],[Life Expectancy]]=0,((0.056*(YEAR(TODAY())-Table1468[[#This Row],[Year of Initial Price]])*Table1468[[#This Row],[Initial Price]])+Table1468[[#This Row],[Initial Price]]),((VLOOKUP(YEAR(TODAY()),'Inflation Data'!$A:$C,3,TRUE)-VLOOKUP(Table1468[[#This Row],[Year of Initial Price]],'Inflation Data'!$A:$C,3,TRUE))/(VLOOKUP(Table1468[[#This Row],[Year of Initial Price]],'Inflation Data'!$A:$C,3,TRUE))*Table1468[[#This Row],[Initial Price]])+Table1468[[#This Row],[Initial Price]])))) ->  | I155: =IF($G155=YEAR(TODAY()),$E155,(IF($G155=0,"",IF(Table13[[#This Row],[Life Expectancy]]=0,H155, ((0.056*(Table1468[[#This Row],[Year of Failure]]-YEAR(TODAY()))*Table1468[[#This Row],[Current Predicted Cost (to purchase in 2024)]])+Table1468[[#This Row],[Current Predicted Cost (to purchase in 2024)]]))))) ->  | J155: =Table13[[#This Row],[Estimated Year of Failure]] -> 
A156: =Table13[[#This Row],[I.D. Number ]] ->  | B156: =Table13[[#This Row],[Category]] -> 0 | C156: =Table13[[#This Row],[Type]] -> 0 | D156: =Table13[[#This Row],[Description]] -> 0 | G156: =Table13[[#This Row],[Installation Year]] -> 0 | H156: =IF($G156= YEAR(TODAY()),$E156,(IF($G156=0,"",IF(Table13[[#This Row],[Life Expectancy]]=0,((0.056*(YEAR(TODAY())-Table1468[[#This Row],[Year of Initial Price]])*Table1468[[#This Row],[Initial Price]])+Table1468[[#This Row],[Initial Price]]),((VLOOKUP(YEAR(TODAY()),'Inflation Data'!$A:$C,3,TRUE)-VLOOKUP(Table1468[[#This Row],[Year of Initial Price]],'Inflation Data'!$A:$C,3,TRUE))/(VLOOKUP(Table1468[[#This Row],[Year of Initial Price]],'Inflation Data'!$A:$C,3,TRUE))*Table1468[[#This Row],[Initial Price]])+Table1468[[#This Row],[Initial Price]])))) ->  | I156: =IF($G156=YEAR(TODAY()),$E156,(IF($G156=0,"",IF(Table13[[#This Row],[Life Expectancy]]=0,H156, ((0.056*(Table1468[[#This Row],[Year of Failure]]-YEAR(TODAY()))*Table1468[[#This Row],[Current Predicted Cost (to purchase in 2024)]])+Table1468[[#This Row],[Current Predicted Cost (to purchase in 2024)]]))))) ->  | J156: =Table13[[#This Row],[Estimated Year of Failure]] -> 
A157: =Table13[[#This Row],[I.D. Number ]] ->  | B157: =Table13[[#This Row],[Category]] -> 0 | C157: =Table13[[#This Row],[Type]] -> 0 | D157: =Table13[[#This Row],[Description]] -> 0 | G157: =Table13[[#This Row],[Installation Year]] -> 0 | H157: =IF($G157= YEAR(TODAY()),$E157,(IF($G157=0,"",IF(Table13[[#This Row],[Life Expectancy]]=0,((0.056*(YEAR(TODAY())-Table1468[[#This Row],[Year of Initial Price]])*Table1468[[#This Row],[Initial Price]])+Table1468[[#This Row],[Initial Price]]),((VLOOKUP(YEAR(TODAY()),'Inflation Data'!$A:$C,3,TRUE)-VLOOKUP(Table1468[[#This Row],[Year of Initial Price]],'Inflation Data'!$A:$C,3,TRUE))/(VLOOKUP(Table1468[[#This Row],[Year of Initial Price]],'Inflation Data'!$A:$C,3,TRUE))*Table1468[[#This Row],[Initial Price]])+Table1468[[#This Row],[Initial Price]])))) ->  | I157: =IF($G157=YEAR(TODAY()),$E157,(IF($G157=0,"",IF(Table13[[#This Row],[Life Expectancy]]=0,H157, ((0.056*(Table1468[[#This Row],[Year of Failure]]-YEAR(TODAY()))*Table1468[[#This Row],[Current Predicted Cost (to purchase in 2024)]])+Table1468[[#This Row],[Current Predicted Cost (to purchase in 2024)]]))))) ->  | J157: =Table13[[#This Row],[Estimated Year of Failure]] -> 
A158: =Table13[[#This Row],[I.D. Number ]] ->  | B158: =Table13[[#This Row],[Category]] -> 0 | C158: =Table13[[#This Row],[Type]] -> 0 | D158: =Table13[[#This Row],[Description]] -> 0 | G158: =Table13[[#This Row],[Installation Year]] -> 0 | H158: =IF($G158= YEAR(TODAY()),$E158,(IF($G158=0,"",IF(Table13[[#This Row],[Life Expectancy]]=0,((0.056*(YEAR(TODAY())-Table1468[[#This Row],[Year of Initial Price]])*Table1468[[#This Row],[Initial Price]])+Table1468[[#This Row],[Initial Price]]),((VLOOKUP(YEAR(TODAY()),'Inflation Data'!$A:$C,3,TRUE)-VLOOKUP(Table1468[[#This Row],[Year of Initial Price]],'Inflation Data'!$A:$C,3,TRUE))/(VLOOKUP(Table1468[[#This Row],[Year of Initial Price]],'Inflation Data'!$A:$C,3,TRUE))*Table1468[[#This Row],[Initial Price]])+Table1468[[#This Row],[Initial Price]])))) ->  | I158: =IF($G158=YEAR(TODAY()),$E158,(IF($G158=0,"",IF(Table13[[#This Row],[Life Expectancy]]=0,H158, ((0.056*(Table1468[[#This Row],[Year of Failure]]-YEAR(TODAY()))*Table1468[[#This Row],[Current Predicted Cost (to purchase in 2024)]])+Table1468[[#This Row],[Current Predicted Cost (to purchase in 2024)]]))))) ->  | J158: =Table13[[#This Row],[Estimated Year of Failure]] -> 
